Workbook

Sheet Instructions

Sheet Sample_Plan Computer Science (hidden)
A1: Computer Science Graduation Plan
A2: Student Name | C2: Last Name, First Name
A3: University Id (not ss#)
A4: Email
A5: Primary Major (Option) | C5: Computer Science (General Option)
A6: Second Major:
A7: Third Major:
A8: Minors(s):
A9: Special Program(s):
A10: Scholarships:
A12: Matriculation Date (Month/Year) | E12: Sept. 2016
A13: Expected Graduation Date (Month/Year) | E13: June 2020
A15: Minimum Number of Credits Required for Degree(s) | E15: 120
A17: Transfer and AP Credits
A19: Course | B19: Req. | C19: Req. | D19: Course Title | E19: Credits | F19: Grade | G19: Degree Credits | H19: SemesterYear
D20: AP: Physics C - Mechanics | E20: 0 | F20: 2 | H20: Transfer/AP
A21: ECON.2010 | B21: SS-1 | D21: AP: Microeconomics | E21: 3 | F21: 4 | H21: Transfer/AP
A22: ENGL.1010 | B22: CW-1 | D22: English Literature & Composition | E22: 3 | F22: A- | H22: Transfer/AP
H23: Transfer/AP
H24: Transfer/AP
H25: Transfer/AP
H26: Transfer/AP
H27: Transfer/AP
H28: Transfer/AP
H29: Transfer/AP
H30: Transfer/AP
H31: Transfer/AP
H32: Transfer/AP
H33: Transfer/AP
H34: Transfer/AP
H35: Transfer/AP
H36: Transfer/AP
H37: Transfer/AP
H38: Transfer/AP
H39: Transfer/AP
H40: Transfer/AP
H41: Transfer/AP
H42: Transfer/AP
H43: Transfer/AP
H44: Transfer/AP
H45: Transfer/AP
H46: Transfer/AP
H47: Transfer/AP
H48: Transfer/AP
H49: Transfer/AP
H50: Transfer/AP
H51: Transfer/AP
H52: Transfer/AP
H53: Transfer/AP
H54: Transfer/AP
H55: Transfer/AP
H56: Transfer/AP
H57: Transfer/AP
H58: Transfer/AP
H59: Transfer/AP
H60: Transfer/AP
H61: Transfer/AP
H62: Transfer/AP
H63: Transfer/AP
H64: Transfer/AP
H65: Transfer/AP
H66: Transfer/AP
H67: Transfer/AP
H68: Transfer/AP
H69: Transfer/AP
D70: Transfer and AP Credits | E70: =SUM(E20:E69) -> 6 | G70: =SUM(G20:G69) -> 0
D71: Total Credits Earned | E71: =E70 -> 6 | G71: =E15-G70 -> 120
A73: Year 1
A74: Fall | B74: 2016 | C74: =C2 -> Last Name, First Name
A75: Course | B75: =B19 -> Req. | C75: =C19 -> Req. | D75: Course Title | E75: Credits | F75: Grade | G75: Degree Credits | H75: SemesterYear
A76: COMP.1010 | D76: Computing I | E76: 3 | H76: =$A$74&$B$74 -> Fall2016
A77: COMP.1030L | D77: Computing I Lab | E77: 1 | H77: =$A$74&$B$74 -> Fall2016
A78: MATH.1310 | B78: MA | D78: Calculus I | E78: 4 | H78: Fall2016
A79: ENGL.1020 | B79: CW-2 | D79: College Writing II | E79: 3 | H79: Fall2016
A80: SOCI.2320 | B80: SS-2,DV | D80: Social Psychology | E80: 3 | H80: Fall2016
H81: Fall2016
H82: Fall2016
H83: Fall2016
H84: Fall2016
H85: Fall2016
D86: Semester Credits Earned | E86: =SUM(E76:E85) -> 14 | G86: =SUM(G76:G85) -> 0
D87: =D71 -> Total Credits Earned | E87: =E71+E86 -> 20 | G87: =G71-G86 -> 120
A89: Winter | B89: =B74+1 -> 2017 | C89: =C2 -> Last Name, First Name
A90: Course | B90: =B19 -> Req. | D90: Course Title | E90: Credits | F90: Grade | G90: Degree Credits | H90: SemesterYear
H91: =$A$89&$B$89 -> Winter2017
H92: =$A$89&$B$89 -> Winter2017
H93: Winter2017
D94: =D86 -> Semester Credits Earned | E94: =SUM(E91:E93) -> 0 | G94: =SUM(G91:G93) -> 0
D95: =D71 -> Total Credits Earned | E95: =E87+E94 -> 20 | G95: =G87-G94 -> 120
A97: Spring | B97: =B74+1 -> 2017 | C97: =C2 -> Last Name, First Name
A98: Course | B98: =B19 -> Req. | C98: =C19 -> Req. | D98: Course Title | E98: Credits | F98: Grade | G98: Degree Credits | H98: SemesterYear
A99: COMP.1020 | D99: Computing II | E99: 3 | H99: =$A$97&$B$97 -> Spring2017
A100: COMP.1040L | D100: Computer II Lab | E100: 1 | H100: =$A$97&$B$97 -> Spring2017
A101: MATH.1320 | D101: Calculus II | E101: 4 | H101: Spring2017
A102: NS-1 | B102: SC-1 | C102: NS-1 | D102: Natural Science Lecture | E102: 3 | H102: Spring2017
A103: NS-Lab1 | B103: SCL-1 | C103: NS-Lab1 | D103: Natural Science Lab | E103: 1 | H103: Spring2017
A104: AH-1 | B104: AH-1 | D104: Breadth of Knowledge Requirement | E104: 3 | H104: Spring2017
H105: Spring2017
H106: Spring2017
H107: Spring2017
H108: Spring2017
D109: =D86 -> Semester Credits Earned | E109: =SUM(E99:E108) -> 15 | G109: =SUM(G99:G108) -> 0
D110: =D71 -> Total Credits Earned | E110: =E95+E109 -> 35 | G110: =G95-G109 -> 120
A112: Summer | B112: =B74+1 -> 2017 | C112: =C2 -> Last Name, First Name
A113: Course | B113: =B19 -> Req. | C113: =C19 -> Req. | D113: Course Title | E113: Credits | F113: Grade | G113: Degree Credits | H113: SemesterYear
H114: =$A$112&$B$112 -> Summer2017
H115: =$A$112&$B$112 -> Summer2017
H116: Summer2017
H117: Summer2017
H118: Summer2017
H119: Summer2017
D120: =D86 -> Semester Credits Earned | E120: =SUM(E114:E119) -> 0 | G120: =SUM(G114:G119) -> 0
D121: =D71 -> Total Credits Earned | E121: =E110+E120 -> 35 | G121: =G110-G120 -> 120
A123: Year 2
A124: Fall | B124: =B74+1 -> 2017 | C124: =C2 -> Last Name, First Name
A125: Course | B125: =B19 -> Req. | C125: =C19 -> Req. | D125: Course Title | E125: Credits | F125: Grade | G125: Degree Credits | H125: SemesterYear
A126: COMP.2010 | D126: Computing III | E126: 3 | H126: =$A$124&$B$124 -> Fall2017
A127: COMP.2010L | D127: Computing III Lab | E127: 1 | H127: =$A$124&$B$124 -> Fall2017
A128: COMP.2030 | D128: Assembly Language Programming | E128: 3 | H128: Fall2017
A129: COMP.2030L | D129: Assembly Language Programming Lab | E129: 1 | H129: Fall2017
A130: MATH.3210 | D130: Discrete Structures I | E130: 3 | H130: Fall2017
A131: EECE.2650 | D131: Logic Design | E131: 3 | H131: Fall2017
H132: Fall2017
H133: Fall2017
H134: Fall2017
H135: Fall2017
D136: =D86 -> Semester Credits Earned | E136: =SUM(E126:E135) -> 14 | G136: =SUM(G126:G135) -> 0
D137: =D71 -> Total Credits Earned | E137: =E121+E136 -> 49 | G137: =G121-G136 -> 120
A139: Winter | B139: =B74+2 -> 2018 | C139: =C2 -> Last Name, First Name
A140: Course | B140: =B19 -> Req. | C140: =C19 -> Req. | D140: Course Title | E140: Credits | F140: Grade | G140: Degree Credits | H140: SemesterYear
H141: =$A$139&$B$139 -> Winter2018
H142: =$A$139&$B$139 -> Winter2018
H143: Winter2018
D144: =D86 -> Semester Credits Earned | E144: =SUM(E141:E143) -> 0 | G144: =SUM(G141:G143) -> 0
D145: =D71 -> Total Credits Earned | E145: =E137+E144 -> 49 | G145: =G137-G144 -> 120
A147: Spring | B147: =B89+1 -> 2018 | C147: =C2 -> Last Name, First Name
A148: Course | B148: =B19 -> Req. | C148: =C19 -> Req. | D148: Course Title | E148: Credits | F148: Grade | G148: Degree Credits | H148: SemesterYear
A149: COMP.2040 | D149: Computing IV | E149: 3 | H149: =$A$147&$B$147 -> Spring2018
A150: MATH.3220 | D150: Discrete Structures II | E150: 3 | H150: =$A$147&$B$147 -> Spring2018
A151: MATH.3860 | D151: Probability and Statistics I | E151: 3 | H151: Spring2018
A152: AH-2 | B152: AH-2,ET | C152: CSET | D152: Breadth of Knowledge Requirement | E152: 3 | H152: Spring2018
A153: FE-1 | B153: FE-1 | D153: Free Elective | E153: 3 | H153: Spring2018
H154: Spring2018
H155: Spring2018
H156: Spring2018
H157: Spring2018
H158: Spring2018
D159: =D86 -> Semester Credits Earned | E159: =SUM(E149:E158) -> 15 | G159: =SUM(G149:G158) -> 0
D160: =D71 -> Total Credits Earned | E160: =E145+E159 -> 64 | G160: =G145-G159 -> 120
A162: Summer | B162: =B74+2 -> 2018 | C162: =C2 -> Last Name, First Name
A163: Course | B163: =B19 -> Req. | C163: =C19 -> Req. | D163: Course Title | E163: Credits | F163: Grade | G163: Degree Credits | H163: SemesterYear
H164: =$A$162&$B$162 -> Summer2018
H165: =$A$162&$B$162 -> Summer2018
H166: Summer2018
H167: Summer2018
H168: Summer2018
H169: Summer2018
D170: =D86 -> Semester Credits Earned | E170: =SUM(E164:E169) -> 0 | G170: =SUM(G163:G169) -> 0
D171: =D71 -> Total Credits Earned | E171: =E160+E170 -> 64 | G171: =G160-G170 -> 120
A173: Year 3
A174: Fall | B174: =B74+2 -> 2018 | C174: =C2 -> Last Name, First Name
A175: Course | B175: =B19 -> Req. | C175: =C19 -> Req. | D175: Course Title | E175: Credits | F175: Grade | G175: Degree Credits | H175: SemesterYear
A176: COMP.3040 | D176: Foundations of Computer Science | E176: 3 | H176: =$A$174&$B$174 -> Fall2018
A177: COMP.3050 | D177: Computer Architecture | E177: 3 | H177: =$A$174&$B$174 -> Fall2018
A178: NS-2 | B178: SC-2 | C178: NS-2 | D178: Natural Science Lecture | E178: 3 | H178: Fall2018
A179: NS-Lab2 | B179: SCL-2 | C179: NS-Lab2 | D179: Natural Science Lab | E179: 1 | H179: Fall2018
A180: FE-2 | B180: FE-2,DV | D180: Free Elective | E180: 3 | H180: Fall2018
H181: Fall2018
H182: Fall2018
H183: Fall2018
H184: Fall2018
H185: Fall2018
D186: =D86 -> Semester Credits Earned | E186: =SUM(E176:E185) -> 13 | G186: =SUM(G176:G185) -> 0
D187: =D71 -> Total Credits Earned | E187: =E171+E186 -> 77 | G187: =G171-G186 -> 120
A189: Winter | B189: =B74+3 -> 2019 | C189: =C2 -> Last Name, First Name
A190: Course | B190: =B19 -> Req. | C190: =C19 -> Req. | D190: Course Title | E190: Credits | F190: Grade | G190: Degree Credits | H190: SemesterYear
H191: =$A$189&$B$189 -> Winter2019
H192: =$A$189&$B$189 -> Winter2019
H193: Winter2019
D194: =D86 -> Semester Credits Earned | E194: =SUM(E191:E193) -> 0 | G194: =SUM(G191:G193) -> 0 | H194: =SUM(H191:H193) -> 0
D195: =D71 -> Total Credits Earned | E195: =E187+E194 -> 77 | G195: =G187-G194 -> 120
A197: Spring | B197: =B74+3 -> 2019 | C197: =C2 -> Last Name, First Name
A198: Course | B198: =B19 -> Req. | C198: =C19 -> Req. | D198: Course Title | E198: Credits | F198: Grade | G198: Degree Credits | H198: SemesterYear
A199: COMP.3010 | D199: Organization of Programming Languages | E199: 3 | H199: =$A$197&$B$197 -> Spring2019
A200: COMP.3080 | D200: Introduction to Operating Systems | E200: 3 | H200: =$A$197&$B$197 -> Spring2019
A201: NS-3 | B201: STEM | C201: NS-3 | D201: Natural Science Lecture | E201: 3 | H201: Spring2019
A202: NS-Lab3 | C202: NS-Lab3 | D202: Natural Science Lab | E202: 1 | H202: Spring2019
A203: ENGL.2200 | B203: AH-3 | D203: Oral & Written Communication for CS | E203: 3 | H203: Spring2019
A204: FE-3 | B204: FE-3 | D204: Free Elective | E204: 3 | H204: Spring2019
H205: Spring2019
H206: Spring2019
H207: Spring2019
H208: Spring2019
D209: =D86 -> Semester Credits Earned | E209: =SUM(E199:E208) -> 16 | G209: =SUM(G199:G208) -> 0
D210: =D71 -> Total Credits Earned | E210: =E195+E209 -> 93 | G210: =G195-G209 -> 120
A212: Summer | B212: =B74+3 -> 2019 | C212: =C2 -> Last Name, First Name
A213: Course | B213: =B19 -> Req. | C213: =C19 -> Req. | D213: Course Title | E213: Credits | F213: Grade | G213: Degree Credits | H213: SemesterYear
H214: =$A$212&$B$212 -> Summer2019
H215: =$A$212&$B$212 -> Summer2019
H216: Summer2019
... 150 more rows

Sheet Sample_Checklist (hidden)
A1: Checklist - Computer Science | K1: Sample_Plan Computer Science | L1: Required Computer Science Electives
A2: Requirement | D2: Credits | E2: Taken | H2: Semester | I2: Credits | L2: List courses you are interested in possibly taking. (NOTE: This is not required.)
A3: Required Computer Science Courses | L3: Course | M3: Title
A4: COMP.1010 | B4: or | C4: 91.101 | D4: 3 | E4: COMP.1010 | F4: or | G4: 91.101 | H4: =IF(AND(ISNA(VLOOKUP(E4,INDIRECT("'"&$K$1&"'!$A$1:$H$550"),8,FALSE)), ISNA(VLOOKUP(G4,INDIRECT("'"&$K$1&"'!$A$1:$H$550"),8,FALSE))), "Not Found", (IF(ISNA(VLOOKUP(E4,INDIRECT("'"&$K$1&"'!$A$1:$H$550"),8,FALSE)), VLOOKUP(G4,INDIRECT("'"&$K$1&"'!$A$1:$H$550"),8,FALSE), VLOOKUP(E4,INDIRECT("'"&$K$1&"'!$A$1:$H$550"),8,FALSE)))) -> Fall2016 | I4: =IF(AND(ISNA(VLOOKUP(E4,INDIRECT("'"&$K$1&"'!$A$1:$H$550"),5,FALSE)), ISNA(VLOOKUP(G4,INDIRECT("'"&$K$1&"'!$A$1:$H$550"),5,FALSE))), "0", (IF(ISNA(VLOOKUP(E4,INDIRECT("'"&$K$1&"'!$A$1:$H$550"),5,FALSE)), VLOOKUP(G4,INDIRECT("'"&$K$1&"'!$A$1:$H$550"),5,FALSE), VLOOKUP(E4,INDIRECT("'"&$K$1&"'!$A$1:$H$550"),5,FALSE)))) -> 3
A5: COMP.1030L | B5: or | C5: 91.103 | D5: 1 | E5: COMP.1030L | F5: or | G5: 91.103 | H5: =IF(AND(ISNA(VLOOKUP(E5,INDIRECT("'"&$K$1&"'!$A$1:$H$550"),8,FALSE)), ISNA(VLOOKUP(G5,INDIRECT("'"&$K$1&"'!$A$1:$H$550"),8,FALSE))), "Not Found", (IF(ISNA(VLOOKUP(E5,INDIRECT("'"&$K$1&"'!$A$1:$H$550"),8,FALSE)), VLOOKUP(G5,INDIRECT("'"&$K$1&"'!$A$1:$H$550"),8,FALSE), VLOOKUP(E5,INDIRECT("'"&$K$1&"'!$A$1:$H$550"),8,FALSE)))) -> Fall2016 | I5: 1
A6: COMP.1020 | B6: or | C6: 91.102 | D6: 3 | E6: COMP.1020 | F6: or | G6: 91.102 | H6: Spring2017 | I6: =IF(AND(ISNA(VLOOKUP(E6,INDIRECT("'"&$K$1&"'!$A$1:$H$550"),5,FALSE)), ISNA(VLOOKUP(G6,INDIRECT("'"&$K$1&"'!$A$1:$H$550"),5,FALSE))), "0", (IF(ISNA(VLOOKUP(E6,INDIRECT("'"&$K$1&"'!$A$1:$H$550"),5,FALSE)), VLOOKUP(G6,INDIRECT("'"&$K$1&"'!$A$1:$H$550"),5,FALSE), VLOOKUP(E6,INDIRECT("'"&$K$1&"'!$A$1:$H$550"),5,FALSE)))) -> 3
A7: COMP.1040L | B7: or | C7: 91.104 | D7: 1 | E7: COMP.1040L | F7: or | G7: 91.104 | H7: Spring2017 | I7: =IF(AND(ISNA(VLOOKUP(E7,INDIRECT("'"&$K$1&"'!$A$1:$H$550"),5,FALSE)), ISNA(VLOOKUP(G7,INDIRECT("'"&$K$1&"'!$A$1:$H$550"),5,FALSE))), "0", (IF(ISNA(VLOOKUP(E7,INDIRECT("'"&$K$1&"'!$A$1:$H$550"),5,FALSE)), VLOOKUP(G7,INDIRECT("'"&$K$1&"'!$A$1:$H$550"),5,FALSE), VLOOKUP(E7,INDIRECT("'"&$K$1&"'!$A$1:$H$550"),5,FALSE)))) -> 1
A8: COMP.2010 | B8: or | C8: 91.201 | D8: 3 | E8: COMP.2010 | F8: or | G8: 91.201 | H8: Fall2017 | I8: 3
A9: COMP.2010L | D9: 1 | E9: COMP.2010L | H9: =IF(AND(ISNA(VLOOKUP(E9,INDIRECT("'"&$K$1&"'!$A$1:$H$550"),8,FALSE)), ISNA(VLOOKUP(G9,INDIRECT("'"&$K$1&"'!$A$1:$H$550"),8,FALSE))), "Not Found", (IF(ISNA(VLOOKUP(E9,INDIRECT("'"&$K$1&"'!$A$1:$H$550"),8,FALSE)), VLOOKUP(G9,INDIRECT("'"&$K$1&"'!$A$1:$H$550"),8,FALSE), VLOOKUP(E9,INDIRECT("'"&$K$1&"'!$A$1:$H$550"),8,FALSE)))) -> Fall2017 | I9: =IF(AND(ISNA(VLOOKUP(E9,INDIRECT("'"&$K$1&"'!$A$1:$H$550"),5,FALSE)), ISNA(VLOOKUP(G9,INDIRECT("'"&$K$1&"'!$A$1:$H$550"),5,FALSE))), "0", (IF(ISNA(VLOOKUP(E9,INDIRECT("'"&$K$1&"'!$A$1:$H$550"),5,FALSE)), VLOOKUP(G9,INDIRECT("'"&$K$1&"'!$A$1:$H$550"),5,FALSE), VLOOKUP(E9,INDIRECT("'"&$K$1&"'!$A$1:$H$550"),5,FALSE)))) -> 1
A10: COMP.2030 | B10: or | C10: 91.203 | D10: 3 | E10: COMP.2030 | F10: or | G10: 91.203 | H10: Fall2017 | I10: 3
A11: COMP.2030L | D11: 1 | E11: COMP.2030L | H11: =IF(AND(ISNA(VLOOKUP(E11,INDIRECT("'"&$K$1&"'!$A$1:$H$550"),8,FALSE)), ISNA(VLOOKUP(G11,INDIRECT("'"&$K$1&"'!$A$1:$H$550"),8,FALSE))), "Not Found", (IF(ISNA(VLOOKUP(E11,INDIRECT("'"&$K$1&"'!$A$1:$H$550"),8,FALSE)), VLOOKUP(G11,INDIRECT("'"&$K$1&"'!$A$1:$H$550"),8,FALSE), VLOOKUP(E11,INDIRECT("'"&$K$1&"'!$A$1:$H$550"),8,FALSE)))) -> Fall2017 | I11: =IF(AND(ISNA(VLOOKUP(E11,INDIRECT("'"&$K$1&"'!$A$1:$H$550"),5,FALSE)), ISNA(VLOOKUP(G11,INDIRECT("'"&$K$1&"'!$A$1:$H$550"),5,FALSE))), "0", (IF(ISNA(VLOOKUP(E11,INDIRECT("'"&$K$1&"'!$A$1:$H$550"),5,FALSE)), VLOOKUP(G11,INDIRECT("'"&$K$1&"'!$A$1:$H$550"),5,FALSE), VLOOKUP(E11,INDIRECT("'"&$K$1&"'!$A$1:$H$550"),5,FALSE)))) -> 1
A12: COMP.2040 | B12: or | C12: 91.204 | D12: 3 | E12: COMP.2040 | F12: or | G12: 91.204 | H12: Spring2018 | I12: 3
A13: COMP.3010 | B13: or | C13: 91.301 | D13: 3 | E13: COMP.3010 | F13: or | G13: 91.301 | H13: Spring2019 | I13: 3
A14: COMP.3040 | B14: or | C14: 91.304 | D14: 3 | E14: COMP.3040 | F14: or | G14: 91.304 | H14: Fall2018 | I14: 3
A15: COMP.3050 | B15: or | C15: 91.305 | D15: 3 | E15: COMP.3050 | F15: or | G15: 91.305 | H15: Fall2018 | I15: 3
A16: COMP.3080 | B16: or | C16: 91.308 | D16: 3 | E16: COMP.3080 | F16: or | G16: 91.308 | H16: Spring2019 | I16: 3
A17: COMP.4040 | B17: or | C17: 91.404 | D17: 3 | E17: COMP.4040 | F17: or | G17: 91.404 | H17: Fall2019 | I17: 3
A18: Required CS Electives
A19: CSE-1 | D19: 3 | E19: =IF(ISNA(INDEX(INDIRECT("'"&$K$1&"'!$A$1:$A$550"), MATCH(A19,INDIRECT("'"&$K$1&"'!$B$1:$B$550"),0))), "Not Found", (INDEX(INDIRECT("'"&$K$1&"'!$A$1:$A$550"), MATCH(A19,INDIRECT("'"&$K$1&"'!$B$1:$B$550"),0)))) -> COMP.3/4xxx-1 | H19: =IF(ISNA(VLOOKUP(E19,INDIRECT("'"&$K$1&"'!$A$1:$H$550"),8,FALSE)), "Not Found", VLOOKUP(E19,INDIRECT("'"&$K$1&"'!$A$1:$H$550"),8,FALSE)) -> Fall2019 | I19: =IF(ISNA(VLOOKUP(E19,INDIRECT("'"&$K$1&"'!$A$1:$H$550"),5,FALSE)), "0", VLOOKUP(E19,INDIRECT("'"&$K$1&"'!$A$1:$H$550"),5,FALSE)) -> 3
A20: CSE-2 | D20: 3 | E20: COMP.3/4xxx-2 | H20: Spring2020 | I20: 3
A21: CS Project Course
A22: Sr.Prj-1 | D22: 3 | E22: COMP.4xxx-p1 | H22: Fall2019 | I22: 3
A23: Sr.Prj-2 | D23: 3 | E23: COMP.4xxx-p2 | H23: Spring2020 | I23: 3
A25: Required Supporting Technical Course
A26: Requirement | D26: Credits | E26: Taken | H26: Semester | I26: Credits
A27: Electrical Engineering
A28: EECE.2650 | B28: or | C28: 16.265 | D28: 3 | E28: EECE.2650 | F28: or | G28: 16.265 | H28: =IF(AND(ISNA(VLOOKUP(E28,INDIRECT("'"&$K$1&"'!$A$1:$H$550"),8,FALSE)), ISNA(VLOOKUP(G28,INDIRECT("'"&$K$1&"'!$A$1:$H$550"),8,FALSE))), "Not Found", (IF(ISNA(VLOOKUP(E28,INDIRECT("'"&$K$1&"'!$A$1:$H$550"),8,FALSE)), VLOOKUP(G28,INDIRECT("'"&$K$1&"'!$A$1:$H$550"),8,FALSE), VLOOKUP(E28,INDIRECT("'"&$K$1&"'!$A$1:$H$550"),8,FALSE)))) -> Fall2017 | I28: =IF(AND(ISNA(VLOOKUP(E28,INDIRECT("'"&$K$1&"'!$A$1:$H$550"),5,FALSE)), ISNA(VLOOKUP(G28,INDIRECT("'"&$K$1&"'!$A$1:$H$550"),5,FALSE))), "0", (IF(ISNA(VLOOKUP(E28,INDIRECT("'"&$K$1&"'!$A$1:$H$550"),5,FALSE)), VLOOKUP(G28,INDIRECT("'"&$K$1&"'!$A$1:$H$550"),5,FALSE), VLOOKUP(E28,INDIRECT("'"&$K$1&"'!$A$1:$H$550"),5,FALSE)))) -> 3
A29: Mathematics
A30: MATH.1310 | B30: or | C30: 92.131 | D30: 4 | E30: MATH.1310 | F30: or | G30: 92.131 | H30: =IF(AND(ISNA(VLOOKUP(E30,INDIRECT("'"&$K$1&"'!$A$1:$H$550"),8,FALSE)), ISNA(VLOOKUP(G30,INDIRECT("'"&$K$1&"'!$A$1:$H$550"),8,FALSE))), "Not Found", (IF(ISNA(VLOOKUP(E30,INDIRECT("'"&$K$1&"'!$A$1:$H$550"),8,FALSE)), VLOOKUP(G30,INDIRECT("'"&$K$1&"'!$A$1:$H$550"),8,FALSE), VLOOKUP(E30,INDIRECT("'"&$K$1&"'!$A$1:$H$550"),8,FALSE)))) -> Fall2016 | I30: =IF(AND(ISNA(VLOOKUP(E30,INDIRECT("'"&$K$1&"'!$A$1:$H$550"),5,FALSE)), ISNA(VLOOKUP(G30,INDIRECT("'"&$K$1&"'!$A$1:$H$550"),5,FALSE))), "0", (IF(ISNA(VLOOKUP(E30,INDIRECT("'"&$K$1&"'!$A$1:$H$550"),5,FALSE)), VLOOKUP(G30,INDIRECT("'"&$K$1&"'!$A$1:$H$550"),5,FALSE), VLOOKUP(E30,INDIRECT("'"&$K$1&"'!$A$1:$H$550"),5,FALSE)))) -> 4
A31: MATH.1320 | B31: or | C31: 92.132 | D31: 4 | E31: MATH.1320 | F31: or | G31: 92.132 | H31: Spring2017 | I31: 4
A32: MATH.3210 | B32: or | C32: 92.321 | D32: 3 | E32: MATH.3210 | F32: or | G32: 92.321 | H32: Fall2017 | I32: 3
A33: MATH.3220 | B33: or | C33: 92.322 | D33: 3 | E33: MATH.3220 | F33: or | G33: 92.322 | H33: Spring2018 | I33: 3
A34: MATH.3860 | B34: or | C34: 92.386 | D34: 3 | E34: MATH.3860 | F34: or | G34: 92.386 | H34: Spring2018 | I34: 3
A36: Natural Science Electives | L36: Natural Science Electives
A37: Requirement | D37: Credits | E37: Taken | H37: Semester | I37: Credits | L37: List courses you are interested in possibly taking to satisfy this requirement
A38: NS-1 | D38: 3 | E38: =IF(ISNA(INDEX(INDIRECT("'"&$K$1&"'!$A$1:$A$550"), MATCH(A38,INDIRECT("'"&$K$1&"'!$C$1:$C$550"),0))), "Not Found", (INDEX(INDIRECT("'"&$K$1&"'!$A$1:$A$550"), MATCH(A38,INDIRECT("'"&$K$1&"'!$C$1:$C$550"),0)))) -> NS-1 | H38: =IF(ISNA(VLOOKUP(E38,INDIRECT("'"&$K$1&"'!$A$1:$H$550"),8,FALSE)), "Not Found", VLOOKUP(E38,INDIRECT("'"&$K$1&"'!$A$1:$H$550"),8,FALSE)) -> Spring2017 | I38: =IF(ISNA(VLOOKUP(E38,INDIRECT("'"&$K$1&"'!$A$1:$H$550"),5,FALSE)), "0", VLOOKUP(E38,INDIRECT("'"&$K$1&"'!$A$1:$H$550"),5,FALSE)) -> 3 | L38: Course | M38: Title
A39: NS-Lab1 | D39: 1 | E39: =IF(ISNA(INDEX(INDIRECT("'"&$K$1&"'!$A$1:$A$550"), MATCH(A39,INDIRECT("'"&$K$1&"'!$C$1:$C$550"),0))), "Not Found", (INDEX(INDIRECT("'"&$K$1&"'!$A$1:$A$550"), MATCH(A39,INDIRECT("'"&$K$1&"'!$C$1:$C$550"),0)))) -> NS-Lab1 | H39: Spring2017 | I39: 1
A40: NS-2 | D40: 3 | E40: NS-2 | H40: Fall2018 | I40: 3
A41: NS-Lab2 | D41: 1 | E41: NS-Lab2 | H41: Fall2018 | I41: 1
A42: NS-3 | D42: 3 | E42: NS-3 | H42: Spring2019 | I42: 3
A43: NS-Lab3 | D43: 1 | E43: NS-Lab3 | H43: Spring2019 | I43: 1
A44: Not Req. | D44: n/a | E44: Not Found | H44: Not Found | I44: 0
A45: Not Req. | D45: n/a | E45: Not Found | H45: Not Found | I45: 0
A51: Technical Electives | L51: Technical Electives
A52: Requirement | D52: Credits | E52: Taken | H52: Semester | I52: Credits | L52: List courses you are interested in possibly taking to satisfy this requirement
A53: TE-1 | D53: 3 | E53: =IF(ISNA(INDEX(INDIRECT("'"&$K$1&"'!$A$1:$A$550"), MATCH(A53,INDIRECT("'"&$K$1&"'!$B$1:$B$550"),0))), "Not Found", (INDEX(INDIRECT("'"&$K$1&"'!$A$1:$A$550"), MATCH(A53,INDIRECT("'"&$K$1&"'!$B$1:$B$550"),0)))) -> TechElec-1 | H53: =IF(ISNA(VLOOKUP(E53,INDIRECT("'"&$K$1&"'!$A$1:$H$550"),8,FALSE)), "Not Found", VLOOKUP(E53,INDIRECT("'"&$K$1&"'!$A$1:$H$550"),8,FALSE)) -> Fall2019 | I53: =IF(ISNA(VLOOKUP(E53,INDIRECT("'"&$K$1&"'!$A$1:$H$550"),5,FALSE)), "0", VLOOKUP(E53,INDIRECT("'"&$K$1&"'!$A$1:$H$550"),5,FALSE)) -> 3 | L53: Course | M53: Title
A54: TE-2 | D54: 3 | E54: TechElec-2 | H54: Spring2020 | I54: 3
A55: Not Req. | D55: n/a | E55: Not Found | H55: Not Found | I55: 0
A56: Not Req. | D56: n/a | E56: Not Found | H56: Not Found | I56: 0
A57: Not Req. | D57: n/a | E57: Not Found | H57: Not Found | I57: 0
A63: Free Electives (FE) | L63: Free Electives
A64: Requirement | D64: Credits | E64: Taken | H64: Semester | I64: Credits | L64: List free electives you are interested in taking. These cannot be below the level of a
A65: FE-1 | D65: 3 | E65: =IF(ISNA(INDEX(INDIRECT("'"&$K$1&"'!$A$1:$A$550"), MATCH("*"&A65&"*",INDIRECT("'"&$K$1&"'!$B$1:$B$550"),0))), "Not Found", (INDEX(INDIRECT("'"&$K$1&"'!$A$1:$A$550"), MATCH("*"&A65&"*",INDIRECT("'"&$K$1&"'!$B$1:$B$550"),0)))) -> FE-1 | H65: =IF(ISNA(VLOOKUP(E65,INDIRECT("'"&$K$1&"'!$A$1:$H$550"),8,FALSE)), "Not Found", VLOOKUP(E65,INDIRECT("'"&$K$1&"'!$A$1:$H$550"),8,FALSE)) -> Spring2018 | I65: =IF(ISNA(VLOOKUP(E65,INDIRECT("'"&$K$1&"'!$A$1:$H$550"),5,FALSE)), "0", VLOOKUP(E65,INDIRECT("'"&$K$1&"'!$A$1:$H$550"),5,FALSE)) -> 3 | L65: required course. Specific courses may be recommended for different CS tracks.
A66: FE-2 | D66: 3 | E66: =IF(ISNA(INDEX(INDIRECT("'"&$K$1&"'!$A$1:$A$550"), MATCH("*"&A66&"*",INDIRECT("'"&$K$1&"'!$B$1:$B$550"),0))), "Not Found", (INDEX(INDIRECT("'"&$K$1&"'!$A$1:$A$550"), MATCH("*"&A66&"*",INDIRECT("'"&$K$1&"'!$B$1:$B$550"),0)))) -> FE-2 | H66: Fall2018 | I66: 3
A67: FE-3 | D67: 3 | E67: FE-3 | H67: Spring2019 | I67: 3
A68: FE-4 | D68: 3 | E68: FE-4 | H68: Fall2019 | I68: 3
A69: Not Req. | D69: n/a | E69: Not Found | H69: Not Found | I69: 0
A70: Not Req. | D70: n/a | E70: Not Found | H70: Not Found | I70: 0
A72: Required FE Credits | H72: Projected Credits
D73: =120-SUM(D4:D45, D53:D57, D86:D87,D91:D97) -> 12 | I73: =SUM(I65:I71) -> 12
A75: Oral & Written Communication
A76: Requirement | D76: Credits | E76: Taken | H76: Semester | I76: Credits
A77: ENGL.2200 | B77: or | C77: 42.220 | D77: 3 | E77: ENGL.2200 | F77: or | G77: 42.220 | H77: =IF(AND(ISNA(VLOOKUP(E77,INDIRECT("'"&$K$1&"'!$A$1:$H$550"),8,FALSE)), ISNA(VLOOKUP(G77,INDIRECT("'"&$K$1&"'!$A$1:$H$550"),8,FALSE))), "Not Found", (IF(ISNA(VLOOKUP(E77,INDIRECT("'"&$K$1&"'!$A$1:$H$550"),8,FALSE)), VLOOKUP(G77,INDIRECT("'"&$K$1&"'!$A$1:$H$550"),8,FALSE), VLOOKUP(E77,INDIRECT("'"&$K$1&"'!$A$1:$H$550"),8,FALSE)))) -> Spring2019 | I77: =IF(AND(ISNA(VLOOKUP(E77,INDIRECT("'"&$K$1&"'!$A$1:$H$550"),5,FALSE)), ISNA(VLOOKUP(G77,INDIRECT("'"&$K$1&"'!$A$1:$H$550"),5,FALSE))), "0", (IF(ISNA(VLOOKUP(E77,INDIRECT("'"&$K$1&"'!$A$1:$H$550"),5,FALSE)), VLOOKUP(G77,INDIRECT("'"&$K$1&"'!$A$1:$H$550"),5,FALSE), VLOOKUP(E77,INDIRECT("'"&$K$1&"'!$A$1:$H$550"),5,FALSE)))) -> 3
A79: CS Ethics Requirement
A80: Requirement | D80: Credits | E80: Taken | H80: Semester | I80: Credits
A81: CSET | D81: 3 | E81: =IF(ISNA(INDEX(INDIRECT("'"&$K$1&"'!$A$1:$A$550"), MATCH(A81,INDIRECT("'"&$K$1&"'!$C$1:$C$550"),0))), "Not Found", (INDEX(INDIRECT("'"&$K$1&"'!$A$1:$A$550"), MATCH(A81,INDIRECT("'"&$K$1&"'!$C$1:$C$550"),0)))) -> AH-2 | H81: =IF(ISNA(VLOOKUP(E81,INDIRECT("'"&$K$1&"'!$A$1:$H$550"),8,FALSE)), "Not Found", VLOOKUP(E81,INDIRECT("'"&$K$1&"'!$A$1:$H$550"),8,FALSE)) -> Spring2018 | I81: =IF(ISNA(VLOOKUP(E81,INDIRECT("'"&$K$1&"'!$A$1:$H$550"),5,FALSE)), "0", VLOOKUP(E81,INDIRECT("'"&$K$1&"'!$A$1:$H$550"),5,FALSE)) -> 3
A83: Breadth of Knowledge | L83: Breadth of Knowledge Requirements
A84: Requirement | D84: Credits | E84: Taken | H84: Semester | I84: Credits | L84: Select courses you are interested in taking to satisfy this Requirements.
A85: College Writing | L85: Area | M85: Title
A86: CW-1 | D86: 3 | E86: =IF(ISNA(INDEX(INDIRECT("'"&$K$1&"'!$A$1:$A$550"), MATCH(A86,INDIRECT("'"&$K$1&"'!$B$1:$B$550"),0))), "Not Found", (INDEX(INDIRECT("'"&$K$1&"'!$A$1:$A$550"), MATCH(A86,INDIRECT("'"&$K$1&"'!$B$1:$B$550"),0)))) -> ENGL.1010 | H86: =IF(ISNA(VLOOKUP(E86,INDIRECT("'"&$K$1&"'!$A$1:$H$550"),8,FALSE)), "Not Found", VLOOKUP(E86,INDIRECT("'"&$K$1&"'!$A$1:$H$550"),8,FALSE)) -> Transfer/AP | I86: =IF(ISNA(VLOOKUP(E86,INDIRECT("'"&$K$1&"'!$A$1:$H$550"),5,FALSE)), "0", VLOOKUP(E86,INDIRECT("'"&$K$1&"'!$A$1:$H$550"),5,FALSE)) -> 3
A87: CW-2 | D87: 3 | E87: ENGL.1020 | H87: Fall2016 | I87: 3
A88: Mathematics
A89: MA | D89: 4 | E89: =IF(ISNA(INDEX(INDIRECT("'"&$K$1&"'!$A$1:$A$550"), MATCH(A89,INDIRECT("'"&$K$1&"'!$B$1:$B$550"),0))), "Not Found", (INDEX(INDIRECT("'"&$K$1&"'!$A$1:$A$550"), MATCH(A89,INDIRECT("'"&$K$1&"'!$B$1:$B$550"),0)))) -> MATH.1310 | H89: =IF(ISNA(VLOOKUP(E89,INDIRECT("'"&$K$1&"'!$A$1:$H$550"),8,FALSE)), "Not Found", VLOOKUP(E89,INDIRECT("'"&$K$1&"'!$A$1:$H$550"),8,FALSE)) -> Fall2016 | I89: =IF(ISNA(VLOOKUP(E89,INDIRECT("'"&$K$1&"'!$A$1:$H$550"),5,FALSE)), "0", VLOOKUP(E89,INDIRECT("'"&$K$1&"'!$A$1:$H$550"),5,FALSE)) -> 4
A90: Arts & Humanities
A91: AH-1 | D91: 3 | E91: =IF(ISNA(INDEX(INDIRECT("'"&$K$1&"'!$A$1:$A$550"), MATCH("*"&A91&"*",INDIRECT("'"&$K$1&"'!$B$1:$B$550"),0))), "Not Found", (INDEX(INDIRECT("'"&$K$1&"'!$A$1:$A$550"), MATCH("*"&A91&"*",INDIRECT("'"&$K$1&"'!$B$1:$B$550"),0)))) -> AH-1 | H91: =IF(ISNA(VLOOKUP(E91,INDIRECT("'"&$K$1&"'!$A$1:$H$550"),8,FALSE)), "Not Found", VLOOKUP(E91,INDIRECT("'"&$K$1&"'!$A$1:$H$550"),8,FALSE)) -> Spring2017 | I91: =IF(ISNA(VLOOKUP(E91,INDIRECT("'"&$K$1&"'!$A$1:$H$550"),5,FALSE)), "0", VLOOKUP(E91,INDIRECT("'"&$K$1&"'!$A$1:$H$550"),5,FALSE)) -> 3
A92: AH-2 | D92: 3 | E92: =IF(ISNA(INDEX(INDIRECT("'"&$K$1&"'!$A$1:$A$550"), MATCH("*"&A92&"*",INDIRECT("'"&$K$1&"'!$B$1:$B$550"),0))), "Not Found", (INDEX(INDIRECT("'"&$K$1&"'!$A$1:$A$550"), MATCH("*"&A92&"*",INDIRECT("'"&$K$1&"'!$B$1:$B$550"),0)))) -> AH-2 | H92: Spring2018 | I92: 3
A93: AH-3 | D93: 3 | E93: ENGL.2200 | H93: Spring2019 | I93: 3
A94: Social Sciences
A95: SS-1 | D95: 3 | E95: =IF(ISNA(INDEX(INDIRECT("'"&$K$1&"'!$A$1:$A$550"), MATCH("*"&A95&"*",INDIRECT("'"&$K$1&"'!$B$1:$B$550"),0))), "Not Found", (INDEX(INDIRECT("'"&$K$1&"'!$A$1:$A$550"), MATCH("*"&A95&"*",INDIRECT("'"&$K$1&"'!$B$1:$B$550"),0)))) -> ECON.2010 | H95: =IF(ISNA(VLOOKUP(E95,INDIRECT("'"&$K$1&"'!$A$1:$H$550"),8,FALSE)), "Not Found", VLOOKUP(E95,INDIRECT("'"&$K$1&"'!$A$1:$H$550"),8,FALSE)) -> Transfer/AP | I95: =IF(ISNA(VLOOKUP(E95,INDIRECT("'"&$K$1&"'!$A$1:$H$550"),5,FALSE)), "0", VLOOKUP(E95,INDIRECT("'"&$K$1&"'!$A$1:$H$550"),5,FALSE)) -> 3
A96: SS-2 | D96: 3 | E96: SOCI.2320 | H96: Fall2016 | I96: 3
A97: SS-3 | D97: 3 | E97: SS-3 | H97: Spring2020 | I97: 3
A98: Sciences with Lab
A99: SC-1 | D99: 3 | E99: =IF(ISNA(INDEX(INDIRECT("'"&$K$1&"'!$A$1:$A$550"), MATCH(A99,INDIRECT("'"&$K$1&"'!$B$1:$B$550"),0))), "Not Found", (INDEX(INDIRECT("'"&$K$1&"'!$A$1:$A$550"), MATCH(A99,INDIRECT("'"&$K$1&"'!$B$1:$B$550"),0)))) -> NS-1 | H99: =IF(ISNA(VLOOKUP(E99,INDIRECT("'"&$K$1&"'!$A$1:$H$550"),8,FALSE)), "Not Found", VLOOKUP(E99,INDIRECT("'"&$K$1&"'!$A$1:$H$550"),8,FALSE)) -> Spring2017 | I99: =IF(ISNA(VLOOKUP(E99,INDIRECT("'"&$K$1&"'!$A$1:$H$550"),5,FALSE)), "0", VLOOKUP(E99,INDIRECT("'"&$K$1&"'!$A$1:$H$550"),5,FALSE)) -> 3
A100: SCL-1 | D100: 1 | E100: NS-Lab1 | H100: Spring2017 | I100: 1
A101: SC-2 | D101: 3 | E101: NS-2 | H101: Fall2018 | I101: 3
A102: SCL-2 | D102: 1 | E102: NS-Lab2 | H102: Fall2018 | I102: 1
A103: STEM
A104: STEM | D104: 3 | E104: =IF(ISNA(INDEX(INDIRECT("'"&$K$1&"'!$A$1:$A$550"), MATCH(A104,INDIRECT("'"&$K$1&"'!$B$1:$B$550"),0))), "Not Found", (INDEX(INDIRECT("'"&$K$1&"'!$A$1:$A$550"), MATCH(A104,INDIRECT("'"&$K$1&"'!$B$1:$B$550"),0)))) -> NS-3 | H104: =IF(ISNA(VLOOKUP(E104,INDIRECT("'"&$K$1&"'!$A$1:$H$550"),8,FALSE)), "Not Found", VLOOKUP(E104,INDIRECT("'"&$K$1&"'!$A$1:$H$550"),8,FALSE)) -> Spring2019 | I104: =IF(ISNA(VLOOKUP(E104,INDIRECT("'"&$K$1&"'!$A$1:$H$550"),5,FALSE)), "0", VLOOKUP(E104,INDIRECT("'"&$K$1&"'!$A$1:$H$550"),5,FALSE)) -> 3
A106: Diversity & Ethics ELOs
A107: Diversity & Cultural Awareness (DV)
A108: DV | D108: 3 | E108: =IF(ISNA(INDEX(INDIRECT("'"&$K$1&"'!$A$1:$A$550"), MATCH("*"&A108&"*",INDIRECT("'"&$K$1&"'!$B$1:$B$550"),0))), "Not Found", (INDEX(INDIRECT("'"&$K$1&"'!$A$1:$A$550"), MATCH("*"&A108&"*",INDIRECT("'"&$K$1&"'!$B$1:$B$550"),0)))) -> SOCI.2320 | H108: =IF(ISNA(VLOOKUP(E108,INDIRECT("'"&$K$1&"'!$A$1:$H$550"),8,FALSE)), "Not Found", VLOOKUP(E108,INDIRECT("'"&$K$1&"'!$A$1:$H$550"),8,FALSE)) -> Fall2016 | I108: =IF(ISNA(VLOOKUP(E108,INDIRECT("'"&$K$1&"'!$A$1:$H$550"),5,FALSE)), "0", VLOOKUP(E108,INDIRECT("'"&$K$1&"'!$A$1:$H$550"),5,FALSE)) -> 3
A109: Social Responsibility & Ethics (ET)
A110: ET | D110: 3 | E110: =IF(ISNA(INDEX(INDIRECT("'"&$K$1&"'!$A$1:$A$550"), MATCH("*"&A110&"*",INDIRECT("'"&$K$1&"'!$B$1:$B$550"),0))), "Not Found", (INDEX(INDIRECT("'"&$K$1&"'!$A$1:$A$550"), MATCH("*"&A110&"*",INDIRECT("'"&$K$1&"'!$B$1:$B$550"),0)))) -> AH-2 | H110: =IF(ISNA(VLOOKUP(E110,INDIRECT("'"&$K$1&"'!$A$1:$H$550"),8,FALSE)), "Not Found", VLOOKUP(E110,INDIRECT("'"&$K$1&"'!$A$1:$H$550"),8,FALSE)) -> Spring2018 | I110: =IF(ISNA(VLOOKUP(E110,INDIRECT("'"&$K$1&"'!$A$1:$H$550"),5,FALSE)), "0", VLOOKUP(E110,INDIRECT("'"&$K$1&"'!$A$1:$H$550"),5,FALSE)) -> 3
A112: Degree Credits | I112: Projected Degree Credits
D113: =SUM(D1:D45,D53:D70,D86,D87,D91:D97) -> 120 | I113: =SUM(I1:I45, I53:I57,I73,I86,I87,I91:I97) -> 120

Sheet Sample_Plan_Data_Science (hidden)
A1: CS: Data Science Graduation Plan
A2: Student Name | C2: Last Name, First Name
A3: University Id (not ss#)
A4: Email
A5: Primary Major (Option) | C5: Computer Science (Data Science Option)
A6: Second Major:
A7: Third Major:
A8: Minors(s):
A9: Special Program(s):
A10: Scholarships:
A12: Matriculation Date (Month/Year) | E12: Sept. 2016
A13: Expected Graduation Date (Month/Year) | E13: June 2020
A15: Minimum Number of Credits Required for Degree(s) | E15: 120
A17: Transfer and AP Credits
A19: Course | B19: Req. | C19: Req. | D19: Course Title | E19: Credits | F19: Grade | G19: Degree Credits | H19: SemesterYear
D20: AP: Physics C - Mechanics | E20: 0 | F20: 2 | H20: Transfer/AP
A21: ECON.2010 | B21: SS-1 | D21: AP: Microeconomics | E21: 3 | F21: 4 | H21: Transfer/AP
A22: ENGL.1010 | B22: CW-1 | D22: English Literature & Composition | E22: 3 | F22: A- | H22: Transfer/AP
H23: Transfer/AP
H24: Transfer/AP
H25: Transfer/AP
H26: Transfer/AP
H27: Transfer/AP
H28: Transfer/AP
H29: Transfer/AP
H30: Transfer/AP
H31: Transfer/AP
H32: Transfer/AP
H33: Transfer/AP
H34: Transfer/AP
H35: Transfer/AP
H36: Transfer/AP
H37: Transfer/AP
H38: Transfer/AP
H39: Transfer/AP
H40: Transfer/AP
H41: Transfer/AP
H42: Transfer/AP
H43: Transfer/AP
H44: Transfer/AP
H45: Transfer/AP
H46: Transfer/AP
H47: Transfer/AP
H48: Transfer/AP
H49: Transfer/AP
H50: Transfer/AP
H51: Transfer/AP
H52: Transfer/AP
H53: Transfer/AP
H54: Transfer/AP
H55: Transfer/AP
H56: Transfer/AP
H57: Transfer/AP
H58: Transfer/AP
H59: Transfer/AP
H60: Transfer/AP
H61: Transfer/AP
H62: Transfer/AP
H63: Transfer/AP
H64: Transfer/AP
H65: Transfer/AP
H66: Transfer/AP
H67: Transfer/AP
H68: Transfer/AP
H69: Transfer/AP
D70: Transfer and AP Credits | E70: =SUM(E20:E69) -> 6 | G70: =SUM(G20:G69) -> 0
D71: Total Credits Earned | E71: =E70 -> 6 | G71: =E15-G70 -> 120
A73: Year 1
A74: Fall | B74: 2016 | C74: =C2 -> Last Name, First Name
A75: Course | B75: =B19 -> Req. | C75: =C19 -> Req. | D75: Course Title | E75: Credits | F75: Grade | G75: Degree Credits | H75: SemesterYear
A76: COMP.1010 | D76: Computing I | E76: 3 | H76: =$A$74&$B$74 -> Fall2016
A77: COMP.1030L | D77: Computing I Lab | E77: 1 | H77: =$A$74&$B$74 -> Fall2016
A78: MATH.1310 | B78: MA | D78: Calculus I | E78: 4 | H78: Fall2016
A79: ENGL.1020 | B79: CW-2 | D79: College Writing II | E79: 3 | H79: Fall2016
A80: SOCI.2320 | B80: SS-2,DV | D80: Social Psychology | E80: 3 | H80: Fall2016
H81: Fall2016
H82: Fall2016
H83: Fall2016
H84: Fall2016
H85: Fall2016
D86: Semester Credits Earned | E86: =SUM(E76:E85) -> 14 | G86: =SUM(G76:G85) -> 0
D87: =D71 -> Total Credits Earned | E87: =E71+E86 -> 20 | G87: =G71-G86 -> 120
A89: Winter | B89: =B74+1 -> 2017 | C89: =C2 -> Last Name, First Name
A90: Course | B90: =B19 -> Req. | D90: Course Title | E90: Credits | F90: Grade | G90: Degree Credits | H90: SemesterYear
H91: =$A$89&$B$89 -> Winter2017
H92: =$A$89&$B$89 -> Winter2017
H93: Winter2017
D94: =D86 -> Semester Credits Earned | E94: =SUM(E91:E93) -> 0 | G94: =SUM(G91:G93) -> 0
D95: =D71 -> Total Credits Earned | E95: =E87+E94 -> 20 | G95: =G87-G94 -> 120
A97: Spring | B97: =B74+1 -> 2017 | C97: =C2 -> Last Name, First Name
A98: Course | B98: =B19 -> Req. | C98: =C19 -> Req. | D98: Course Title | E98: Credits | F98: Grade | G98: Degree Credits | H98: SemesterYear
A99: COMP.1020 | D99: Computing II | E99: 3 | H99: =$A$97&$B$97 -> Spring2017
A100: COMP.1040L | D100: Computer II Lab | E100: 1 | H100: =$A$97&$B$97 -> Spring2017
A101: MATH.1320 | D101: Calculus II | E101: 4 | H101: Spring2017
A102: NS-1 | B102: SC-1 | C102: NS-1 | D102: Natural Science Lecture | E102: 3 | H102: Spring2017
A103: NS-Lab1 | B103: SCL-1 | C103: NS-Lab1 | D103: Natural Science Lab | E103: 1 | H103: Spring2017
A104: AH-1 | B104: AH-1 | D104: Breadth of Knowledge Requirement | E104: 3 | H104: Spring2017
H105: Spring2017
H106: Spring2017
H107: Spring2017
H108: Spring2017
D109: =D86 -> Semester Credits Earned | E109: =SUM(E99:E108) -> 15 | G109: =SUM(G99:G108) -> 0
D110: =D71 -> Total Credits Earned | E110: =E95+E109 -> 35 | G110: =G95-G109 -> 120
A112: Summer | B112: =B74+1 -> 2017 | C112: =C2 -> Last Name, First Name
A113: Course | B113: =B19 -> Req. | C113: =C19 -> Req. | D113: Course Title | E113: Credits | F113: Grade | G113: Degree Credits | H113: SemesterYear
H114: =$A$112&$B$112 -> Summer2017
H115: =$A$112&$B$112 -> Summer2017
H116: Summer2017
H117: Summer2017
H118: Summer2017
H119: Summer2017
D120: =D86 -> Semester Credits Earned | E120: =SUM(E114:E119) -> 0 | G120: =SUM(G114:G119) -> 0
D121: =D71 -> Total Credits Earned | E121: =E110+E120 -> 35 | G121: =G110-G120 -> 120
A123: Year 2
A124: Fall | B124: =B74+1 -> 2017 | C124: =C2 -> Last Name, First Name
A125: Course | B125: =B19 -> Req. | C125: =C19 -> Req. | D125: Course Title | E125: Credits | F125: Grade | G125: Degree Credits | H125: SemesterYear
A126: COMP.2010 | D126: Computing III | E126: 3 | H126: =$A$124&$B$124 -> Fall2017
A127: COMP.2010L | D127: Computing III Lab | E127: 1 | H127: =$A$124&$B$124 -> Fall2017
A128: COMP.2030 | D128: Assembly Language Programming | E128: 3 | H128: Fall2017
A129: COMP.2030L | D129: Assembly Language Programming Lab | E129: 1 | H129: Fall2017
A130: MATH.2210 | D130: Linear Algebra I | E130: 3 | H130: Fall2017
A131: MATH.3210 | D131: Discrete Structures I | E131: 3 | H131: Fall2017
A132: EECE.2650 | D132: Logic Design | E132: 3 | H132: Fall2017
H133: Fall2017
H134: Fall2017
H135: Fall2017
D136: =D86 -> Semester Credits Earned | E136: =SUM(E126:E135) -> 17 | G136: =SUM(G126:G135) -> 0
D137: =D71 -> Total Credits Earned | E137: =E121+E136 -> 52 | G137: =G121-G136 -> 120
A139: Winter | B139: =B74+2 -> 2018 | C139: =C2 -> Last Name, First Name
A140: Course | B140: =B19 -> Req. | C140: =C19 -> Req. | D140: Course Title | E140: Credits | F140: Grade | G140: Degree Credits | H140: SemesterYear
H141: =$A$139&$B$139 -> Winter2018
H142: =$A$139&$B$139 -> Winter2018
H143: Winter2018
D144: =D86 -> Semester Credits Earned | E144: =SUM(E141:E143) -> 0 | G144: =SUM(G141:G143) -> 0
D145: =D71 -> Total Credits Earned | E145: =E137+E144 -> 52 | G145: =G137-G144 -> 120
A147: Spring | B147: =B89+1 -> 2018 | C147: =C2 -> Last Name, First Name
A148: Course | B148: =B19 -> Req. | C148: =C19 -> Req. | D148: Course Title | E148: Credits | F148: Grade | G148: Degree Credits | H148: SemesterYear
A149: COMP.2040 | D149: Computing IV | E149: 3 | H149: =$A$147&$B$147 -> Spring2018
A150: MATH.2220 | D150: Linear Algebra II | E150: 3 | H150: =$A$147&$B$147 -> Spring2018
A151: MATH.3220 | D151: Discrete Structures II | E151: 3 | H151: Spring2018
A152: MATH.3860 | D152: Probability and Statistics I | E152: 3 | H152: Spring2018
A153: AH-2 | B153: AH-2,ET | C153: CSET | D153: Breadth of Knowledge Requirement | E153: 3 | H153: Spring2018
H154: Spring2018
H155: Spring2018
H156: Spring2018
H157: Spring2018
H158: Spring2018
D159: =D86 -> Semester Credits Earned | E159: =SUM(E149:E158) -> 15 | G159: =SUM(G149:G158) -> 0
D160: =D71 -> Total Credits Earned | E160: =E145+E159 -> 67 | G160: =G145-G159 -> 120
A162: Summer | B162: =B74+2 -> 2018 | C162: =C2 -> Last Name, First Name
A163: Course | B163: =B19 -> Req. | C163: =C19 -> Req. | D163: Course Title | E163: Credits | F163: Grade | G163: Degree Credits | H163: SemesterYear
H164: =$A$162&$B$162 -> Summer2018
H165: =$A$162&$B$162 -> Summer2018
H166: Summer2018
H167: Summer2018
H168: Summer2018
H169: Summer2018
D170: =D86 -> Semester Credits Earned | E170: =SUM(E164:E169) -> 0 | G170: =SUM(G163:G169) -> 0
D171: =D71 -> Total Credits Earned | E171: =E160+E170 -> 67 | G171: =G160-G170 -> 120
A173: Year 3
A174: Fall | B174: =B74+2 -> 2018 | C174: =C2 -> Last Name, First Name
A175: Course | B175: =B19 -> Req. | C175: =C19 -> Req. | D175: Course Title | E175: Credits | F175: Grade | G175: Degree Credits | H175: SemesterYear
A176: COMP.3040 | D176: Foundations of Computer Science | E176: 3 | H176: =$A$174&$B$174 -> Fall2018
A177: COMP.3050 | D177: Computer Architecture | E177: 3 | H177: =$A$174&$B$174 -> Fall2018
A178: MATH.2310 | D178: Calculus III | E178: 4 | H178: Fall2018
A179: ENGL.2200 | B179: AH-3 | D179: Oral & Written Communication for CS | E179: 3 | H179: Fall2018
A180: FE-1 | B180: FE-1 | D180: Free Elective | E180: 3 | H180: Fall2018
H181: Fall2018
H182: Fall2018
H183: Fall2018
H184: Fall2018
H185: Fall2018
D186: =D86 -> Semester Credits Earned | E186: =SUM(E176:E185) -> 16 | G186: =SUM(G176:G185) -> 0
D187: =D71 -> Total Credits Earned | E187: =E171+E186 -> 83 | G187: =G171-G186 -> 120
A189: Winter | B189: =B74+3 -> 2019 | C189: =C2 -> Last Name, First Name
A190: Course | B190: =B19 -> Req. | C190: =C19 -> Req. | D190: Course Title | E190: Credits | F190: Grade | G190: Degree Credits | H190: SemesterYear
H191: =$A$189&$B$189 -> Winter2019
H192: =$A$189&$B$189 -> Winter2019
H193: Winter2019
D194: =D86 -> Semester Credits Earned | E194: =SUM(E191:E193) -> 0 | G194: =SUM(G191:G193) -> 0 | H194: =SUM(H191:H193) -> 0
D195: =D71 -> Total Credits Earned | E195: =E187+E194 -> 83 | G195: =G187-G194 -> 120
A197: Spring | B197: =B74+3 -> 2019 | C197: =C2 -> Last Name, First Name
A198: Course | B198: =B19 -> Req. | C198: =C19 -> Req. | D198: Course Title | E198: Credits | F198: Grade | G198: Degree Credits | H198: SemesterYear
A199: COMP.3010 | D199: Organization of Programming Languages | E199: 3 | H199: =$A$197&$B$197 -> Spring2019
A200: COMP.3080 | D200: Introduction to Operating Systems | E200: 3 | H200: =$A$197&$B$197 -> Spring2019
A201: COMP.4220 | C201: Sr.Prj-1 | D201: Machine Learning | E201: 3 | H201: Spring2019
A202: TE-1 | B202: TE-1 | D202: Technical Elective | E202: 3 | H202: Spring2019
H203: Spring2019
H204: Spring2019
H205: Spring2019
H206: Spring2019
H207: Spring2019
H208: Spring2019
D209: =D86 -> Semester Credits Earned | E209: =SUM(E199:E208) -> 12 | G209: =SUM(G199:G208) -> 0
D210: =D71 -> Total Credits Earned | E210: =E195+E209 -> 95 | G210: =G195-G209 -> 120
A212: Summer | B212: =B74+3 -> 2019 | C212: =C2 -> Last Name, First Name
A213: Course | B213: =B19 -> Req. | C213: =C19 -> Req. | D213: Course Title | E213: Credits | F213: Grade | G213: Degree Credits | H213: SemesterYear
H214: =$A$212&$B$212 -> Summer2019
H215: =$A$212&$B$212 -> Summer2019
H216: Summer2019
... 150 more rows

Sheet Sample_Checklist_Data Science (hidden)
A1: Checklist - Data Science | K1: Sample_Plan_Data_Science | L1: Required Data Science Electives
A2: Requirement | D2: Credits | E2: Taken | H2: Semester | I2: Credits | L2: List courses you are interested in possibly taking. (NOTE: This is not required.)
A3: Required Computer Science Courses | L3: Course | M3: Title
A4: COMP.1010 | B4: or | C4: 91.101 | D4: 3 | E4: COMP.1010 | F4: or | G4: 91.101 | H4: =IF(AND(ISNA(VLOOKUP(E4,INDIRECT("'"&$K$1&"'!$A$1:$H$550"),8,FALSE)), ISNA(VLOOKUP(G4,INDIRECT("'"&$K$1&"'!$A$1:$H$550"),8,FALSE))), "Not Found", (IF(ISNA(VLOOKUP(E4,INDIRECT("'"&$K$1&"'!$A$1:$H$550"),8,FALSE)), VLOOKUP(G4,INDIRECT("'"&$K$1&"'!$A$1:$H$550"),8,FALSE), VLOOKUP(E4,INDIRECT("'"&$K$1&"'!$A$1:$H$550"),8,FALSE)))) -> Fall2016 | I4: =IF(AND(ISNA(VLOOKUP(E4,INDIRECT("'"&$K$1&"'!$A$1:$H$550"),5,FALSE)), ISNA(VLOOKUP(G4,INDIRECT("'"&$K$1&"'!$A$1:$H$550"),5,FALSE))), "0", (IF(ISNA(VLOOKUP(E4,INDIRECT("'"&$K$1&"'!$A$1:$H$550"),5,FALSE)), VLOOKUP(G4,INDIRECT("'"&$K$1&"'!$A$1:$H$550"),5,FALSE), VLOOKUP(E4,INDIRECT("'"&$K$1&"'!$A$1:$H$550"),5,FALSE)))) -> 3
A5: COMP.1030L | B5: or | C5: 91.103 | D5: 1 | E5: COMP.1030L | F5: or | G5: 91.103 | H5: =IF(AND(ISNA(VLOOKUP(E5,INDIRECT("'"&$K$1&"'!$A$1:$H$550"),8,FALSE)), ISNA(VLOOKUP(G5,INDIRECT("'"&$K$1&"'!$A$1:$H$550"),8,FALSE))), "Not Found", (IF(ISNA(VLOOKUP(E5,INDIRECT("'"&$K$1&"'!$A$1:$H$550"),8,FALSE)), VLOOKUP(G5,INDIRECT("'"&$K$1&"'!$A$1:$H$550"),8,FALSE), VLOOKUP(E5,INDIRECT("'"&$K$1&"'!$A$1:$H$550"),8,FALSE)))) -> Fall2016 | I5: 1
A6: COMP.1020 | B6: or | C6: 91.102 | D6: 3 | E6: COMP.1020 | F6: or | G6: 91.102 | H6: Spring2017 | I6: =IF(AND(ISNA(VLOOKUP(E6,INDIRECT("'"&$K$1&"'!$A$1:$H$550"),5,FALSE)), ISNA(VLOOKUP(G6,INDIRECT("'"&$K$1&"'!$A$1:$H$550"),5,FALSE))), "0", (IF(ISNA(VLOOKUP(E6,INDIRECT("'"&$K$1&"'!$A$1:$H$550"),5,FALSE)), VLOOKUP(G6,INDIRECT("'"&$K$1&"'!$A$1:$H$550"),5,FALSE), VLOOKUP(E6,INDIRECT("'"&$K$1&"'!$A$1:$H$550"),5,FALSE)))) -> 3
A7: COMP.1040L | B7: or | C7: 91.104 | D7: 1 | E7: COMP.1040L | F7: or | G7: 91.104 | H7: Spring2017 | I7: =IF(AND(ISNA(VLOOKUP(E7,INDIRECT("'"&$K$1&"'!$A$1:$H$550"),5,FALSE)), ISNA(VLOOKUP(G7,INDIRECT("'"&$K$1&"'!$A$1:$H$550"),5,FALSE))), "0", (IF(ISNA(VLOOKUP(E7,INDIRECT("'"&$K$1&"'!$A$1:$H$550"),5,FALSE)), VLOOKUP(G7,INDIRECT("'"&$K$1&"'!$A$1:$H$550"),5,FALSE), VLOOKUP(E7,INDIRECT("'"&$K$1&"'!$A$1:$H$550"),5,FALSE)))) -> 1
A8: COMP.2010 | B8: or | C8: 91.201 | D8: 3 | E8: COMP.2010 | F8: or | G8: 91.201 | H8: Fall2017 | I8: 3
A9: COMP.2010L | D9: 1 | E9: COMP.2010L | H9: =IF(AND(ISNA(VLOOKUP(E9,INDIRECT("'"&$K$1&"'!$A$1:$H$550"),8,FALSE)), ISNA(VLOOKUP(G9,INDIRECT("'"&$K$1&"'!$A$1:$H$550"),8,FALSE))), "Not Found", (IF(ISNA(VLOOKUP(E9,INDIRECT("'"&$K$1&"'!$A$1:$H$550"),8,FALSE)), VLOOKUP(G9,INDIRECT("'"&$K$1&"'!$A$1:$H$550"),8,FALSE), VLOOKUP(E9,INDIRECT("'"&$K$1&"'!$A$1:$H$550"),8,FALSE)))) -> Fall2017 | I9: =IF(AND(ISNA(VLOOKUP(E9,INDIRECT("'"&$K$1&"'!$A$1:$H$550"),5,FALSE)), ISNA(VLOOKUP(G9,INDIRECT("'"&$K$1&"'!$A$1:$H$550"),5,FALSE))), "0", (IF(ISNA(VLOOKUP(E9,INDIRECT("'"&$K$1&"'!$A$1:$H$550"),5,FALSE)), VLOOKUP(G9,INDIRECT("'"&$K$1&"'!$A$1:$H$550"),5,FALSE), VLOOKUP(E9,INDIRECT("'"&$K$1&"'!$A$1:$H$550"),5,FALSE)))) -> 1
A10: COMP.2030 | B10: or | C10: 91.203 | D10: 3 | E10: COMP.2030 | F10: or | G10: 91.203 | H10: Fall2017 | I10: 3
A11: COMP.2030L | D11: 1 | E11: COMP.2030L | H11: =IF(AND(ISNA(VLOOKUP(E11,INDIRECT("'"&$K$1&"'!$A$1:$H$550"),8,FALSE)), ISNA(VLOOKUP(G11,INDIRECT("'"&$K$1&"'!$A$1:$H$550"),8,FALSE))), "Not Found", (IF(ISNA(VLOOKUP(E11,INDIRECT("'"&$K$1&"'!$A$1:$H$550"),8,FALSE)), VLOOKUP(G11,INDIRECT("'"&$K$1&"'!$A$1:$H$550"),8,FALSE), VLOOKUP(E11,INDIRECT("'"&$K$1&"'!$A$1:$H$550"),8,FALSE)))) -> Fall2017 | I11: =IF(AND(ISNA(VLOOKUP(E11,INDIRECT("'"&$K$1&"'!$A$1:$H$550"),5,FALSE)), ISNA(VLOOKUP(G11,INDIRECT("'"&$K$1&"'!$A$1:$H$550"),5,FALSE))), "0", (IF(ISNA(VLOOKUP(E11,INDIRECT("'"&$K$1&"'!$A$1:$H$550"),5,FALSE)), VLOOKUP(G11,INDIRECT("'"&$K$1&"'!$A$1:$H$550"),5,FALSE), VLOOKUP(E11,INDIRECT("'"&$K$1&"'!$A$1:$H$550"),5,FALSE)))) -> 1
A12: COMP.2040 | B12: or | C12: 91.204 | D12: 3 | E12: COMP.2040 | F12: or | G12: 91.204 | H12: Spring2018 | I12: 3
A13: COMP.3010 | B13: or | C13: 91.301 | D13: 3 | E13: COMP.3010 | F13: or | G13: 91.301 | H13: Spring2019 | I13: 3
A14: COMP.3040 | B14: or | C14: 91.304 | D14: 3 | E14: COMP.3040 | F14: or | G14: 91.304 | H14: Fall2018 | I14: 3
A15: COMP.3050 | B15: or | C15: 91.305 | D15: 3 | E15: COMP.3050 | F15: or | G15: 91.305 | H15: Fall2018 | I15: 3
A16: COMP.3080 | B16: or | C16: 91.308 | D16: 3 | E16: COMP.3080 | F16: or | G16: 91.308 | H16: Spring2019 | I16: 3
A17: COMP.4040 | B17: or | C17: 91.404 | D17: 3 | E17: COMP.4040 | F17: or | G17: 91.404 | H17: Fall2019 | I17: 3
A18: COMP.4220 | B18: or | C18: 91.422 | D18: 3 | E18: COMP.4220 | F18: or | G18: 91.4220 | H18: =IF(AND(ISNA(VLOOKUP(E18,INDIRECT("'"&$K$1&"'!$A$1:$H$550"),8,FALSE)), ISNA(VLOOKUP(G18,INDIRECT("'"&$K$1&"'!$A$1:$H$550"),8,FALSE))), "Not Found", (IF(ISNA(VLOOKUP(E18,INDIRECT("'"&$K$1&"'!$A$1:$H$550"),8,FALSE)), VLOOKUP(G18,INDIRECT("'"&$K$1&"'!$A$1:$H$550"),8,FALSE), VLOOKUP(E18,INDIRECT("'"&$K$1&"'!$A$1:$H$550"),8,FALSE)))) -> Spring2019 | I18: =IF(AND(ISNA(VLOOKUP(E18,INDIRECT("'"&$K$1&"'!$A$1:$H$550"),5,FALSE)), ISNA(VLOOKUP(G18,INDIRECT("'"&$K$1&"'!$A$1:$H$550"),5,FALSE))), "0", (IF(ISNA(VLOOKUP(E18,INDIRECT("'"&$K$1&"'!$A$1:$H$550"),5,FALSE)), VLOOKUP(G18,INDIRECT("'"&$K$1&"'!$A$1:$H$550"),5,FALSE), VLOOKUP(E18,INDIRECT("'"&$K$1&"'!$A$1:$H$550"),5,FALSE)))) -> 3
A19: Upper Level Data Science Elective
A20: DSE-1 | D20: 3 | E20: =IF(ISNA(INDEX(INDIRECT("'"&$K$1&"'!$A$1:$A$550"), MATCH(A20,INDIRECT("'"&$K$1&"'!$B$1:$B$550"),0))), "Not Found", (INDEX(INDIRECT("'"&$K$1&"'!$A$1:$A$550"), MATCH(A20,INDIRECT("'"&$K$1&"'!$B$1:$B$550"),0)))) -> COMP.3/4xxx-1 | H20: =IF(ISNA(VLOOKUP(E20,INDIRECT("'"&$K$1&"'!$A$1:$H$550"),8,FALSE)), "Not Found", VLOOKUP(E20,INDIRECT("'"&$K$1&"'!$A$1:$H$550"),8,FALSE)) -> Fall2019 | I20: =IF(ISNA(VLOOKUP(E20,INDIRECT("'"&$K$1&"'!$A$1:$H$550"),5,FALSE)), "0", VLOOKUP(E20,INDIRECT("'"&$K$1&"'!$A$1:$H$550"),5,FALSE)) -> 3
A21: DSE-2 | D21: 3 | E21: COMP.3/4xxx-3 | H21: Spring2020 | I21: 3
A22: General CS Upper Level Elective
A23: CSE-1 | D23: 3 | E23: COMP.3/4xxx-2 | H23: =IF(ISNA(VLOOKUP(E23,INDIRECT("'"&$K$1&"'!$A$1:$H$550"),8,FALSE)), "Not Found", VLOOKUP(E23,INDIRECT("'"&$K$1&"'!$A$1:$H$550"),8,FALSE)) -> Fall2019 | I23: =IF(ISNA(VLOOKUP(E23,INDIRECT("'"&$K$1&"'!$A$1:$H$550"),5,FALSE)), "0", VLOOKUP(E23,INDIRECT("'"&$K$1&"'!$A$1:$H$550"),5,FALSE)) -> 3
A24: CS Project Course
A25: Sr.Prj-1 | D25: 3 | E25: =IF(ISNA(INDEX(INDIRECT("'"&$K$1&"'!$A$1:$A$550"), MATCH(A25,INDIRECT("'"&$K$1&"'!$C$1:$C$550"),0))), "Not Found", (INDEX(INDIRECT("'"&$K$1&"'!$A$1:$A$550"), MATCH(A25,INDIRECT("'"&$K$1&"'!$C$1:$C$550"),0)))) -> COMP.4220 | H25: =IF(ISNA(VLOOKUP(E25,INDIRECT("'"&$K$1&"'!$A$1:$H$550"),8,FALSE)), "Not Found", VLOOKUP(E25,INDIRECT("'"&$K$1&"'!$A$1:$H$550"),8,FALSE)) -> Spring2019 | I25: =IF(ISNA(VLOOKUP(E25,INDIRECT("'"&$K$1&"'!$A$1:$H$550"),5,FALSE)), "0", VLOOKUP(E25,INDIRECT("'"&$K$1&"'!$A$1:$H$550"),5,FALSE)) -> 3
A26: Sr.Prj-2 | D26: 3 | E26: =IF(ISNA(INDEX(INDIRECT("'"&$K$1&"'!$A$1:$A$550"), MATCH(A26,INDIRECT("'"&$K$1&"'!$C$1:$C$550"),0))), "Not Found", (INDEX(INDIRECT("'"&$K$1&"'!$A$1:$A$550"), MATCH(A26,INDIRECT("'"&$K$1&"'!$C$1:$C$550"),0)))) -> COMP.3/4xxx-1 | H26: =IF(ISNA(VLOOKUP(E26,INDIRECT("'"&$K$1&"'!$A$1:$H$550"),8,FALSE)), "Not Found", VLOOKUP(E26,INDIRECT("'"&$K$1&"'!$A$1:$H$550"),8,FALSE)) -> Fall2019 | I26: =IF(ISNA(VLOOKUP(E26,INDIRECT("'"&$K$1&"'!$A$1:$H$550"),5,FALSE)), "0", VLOOKUP(E26,INDIRECT("'"&$K$1&"'!$A$1:$H$550"),5,FALSE)) -> 3
A28: Required Supporting Technical Course
A29: Requirement | D29: Credits | E29: Taken | H29: Semester | I29: Credits
A30: Electrical Engineering
A31: EECE.2650 | B31: or | C31: 16.265 | D31: 3 | E31: EECE.2650 | F31: or | G31: 16.265 | H31: =IF(AND(ISNA(VLOOKUP(E31,INDIRECT("'"&$K$1&"'!$A$1:$H$550"),8,FALSE)), ISNA(VLOOKUP(G31,INDIRECT("'"&$K$1&"'!$A$1:$H$550"),8,FALSE))), "Not Found", (IF(ISNA(VLOOKUP(E31,INDIRECT("'"&$K$1&"'!$A$1:$H$550"),8,FALSE)), VLOOKUP(G31,INDIRECT("'"&$K$1&"'!$A$1:$H$550"),8,FALSE), VLOOKUP(E31,INDIRECT("'"&$K$1&"'!$A$1:$H$550"),8,FALSE)))) -> Fall2017 | I31: =IF(AND(ISNA(VLOOKUP(E31,INDIRECT("'"&$K$1&"'!$A$1:$H$550"),5,FALSE)), ISNA(VLOOKUP(G31,INDIRECT("'"&$K$1&"'!$A$1:$H$550"),5,FALSE))), "0", (IF(ISNA(VLOOKUP(E31,INDIRECT("'"&$K$1&"'!$A$1:$H$550"),5,FALSE)), VLOOKUP(G31,INDIRECT("'"&$K$1&"'!$A$1:$H$550"),5,FALSE), VLOOKUP(E31,INDIRECT("'"&$K$1&"'!$A$1:$H$550"),5,FALSE)))) -> 3
A32: Mathematics
A33: MATH.1310 | B33: or | C33: 92.131 | D33: 4 | E33: MATH.1310 | F33: or | G33: 92.131 | H33: =IF(AND(ISNA(VLOOKUP(E33,INDIRECT("'"&$K$1&"'!$A$1:$H$550"),8,FALSE)), ISNA(VLOOKUP(G33,INDIRECT("'"&$K$1&"'!$A$1:$H$550"),8,FALSE))), "Not Found", (IF(ISNA(VLOOKUP(E33,INDIRECT("'"&$K$1&"'!$A$1:$H$550"),8,FALSE)), VLOOKUP(G33,INDIRECT("'"&$K$1&"'!$A$1:$H$550"),8,FALSE), VLOOKUP(E33,INDIRECT("'"&$K$1&"'!$A$1:$H$550"),8,FALSE)))) -> Fall2016 | I33: =IF(AND(ISNA(VLOOKUP(E33,INDIRECT("'"&$K$1&"'!$A$1:$H$550"),5,FALSE)), ISNA(VLOOKUP(G33,INDIRECT("'"&$K$1&"'!$A$1:$H$550"),5,FALSE))), "0", (IF(ISNA(VLOOKUP(E33,INDIRECT("'"&$K$1&"'!$A$1:$H$550"),5,FALSE)), VLOOKUP(G33,INDIRECT("'"&$K$1&"'!$A$1:$H$550"),5,FALSE), VLOOKUP(E33,INDIRECT("'"&$K$1&"'!$A$1:$H$550"),5,FALSE)))) -> 4
A34: MATH.1320 | B34: or | C34: 92.132 | D34: 4 | E34: MATH.1320 | F34: or | G34: 92.132 | H34: Spring2017 | I34: 4
A35: MATH.2210 | B35: or | C35: 92.221 | D35: 3 | E35: MATH.2210 | F35: or | G35: 92.221 | H35: =IF(AND(ISNA(VLOOKUP(E35,INDIRECT("'"&$K$1&"'!$A$1:$H$550"),8,FALSE)), ISNA(VLOOKUP(G35,INDIRECT("'"&$K$1&"'!$A$1:$H$550"),8,FALSE))), "Not Found", (IF(ISNA(VLOOKUP(E35,INDIRECT("'"&$K$1&"'!$A$1:$H$550"),8,FALSE)), VLOOKUP(G35,INDIRECT("'"&$K$1&"'!$A$1:$H$550"),8,FALSE), VLOOKUP(E35,INDIRECT("'"&$K$1&"'!$A$1:$H$550"),8,FALSE)))) -> Fall2017 | I35: =IF(AND(ISNA(VLOOKUP(E35,INDIRECT("'"&$K$1&"'!$A$1:$H$550"),5,FALSE)), ISNA(VLOOKUP(G35,INDIRECT("'"&$K$1&"'!$A$1:$H$550"),5,FALSE))), "0", (IF(ISNA(VLOOKUP(E35,INDIRECT("'"&$K$1&"'!$A$1:$H$550"),5,FALSE)), VLOOKUP(G35,INDIRECT("'"&$K$1&"'!$A$1:$H$550"),5,FALSE), VLOOKUP(E35,INDIRECT("'"&$K$1&"'!$A$1:$H$550"),5,FALSE)))) -> 3
A36: MATH.2220 | B36: or | C36: 92.222 | D36: 3 | E36: MATH.2220 | F36: or | G36: 92.222 | H36: Spring2018 | I36: 3
A37: MATH.2310 | B37: or | C37: 92.231 | D37: 4 | E37: MATH.2310 | F37: or | G37: 92.231 | H37: Fall2018 | I37: 4
A38: MATH.3210 | B38: or | C38: 92.321 | D38: 3 | E38: MATH.3210 | F38: or | G38: 92.321 | H38: Fall2017 | I38: 3
A39: MATH.3220 | B39: or | C39: 92.322 | D39: 3 | E39: MATH.3220 | F39: or | G39: 92.322 | H39: Spring2018 | I39: 3
A40: MATH.3860 | B40: or | C40: 92.386 | D40: 3 | E40: MATH.3860 | F40: or | G40: 92.386 | H40: Spring2018 | I40: 3
A42: Natural Science Electives | L42: Natural Science Electives
A43: Requirement | D43: Credits | E43: Taken | H43: Semester | I43: Credits | L43: List courses you are interested in possibly taking to satisfy this requirement
A44: NS-1 | D44: 3 | E44: =IF(ISNA(INDEX(INDIRECT("'"&$K$1&"'!$A$1:$A$550"), MATCH(A44,INDIRECT("'"&$K$1&"'!$C$1:$C$550"),0))), "Not Found", (INDEX(INDIRECT("'"&$K$1&"'!$A$1:$A$550"), MATCH(A44,INDIRECT("'"&$K$1&"'!$C$1:$C$550"),0)))) -> NS-1 | H44: =IF(ISNA(VLOOKUP(E44,INDIRECT("'"&$K$1&"'!$A$1:$H$550"),8,FALSE)), "Not Found", VLOOKUP(E44,INDIRECT("'"&$K$1&"'!$A$1:$H$550"),8,FALSE)) -> Spring2017 | I44: =IF(ISNA(VLOOKUP(E44,INDIRECT("'"&$K$1&"'!$A$1:$H$550"),5,FALSE)), "0", VLOOKUP(E44,INDIRECT("'"&$K$1&"'!$A$1:$H$550"),5,FALSE)) -> 3 | L44: Course | M44: Title
A45: NS-Lab1 | D45: 1 | E45: =IF(ISNA(INDEX(INDIRECT("'"&$K$1&"'!$A$1:$A$550"), MATCH(A45,INDIRECT("'"&$K$1&"'!$C$1:$C$550"),0))), "Not Found", (INDEX(INDIRECT("'"&$K$1&"'!$A$1:$A$550"), MATCH(A45,INDIRECT("'"&$K$1&"'!$C$1:$C$550"),0)))) -> NS-Lab1 | H45: Spring2017 | I45: 1
A46: NS-2 | D46: 3 | E46: NS-2 | H46: Fall2019 | I46: 3
A47: NS-Lab2 | D47: 1 | E47: NS-Lab2 | H47: Fall2019 | I47: 1
A48: NS-3 | D48: 3 | E48: NS-3 | H48: Spring2020 | I48: 3
A49: NS-Lab3 | D49: 1 | E49: NS-Lab3 | H49: Spring2020 | I49: 1
A50: Not Req. | D50: n/a | E50: Not Found | H50: Not Found | I50: 0
A51: Not Req. | D51: n/a | E51: Not Found | H51: Not Found | I51: 0
A57: Technical Elective | L57: Technical Elective
A58: Requirement | D58: Credits | E58: Taken | H58: Semester | I58: Credits | L58: List courses you are interested in possibly taking to satisfy this requirement
A59: TE-1 | D59: 3 | E59: =IF(ISNA(INDEX(INDIRECT("'"&$K$1&"'!$A$1:$A$550"), MATCH(A59,INDIRECT("'"&$K$1&"'!$B$1:$B$550"),0))), "Not Found", (INDEX(INDIRECT("'"&$K$1&"'!$A$1:$A$550"), MATCH(A59,INDIRECT("'"&$K$1&"'!$B$1:$B$550"),0)))) -> TE-1 | H59: =IF(ISNA(VLOOKUP(E59,INDIRECT("'"&$K$1&"'!$A$1:$H$550"),8,FALSE)), "Not Found", VLOOKUP(E59,INDIRECT("'"&$K$1&"'!$A$1:$H$550"),8,FALSE)) -> Spring2019 | I59: =IF(ISNA(VLOOKUP(E59,INDIRECT("'"&$K$1&"'!$A$1:$H$550"),5,FALSE)), "0", VLOOKUP(E59,INDIRECT("'"&$K$1&"'!$A$1:$H$550"),5,FALSE)) -> 3 | L59: Course | M59: Title
A60: Not Req. | D60: n/a | E60: Not Found | H60: Not Found | I60: 0
A66: Free Electives (FE) | L66: Free Electives
A67: Requirement | D67: Credits | E67: Taken | H67: Semester | I67: Credits | L67: List free electives you are interested in taking. These cannot be below the level of a
A68: FE-1 | D68: 3 | E68: =IF(ISNA(INDEX(INDIRECT("'"&$K$1&"'!$A$1:$A$550"), MATCH("*"&A68&"*",INDIRECT("'"&$K$1&"'!$B$1:$B$550"),0))), "Not Found", (INDEX(INDIRECT("'"&$K$1&"'!$A$1:$A$550"), MATCH("*"&A68&"*",INDIRECT("'"&$K$1&"'!$B$1:$B$550"),0)))) -> FE-1 | H68: =IF(ISNA(VLOOKUP(E68,INDIRECT("'"&$K$1&"'!$A$1:$H$550"),8,FALSE)), "Not Found", VLOOKUP(E68,INDIRECT("'"&$K$1&"'!$A$1:$H$550"),8,FALSE)) -> Fall2018 | I68: =IF(ISNA(VLOOKUP(E68,INDIRECT("'"&$K$1&"'!$A$1:$H$550"),5,FALSE)), "0", VLOOKUP(E68,INDIRECT("'"&$K$1&"'!$A$1:$H$550"),5,FALSE)) -> 3 | L68: required course. Specific courses may be recommended for different CS tracks.
A69: FE-2 | D69: 2 | E69: FE-2 | H69: Spring2020 | I69: 2
A70: Not Req. | D70: n/a | E70: Not Found | H70: Not Found | I70: 0
A71: Not Req. | D71: n/a | E71: Not Found | H71: Not Found | I71: 0
A72: Not Req. | D72: n/a | E72: Not Found | H72: Not Found | I72: 0
A73: Not Req. | D73: n/a | E73: Not Found | H73: Not Found | I73: 0
A75: Required FE Credits | H75: Projected Credits
D76: =120-SUM(D4:D23, D31:D59:D60, D89:D90,D94:D100) -> 5 | I76: =SUM(I68:I74) -> 5
A78: Oral & Written Communication
A79: Requirement | D79: Credits | E79: Taken | H79: Semester | I79: Credits
A80: ENGL.2200 | B80: or | C80: 42.220 | D80: 3 | E80: ENGL.2200 | F80: or | G80: 42.220 | H80: =IF(AND(ISNA(VLOOKUP(E80,INDIRECT("'"&$K$1&"'!$A$1:$H$550"),8,FALSE)), ISNA(VLOOKUP(G80,INDIRECT("'"&$K$1&"'!$A$1:$H$550"),8,FALSE))), "Not Found", (IF(ISNA(VLOOKUP(E80,INDIRECT("'"&$K$1&"'!$A$1:$H$550"),8,FALSE)), VLOOKUP(G80,INDIRECT("'"&$K$1&"'!$A$1:$H$550"),8,FALSE), VLOOKUP(E80,INDIRECT("'"&$K$1&"'!$A$1:$H$550"),8,FALSE)))) -> Fall2018 | I80: =IF(AND(ISNA(VLOOKUP(E80,INDIRECT("'"&$K$1&"'!$A$1:$H$550"),5,FALSE)), ISNA(VLOOKUP(G80,INDIRECT("'"&$K$1&"'!$A$1:$H$550"),5,FALSE))), "0", (IF(ISNA(VLOOKUP(E80,INDIRECT("'"&$K$1&"'!$A$1:$H$550"),5,FALSE)), VLOOKUP(G80,INDIRECT("'"&$K$1&"'!$A$1:$H$550"),5,FALSE), VLOOKUP(E80,INDIRECT("'"&$K$1&"'!$A$1:$H$550"),5,FALSE)))) -> 3
A82: CS Ethics Requirement
A83: Requirement | D83: Credits | E83: Taken | H83: Semester | I83: Credits
A84: CSET | D84: 3 | E84: =IF(ISNA(INDEX(INDIRECT("'"&$K$1&"'!$A$1:$A$550"), MATCH(A84,INDIRECT("'"&$K$1&"'!$C$1:$C$550"),0))), "Not Found", (INDEX(INDIRECT("'"&$K$1&"'!$A$1:$A$550"), MATCH(A84,INDIRECT("'"&$K$1&"'!$C$1:$C$550"),0)))) -> AH-2 | H84: =IF(ISNA(VLOOKUP(E84,INDIRECT("'"&$K$1&"'!$A$1:$H$550"),8,FALSE)), "Not Found", VLOOKUP(E84,INDIRECT("'"&$K$1&"'!$A$1:$H$550"),8,FALSE)) -> Spring2018 | I84: =IF(ISNA(VLOOKUP(E84,INDIRECT("'"&$K$1&"'!$A$1:$H$550"),5,FALSE)), "0", VLOOKUP(E84,INDIRECT("'"&$K$1&"'!$A$1:$H$550"),5,FALSE)) -> 3
A86: Breadth of Knowledge | L86: Breadth of Knowledge Requirements
A87: Requirement | D87: Credits | E87: Taken | H87: Semester | I87: Credits | L87: Select courses you are interested in taking to satisfy this Requirements.
A88: College Writing | L88: Area | M88: Title
A89: CW-1 | D89: 3 | E89: =IF(ISNA(INDEX(INDIRECT("'"&$K$1&"'!$A$1:$A$550"), MATCH(A89,INDIRECT("'"&$K$1&"'!$B$1:$B$550"),0))), "Not Found", (INDEX(INDIRECT("'"&$K$1&"'!$A$1:$A$550"), MATCH(A89,INDIRECT("'"&$K$1&"'!$B$1:$B$550"),0)))) -> ENGL.1010 | H89: =IF(ISNA(VLOOKUP(E89,INDIRECT("'"&$K$1&"'!$A$1:$H$550"),8,FALSE)), "Not Found", VLOOKUP(E89,INDIRECT("'"&$K$1&"'!$A$1:$H$550"),8,FALSE)) -> Transfer/AP | I89: =IF(ISNA(VLOOKUP(E89,INDIRECT("'"&$K$1&"'!$A$1:$H$550"),5,FALSE)), "0", VLOOKUP(E89,INDIRECT("'"&$K$1&"'!$A$1:$H$550"),5,FALSE)) -> 3
A90: CW-2 | D90: 3 | E90: ENGL.1020 | H90: Fall2016 | I90: 3
A91: Mathematics
A92: MA | D92: 4 | E92: =IF(ISNA(INDEX(INDIRECT("'"&$K$1&"'!$A$1:$A$550"), MATCH(A92,INDIRECT("'"&$K$1&"'!$B$1:$B$550"),0))), "Not Found", (INDEX(INDIRECT("'"&$K$1&"'!$A$1:$A$550"), MATCH(A92,INDIRECT("'"&$K$1&"'!$B$1:$B$550"),0)))) -> MATH.1310 | H92: =IF(ISNA(VLOOKUP(E92,INDIRECT("'"&$K$1&"'!$A$1:$H$550"),8,FALSE)), "Not Found", VLOOKUP(E92,INDIRECT("'"&$K$1&"'!$A$1:$H$550"),8,FALSE)) -> Fall2016 | I92: =IF(ISNA(VLOOKUP(E92,INDIRECT("'"&$K$1&"'!$A$1:$H$550"),5,FALSE)), "0", VLOOKUP(E92,INDIRECT("'"&$K$1&"'!$A$1:$H$550"),5,FALSE)) -> 4
A93: Arts & Humanities
A94: AH-1 | D94: 3 | E94: =IF(ISNA(INDEX(INDIRECT("'"&$K$1&"'!$A$1:$A$550"), MATCH("*"&A94&"*",INDIRECT("'"&$K$1&"'!$B$1:$B$550"),0))), "Not Found", (INDEX(INDIRECT("'"&$K$1&"'!$A$1:$A$550"), MATCH("*"&A94&"*",INDIRECT("'"&$K$1&"'!$B$1:$B$550"),0)))) -> AH-1 | H94: =IF(ISNA(VLOOKUP(E94,INDIRECT("'"&$K$1&"'!$A$1:$H$550"),8,FALSE)), "Not Found", VLOOKUP(E94,INDIRECT("'"&$K$1&"'!$A$1:$H$550"),8,FALSE)) -> Spring2017 | I94: =IF(ISNA(VLOOKUP(E94,INDIRECT("'"&$K$1&"'!$A$1:$H$550"),5,FALSE)), "0", VLOOKUP(E94,INDIRECT("'"&$K$1&"'!$A$1:$H$550"),5,FALSE)) -> 3
A95: AH-2 | D95: 3 | E95: =IF(ISNA(INDEX(INDIRECT("'"&$K$1&"'!$A$1:$A$550"), MATCH("*"&A95&"*",INDIRECT("'"&$K$1&"'!$B$1:$B$550"),0))), "Not Found", (INDEX(INDIRECT("'"&$K$1&"'!$A$1:$A$550"), MATCH("*"&A95&"*",INDIRECT("'"&$K$1&"'!$B$1:$B$550"),0)))) -> AH-2 | H95: Spring2018 | I95: 3
A96: AH-3 | D96: 3 | E96: ENGL.2200 | H96: Fall2018 | I96: 3
A97: Social Sciences
A98: SS-1 | D98: 3 | E98: =IF(ISNA(INDEX(INDIRECT("'"&$K$1&"'!$A$1:$A$550"), MATCH("*"&A98&"*",INDIRECT("'"&$K$1&"'!$B$1:$B$550"),0))), "Not Found", (INDEX(INDIRECT("'"&$K$1&"'!$A$1:$A$550"), MATCH("*"&A98&"*",INDIRECT("'"&$K$1&"'!$B$1:$B$550"),0)))) -> ECON.2010 | H98: =IF(ISNA(VLOOKUP(E98,INDIRECT("'"&$K$1&"'!$A$1:$H$550"),8,FALSE)), "Not Found", VLOOKUP(E98,INDIRECT("'"&$K$1&"'!$A$1:$H$550"),8,FALSE)) -> Transfer/AP | I98: =IF(ISNA(VLOOKUP(E98,INDIRECT("'"&$K$1&"'!$A$1:$H$550"),5,FALSE)), "0", VLOOKUP(E98,INDIRECT("'"&$K$1&"'!$A$1:$H$550"),5,FALSE)) -> 3
A99: SS-2 | D99: 3 | E99: SOCI.2320 | H99: Fall2016 | I99: 3
A100: SS-3 | D100: 3 | E100: SS-3 | H100: Spring2020 | I100: 3
A101: Sciences with Lab
A102: SC-1 | D102: 3 | E102: =IF(ISNA(INDEX(INDIRECT("'"&$K$1&"'!$A$1:$A$550"), MATCH(A102,INDIRECT("'"&$K$1&"'!$B$1:$B$550"),0))), "Not Found", (INDEX(INDIRECT("'"&$K$1&"'!$A$1:$A$550"), MATCH(A102,INDIRECT("'"&$K$1&"'!$B$1:$B$550"),0)))) -> NS-1 | H102: =IF(ISNA(VLOOKUP(E102,INDIRECT("'"&$K$1&"'!$A$1:$H$550"),8,FALSE)), "Not Found", VLOOKUP(E102,INDIRECT("'"&$K$1&"'!$A$1:$H$550"),8,FALSE)) -> Spring2017 | I102: =IF(ISNA(VLOOKUP(E102,INDIRECT("'"&$K$1&"'!$A$1:$H$550"),5,FALSE)), "0", VLOOKUP(E102,INDIRECT("'"&$K$1&"'!$A$1:$H$550"),5,FALSE)) -> 3
A103: SCL-1 | D103: 1 | E103: NS-Lab1 | H103: Spring2017 | I103: 1
A104: SC-2 | D104: 3 | E104: NS-2 | H104: Fall2019 | I104: 3
A105: SCL-2 | D105: 1 | E105: NS-Lab2 | H105: Fall2019 | I105: 1
A106: STEM
A107: STEM | D107: 3 | E107: =IF(ISNA(INDEX(INDIRECT("'"&$K$1&"'!$A$1:$A$550"), MATCH(A107,INDIRECT("'"&$K$1&"'!$B$1:$B$550"),0))), "Not Found", (INDEX(INDIRECT("'"&$K$1&"'!$A$1:$A$550"), MATCH(A107,INDIRECT("'"&$K$1&"'!$B$1:$B$550"),0)))) -> NS-3 | H107: =IF(ISNA(VLOOKUP(E107,INDIRECT("'"&$K$1&"'!$A$1:$H$550"),8,FALSE)), "Not Found", VLOOKUP(E107,INDIRECT("'"&$K$1&"'!$A$1:$H$550"),8,FALSE)) -> Spring2020 | I107: =IF(ISNA(VLOOKUP(E107,INDIRECT("'"&$K$1&"'!$A$1:$H$550"),5,FALSE)), "0", VLOOKUP(E107,INDIRECT("'"&$K$1&"'!$A$1:$H$550"),5,FALSE)) -> 3
A109: Diversity & Ethics ELOs
A110: Diversity & Cultural Awareness (DV)
A111: DV | D111: 3 | E111: =IF(ISNA(INDEX(INDIRECT("'"&$K$1&"'!$A$1:$A$550"), MATCH("*"&A111&"*",INDIRECT("'"&$K$1&"'!$B$1:$B$550"),0))), "Not Found", (INDEX(INDIRECT("'"&$K$1&"'!$A$1:$A$550"), MATCH("*"&A111&"*",INDIRECT("'"&$K$1&"'!$B$1:$B$550"),0)))) -> SOCI.2320 | H111: =IF(ISNA(VLOOKUP(E111,INDIRECT("'"&$K$1&"'!$A$1:$H$550"),8,FALSE)), "Not Found", VLOOKUP(E111,INDIRECT("'"&$K$1&"'!$A$1:$H$550"),8,FALSE)) -> Fall2016 | I111: =IF(ISNA(VLOOKUP(E111,INDIRECT("'"&$K$1&"'!$A$1:$H$550"),5,FALSE)), "0", VLOOKUP(E111,INDIRECT("'"&$K$1&"'!$A$1:$H$550"),5,FALSE)) -> 3
A112: Social Responsibility & Ethics (ET)
A113: ET | D113: 3 | E113: =IF(ISNA(INDEX(INDIRECT("'"&$K$1&"'!$A$1:$A$550"), MATCH("*"&A113&"*",INDIRECT("'"&$K$1&"'!$B$1:$B$550"),0))), "Not Found", (INDEX(INDIRECT("'"&$K$1&"'!$A$1:$A$550"), MATCH("*"&A113&"*",INDIRECT("'"&$K$1&"'!$B$1:$B$550"),0)))) -> AH-2 | H113: =IF(ISNA(VLOOKUP(E113,INDIRECT("'"&$K$1&"'!$A$1:$H$550"),8,FALSE)), "Not Found", VLOOKUP(E113,INDIRECT("'"&$K$1&"'!$A$1:$H$550"),8,FALSE)) -> Spring2018 | I113: =IF(ISNA(VLOOKUP(E113,INDIRECT("'"&$K$1&"'!$A$1:$H$550"),5,FALSE)), "0", VLOOKUP(E113,INDIRECT("'"&$K$1&"'!$A$1:$H$550"),5,FALSE)) -> 3
A115: Degree Credits | I115: Projected Degree Credits
D116: =SUM(D1:D23, D31:D60,D76,D89,D90,D94:D100) -> 120 | I116: =SUM(I1:I23, I31:I60,I76,I89,I90,I94:I100) -> 120

Sheet Sample_Plan Bio-cheminformatics
A1: Computer Science Graduation Plan
A2: Student Name | C2: Last Name, First Name
A3: University Id (not ss#)
A4: Email
A5: Primary Major (Option) | C5: Computer Science (Bio-cheminformatics)
A6: Second Major:
A7: Third Major:
A8: Minors(s):
A9: Special Program(s):
A10: Scholarships:
A12: Matriculation Date (Month/Year) | E12: Sept. 2016
A13: Expected Graduation Date (Month/Year) | E13: June 2020
A15: Minimum Number of Credits Required for Degree(s) | E15: 120
A17: Transfer and AP Credits
A19: Course | B19: Req. | C19: Req. | D19: Course Title | E19: Credits | F19: Grade | G19: Degree Credits | H19: SemesterYear
D20: AP: Physics C - Mechanics | E20: 0 | F20: 2 | H20: Transfer/AP
A21: ECON.2020 | B21: SS-1 | D21: AP: Macroeconomics | E21: 3 | F21: 4 | H21: Transfer/AP
A22: ENGL.1010 | B22: CW-1 | D22: English Literature & Composition | E22: 3 | F22: A- | H22: Transfer/AP
H23: Transfer/AP
H24: Transfer/AP
H25: Transfer/AP
H26: Transfer/AP
H27: Transfer/AP
H28: Transfer/AP
H29: Transfer/AP
H30: Transfer/AP
H31: Transfer/AP
H32: Transfer/AP
H33: Transfer/AP
H34: Transfer/AP
H35: Transfer/AP
H36: Transfer/AP
H37: Transfer/AP
H38: Transfer/AP
H39: Transfer/AP
H40: Transfer/AP
H41: Transfer/AP
H42: Transfer/AP
H43: Transfer/AP
H44: Transfer/AP
H45: Transfer/AP
H46: Transfer/AP
H47: Transfer/AP
H48: Transfer/AP
H49: Transfer/AP
H50: Transfer/AP
H51: Transfer/AP
H52: Transfer/AP
H53: Transfer/AP
H54: Transfer/AP
H55: Transfer/AP
H56: Transfer/AP
H57: Transfer/AP
H58: Transfer/AP
H59: Transfer/AP
H60: Transfer/AP
H61: Transfer/AP
H62: Transfer/AP
H63: Transfer/AP
H64: Transfer/AP
H65: Transfer/AP
H66: Transfer/AP
H67: Transfer/AP
H68: Transfer/AP
H69: Transfer/AP
D70: Transfer and AP Credits | E70: =SUM(E20:E69) -> 6 | G70: =SUM(G20:G69) -> 0
D71: Total Credits Earned | E71: =E70 -> 6 | G71: =E15-G70 -> 120
A73: Year 1
A74: Fall | B74: 2016 | C74: =C2 -> Last Name, First Name
A75: Course | B75: =B19 -> Req. | C75: =C19 -> Req. | D75: Course Title | E75: Credits | F75: Grade | G75: Degree Credits | H75: SemesterYear
A76: COMP.1010 | D76: Computing I | E76: 3 | H76: =$A$74&$B$74 -> Fall2016
A77: COMP.1030L | D77: Computing I Lab | E77: 1 | H77: =$A$74&$B$74 -> Fall2016
A78: MATH.1310 | B78: MA | D78: Calculus I | E78: 4 | H78: Fall2016
A79: ENGL.1020 | B79: CW-2 | D79: College Writing II | E79: 3 | H79: Fall2016
A80: BIOL.1110 | D80: Principles of Biology I | E80: 3 | H80: Fall2016
A81: BIOL.1170L | D81: Experimental Biology I | E81: 1 | H81: Fall2016
H82: Fall2016
H83: Fall2016
H84: Fall2016
H85: Fall2016
D86: Semester Credits Earned | E86: =SUM(E76:E85) -> 15 | G86: =SUM(G76:G85) -> 0
D87: =D71 -> Total Credits Earned | E87: =E71+E86 -> 21 | G87: =G71-G86 -> 120
A89: Winter | B89: =B74+1 -> 2017 | C89: =C2 -> Last Name, First Name
A90: Course | B90: =B19 -> Req. | D90: Course Title | E90: Credits | F90: Grade | G90: Degree Credits | H90: SemesterYear
H91: =$A$89&$B$89 -> Winter2017
H92: =$A$89&$B$89 -> Winter2017
H93: Winter2017
D94: =D86 -> Semester Credits Earned | E94: =SUM(E91:E93) -> 0 | G94: =SUM(G91:G93) -> 0
D95: =D71 -> Total Credits Earned | E95: =E87+E94 -> 21 | G95: =G87-G94 -> 120
A97: Spring | B97: =B74+1 -> 2017 | C97: =C2 -> Last Name, First Name
A98: Course | B98: =B19 -> Req. | C98: =C19 -> Req. | D98: Course Title | E98: Credits | F98: Grade | G98: Degree Credits | H98: SemesterYear
A99: COMP.1020 | D99: Computing II | E99: 3 | H99: =$A$97&$B$97 -> Spring2017
A100: COMP.1040L | D100: Computer II Lab | E100: 1 | H100: =$A$97&$B$97 -> Spring2017
A101: MATH.1320 | D101: Calculus II | E101: 4 | H101: Spring2017
A102: SOCI.2320 | B102: SS-2,DV | D102: Social Psychology | E102: 3 | H102: Spring2017
A103: Gen-Ed | B103: SS-3 | D103: Breadth of Knowledge Requirement | E103: 3 | H103: Spring2017
H104: Spring2017
H105: Spring2017
H106: Spring2017
H107: Spring2017
H108: Spring2017
D109: =D86 -> Semester Credits Earned | E109: =SUM(E99:E108) -> 14 | G109: =SUM(G99:G108) -> 0
D110: =D71 -> Total Credits Earned | E110: =E95+E109 -> 35 | G110: =G95-G109 -> 120
A112: Summer | B112: =B74+1 -> 2017 | C112: =C2 -> Last Name, First Name
A113: Course | B113: =B19 -> Req. | C113: =C19 -> Req. | D113: Course Title | E113: Credits | F113: Grade | G113: Degree Credits | H113: SemesterYear
H114: =$A$112&$B$112 -> Summer2017
H115: =$A$112&$B$112 -> Summer2017
H116: Summer2017
H117: Summer2017
H118: Summer2017
H119: Summer2017
D120: =D86 -> Semester Credits Earned | E120: =SUM(E114:E119) -> 0 | G120: =SUM(G114:G119) -> 0
D121: =D71 -> Total Credits Earned | E121: =E110+E120 -> 35 | G121: =G110-G120 -> 120
A123: Year 2
A124: Fall | B124: =B74+1 -> 2017 | C124: =C2 -> Last Name, First Name
A125: Course | B125: =B19 -> Req. | C125: =C19 -> Req. | D125: Course Title | E125: Credits | F125: Grade | G125: Degree Credits | H125: SemesterYear
A126: COMP.2010 | D126: Computing III | E126: 3 | H126: =$A$124&$B$124 -> Fall2017
A127: COMP.2010L | D127: Computing III Lab | E127: 1 | H127: =$A$124&$B$124 -> Fall2017
A128: COMP.2030 | D128: Assembly Language Programming | E128: 3 | H128: Fall2017
A129: COMP.2030L | D129: Assembly Language Programming Lab | E129: 1 | H129: Fall2017
A130: MATH.3210 | D130: Discrete Structures I | E130: 3 | H130: Fall2017
A131: CHEM.1210 | B131: SC-1 | D131: Chemistry I | E131: 3 | H131: Fall2017
A132: CHEM.1230L | B132: SCL-1 | D132: Chemistry Lab I | E132: 1 | H132: Fall2017
H133: Fall2017
H134: Fall2017
H135: Fall2017
D136: =D86 -> Semester Credits Earned | E136: =SUM(E126:E135) -> 15 | G136: =SUM(G126:G135) -> 0
D137: =D71 -> Total Credits Earned | E137: =E121+E136 -> 50 | G137: =G121-G136 -> 120
A139: Winter | B139: =B74+2 -> 2018 | C139: =C2 -> Last Name, First Name
A140: Course | B140: =B19 -> Req. | C140: =C19 -> Req. | D140: Course Title | E140: Credits | F140: Grade | G140: Degree Credits | H140: SemesterYear
H141: =$A$139&$B$139 -> Winter2018
H142: =$A$139&$B$139 -> Winter2018
H143: Winter2018
D144: =D86 -> Semester Credits Earned | E144: =SUM(E141:E143) -> 0 | G144: =SUM(G141:G143) -> 0
D145: =D71 -> Total Credits Earned | E145: =E137+E144 -> 50 | G145: =G137-G144 -> 120
A147: Spring | B147: =B89+1 -> 2018 | C147: =C2 -> Last Name, First Name
A148: Course | B148: =B19 -> Req. | C148: =C19 -> Req. | D148: Course Title | E148: Credits | F148: Grade | G148: Degree Credits | H148: SemesterYear
A149: COMP.2040 | D149: Computing IV | E149: 3 | H149: =$A$147&$B$147 -> Spring2018
A150: EECE.2650 | D150: Logic Design | E150: 3 | H150: =$A$147&$B$147 -> Spring2018
A151: MATH.3220 | D151: Discrete Structures II | E151: 3 | H151: Spring2018
A152: CHEM.1220 | B152: SC-2 | D152: Chemistry II | E152: 3 | H152: Spring2018
A153: CHEM.1240L | B153: SCL-2 | D153: Chemistry Lab II | E153: 1 | H153: Spring2018
H154: Spring2018
H155: Spring2018
H156: Spring2018
H157: Spring2018
H158: Spring2018
D159: =D86 -> Semester Credits Earned | E159: =SUM(E149:E158) -> 13 | G159: =SUM(G149:G158) -> 0
D160: =D71 -> Total Credits Earned | E160: =E145+E159 -> 63 | G160: =G145-G159 -> 120
A162: Summer | B162: =B74+2 -> 2018 | C162: =C2 -> Last Name, First Name
A163: Course | B163: =B19 -> Req. | C163: =C19 -> Req. | D163: Course Title | E163: Credits | F163: Grade | G163: Degree Credits | H163: SemesterYear
H164: =$A$162&$B$162 -> Summer2018
H165: =$A$162&$B$162 -> Summer2018
H166: Summer2018
H167: Summer2018
H168: Summer2018
H169: Summer2018
D170: =D86 -> Semester Credits Earned | E170: =SUM(E164:E169) -> 0 | G170: =SUM(G163:G169) -> 0
D171: =D71 -> Total Credits Earned | E171: =E160+E170 -> 63 | G171: =G160-G170 -> 120
A173: Year 3
A174: Fall | B174: =B74+2 -> 2018 | C174: =C2 -> Last Name, First Name
A175: Course | B175: =B19 -> Req. | C175: =C19 -> Req. | D175: Course Title | E175: Credits | F175: Grade | G175: Degree Credits | H175: SemesterYear
A176: COMP.3040 | D176: Foundations of Computer Science | E176: 3 | H176: =$A$174&$B$174 -> Fall2018
A177: COMP.3050 | D177: Computer Architecture | E177: 3 | H177: =$A$174&$B$174 -> Fall2018
A178: MATH.3860 | D178: Probability and Statistics I | E178: 3 | H178: Fall2018
A179: BIOL.2350 | B179: STEM | D179: Genetics | E179: 3 | H179: Fall2018
A180: BIOL.2370 | D180: Problems in Genetics | E180: 1 | H180: Fall2018
A181: CSET | B181: AH-1,ET | C181: CSET | D181: Breadth of Knowledge Requirement | E181: 3 | H181: Fall2018
H182: Fall2018
H183: Fall2018
H184: Fall2018
H185: Fall2018
D186: =D86 -> Semester Credits Earned | E186: =SUM(E176:E185) -> 16 | G186: =SUM(G176:G185) -> 0
D187: =D71 -> Total Credits Earned | E187: =E171+E186 -> 79 | G187: =G171-G186 -> 120
A189: Winter | B189: =B74+3 -> 2019 | C189: =C2 -> Last Name, First Name
A190: Course | B190: =B19 -> Req. | C190: =C19 -> Req. | D190: Course Title | E190: Credits | F190: Grade | G190: Degree Credits | H190: SemesterYear
H191: =$A$189&$B$189 -> Winter2019
H192: =$A$189&$B$189 -> Winter2019
H193: Winter2019
D194: =D86 -> Semester Credits Earned | E194: =SUM(E191:E193) -> 0 | G194: =SUM(G191:G193) -> 0 | H194: =SUM(H191:H193) -> 0
D195: =D71 -> Total Credits Earned | E195: =E187+E194 -> 79 | G195: =G187-G194 -> 120
A197: Spring | B197: =B74+3 -> 2019 | C197: =C2 -> Last Name, First Name
A198: Course | B198: =B19 -> Req. | C198: =C19 -> Req. | D198: Course Title | E198: Credits | F198: Grade | G198: Degree Credits | H198: SemesterYear
A199: COMP.3010 | D199: Organization of Programming Languages | E199: 3 | H199: =$A$197&$B$197 -> Spring2019
A200: COMP.3080 | D200: Introduction to Operating Systems | E200: 3 | H200: =$A$197&$B$197 -> Spring2019
A201: BCIE-1 | B201: BCIE-1 | D201: Bio/Chemiformatics Elective | E201: 3 | H201: Spring2019
A202: ENGL.2200 | B202: AH-2 | D202: Oral & Written Communication for CS | E202: 3 | H202: Spring2019
A203: FE-1 | B203: FE-1 | D203: Free Elective | E203: 3 | H203: Spring2019
H204: Spring2019
H205: Spring2019
H206: Spring2019
H207: Spring2019
H208: Spring2019
D209: =D86 -> Semester Credits Earned | E209: =SUM(E199:E208) -> 15 | G209: =SUM(G199:G208) -> 0
D210: =D71 -> Total Credits Earned | E210: =E195+E209 -> 94 | G210: =G195-G209 -> 120
A212: Summer | B212: =B74+3 -> 2019 | C212: =C2 -> Last Name, First Name
A213: Course | B213: =B19 -> Req. | C213: =C19 -> Req. | D213: Course Title | E213: Credits | F213: Grade | G213: Degree Credits | H213: SemesterYear
H214: =$A$212&$B$212 -> Summer2019
H215: =$A$212&$B$212 -> Summer2019
H216: Summer2019
... 150 more rows

Sheet Sample_Checklist Bio-cheminform
A1: Checklist -Bio/Cheminformatics | K1: Sample_Plan Bio-Cheminformatics | L1: Required Bio/Cheminformatics Electives
A2: Requirement | D2: Credits | E2: Taken | H2: Semester | I2: Credits | L2: List courses you are interested in possibly taking. (NOTE: This is not required.)
A3: Required Computer Science Courses | L3: Course | M3: Title
A4: COMP.1010 | B4: or | C4: 91.101 | D4: 3 | E4: COMP.1010 | F4: or | G4: 91.101 | H4: =IF(AND(ISNA(VLOOKUP(E4,INDIRECT("'"&$K$1&"'!$A$1:$H$550"),8,FALSE)), ISNA(VLOOKUP(G4,INDIRECT("'"&$K$1&"'!$A$1:$H$550"),8,FALSE))), "Not Found", (IF(ISNA(VLOOKUP(E4,INDIRECT("'"&$K$1&"'!$A$1:$H$550"),8,FALSE)), VLOOKUP(G4,INDIRECT("'"&$K$1&"'!$A$1:$H$550"),8,FALSE), VLOOKUP(E4,INDIRECT("'"&$K$1&"'!$A$1:$H$550"),8,FALSE)))) -> Fall2016 | I4: =IF(AND(ISNA(VLOOKUP(E4,INDIRECT("'"&$K$1&"'!$A$1:$H$550"),5,FALSE)), ISNA(VLOOKUP(G4,INDIRECT("'"&$K$1&"'!$A$1:$H$550"),5,FALSE))), "0", (IF(ISNA(VLOOKUP(E4,INDIRECT("'"&$K$1&"'!$A$1:$H$550"),5,FALSE)), VLOOKUP(G4,INDIRECT("'"&$K$1&"'!$A$1:$H$550"),5,FALSE), VLOOKUP(E4,INDIRECT("'"&$K$1&"'!$A$1:$H$550"),5,FALSE)))) -> 3
A5: COMP.1030L | B5: or | C5: 91.103 | D5: 1 | E5: COMP.1030L | F5: or | G5: 91.103 | H5: =IF(AND(ISNA(VLOOKUP(E5,INDIRECT("'"&$K$1&"'!$A$1:$H$550"),8,FALSE)), ISNA(VLOOKUP(G5,INDIRECT("'"&$K$1&"'!$A$1:$H$550"),8,FALSE))), "Not Found", (IF(ISNA(VLOOKUP(E5,INDIRECT("'"&$K$1&"'!$A$1:$H$550"),8,FALSE)), VLOOKUP(G5,INDIRECT("'"&$K$1&"'!$A$1:$H$550"),8,FALSE), VLOOKUP(E5,INDIRECT("'"&$K$1&"'!$A$1:$H$550"),8,FALSE)))) -> Fall2016 | I5: =IF(AND(ISNA(VLOOKUP(E5,INDIRECT("'"&$K$1&"'!$A$1:$H$550"),5,FALSE)), ISNA(VLOOKUP(G5,INDIRECT("'"&$K$1&"'!$A$1:$H$550"),5,FALSE))), "0", (IF(ISNA(VLOOKUP(E5,INDIRECT("'"&$K$1&"'!$A$1:$H$550"),5,FALSE)), VLOOKUP(G5,INDIRECT("'"&$K$1&"'!$A$1:$H$550"),5,FALSE), VLOOKUP(E5,INDIRECT("'"&$K$1&"'!$A$1:$H$550"),5,FALSE)))) -> 1
A6: COMP.1020 | B6: or | C6: 91.102 | D6: 3 | E6: COMP.1020 | F6: or | G6: 91.102 | H6: Spring2017 | I6: 3
A7: COMP.1040L | B7: or | C7: 91.104 | D7: 1 | E7: COMP.1040L | F7: or | G7: 91.104 | H7: Spring2017 | I7: 1
A8: COMP.2010 | B8: or | C8: 91.201 | D8: 3 | E8: COMP.2010 | F8: or | G8: 91.201 | H8: Fall2017 | I8: 3
A9: COMP.2010L | D9: 1 | E9: COMP.2010L | H9: =IF(AND(ISNA(VLOOKUP(E9,INDIRECT("'"&$K$1&"'!$A$1:$H$550"),8,FALSE)), ISNA(VLOOKUP(G9,INDIRECT("'"&$K$1&"'!$A$1:$H$550"),8,FALSE))), "Not Found", (IF(ISNA(VLOOKUP(E9,INDIRECT("'"&$K$1&"'!$A$1:$H$550"),8,FALSE)), VLOOKUP(G9,INDIRECT("'"&$K$1&"'!$A$1:$H$550"),8,FALSE), VLOOKUP(E9,INDIRECT("'"&$K$1&"'!$A$1:$H$550"),8,FALSE)))) -> Fall2017 | I9: =IF(AND(ISNA(VLOOKUP(E9,INDIRECT("'"&$K$1&"'!$A$1:$H$550"),5,FALSE)), ISNA(VLOOKUP(G9,INDIRECT("'"&$K$1&"'!$A$1:$H$550"),5,FALSE))), "0", (IF(ISNA(VLOOKUP(E9,INDIRECT("'"&$K$1&"'!$A$1:$H$550"),5,FALSE)), VLOOKUP(G9,INDIRECT("'"&$K$1&"'!$A$1:$H$550"),5,FALSE), VLOOKUP(E9,INDIRECT("'"&$K$1&"'!$A$1:$H$550"),5,FALSE)))) -> 1
A10: COMP.2030 | B10: or | C10: 91.203 | D10: 3 | E10: COMP.2030 | F10: or | G10: 91.203 | H10: Fall2017 | I10: 3
A11: COMP.2030L | D11: 1 | E11: COMP.2030L | H11: =IF(AND(ISNA(VLOOKUP(E11,INDIRECT("'"&$K$1&"'!$A$1:$H$550"),8,FALSE)), ISNA(VLOOKUP(G11,INDIRECT("'"&$K$1&"'!$A$1:$H$550"),8,FALSE))), "Not Found", (IF(ISNA(VLOOKUP(E11,INDIRECT("'"&$K$1&"'!$A$1:$H$550"),8,FALSE)), VLOOKUP(G11,INDIRECT("'"&$K$1&"'!$A$1:$H$550"),8,FALSE), VLOOKUP(E11,INDIRECT("'"&$K$1&"'!$A$1:$H$550"),8,FALSE)))) -> Fall2017 | I11: =IF(AND(ISNA(VLOOKUP(E11,INDIRECT("'"&$K$1&"'!$A$1:$H$550"),5,FALSE)), ISNA(VLOOKUP(G11,INDIRECT("'"&$K$1&"'!$A$1:$H$550"),5,FALSE))), "0", (IF(ISNA(VLOOKUP(E11,INDIRECT("'"&$K$1&"'!$A$1:$H$550"),5,FALSE)), VLOOKUP(G11,INDIRECT("'"&$K$1&"'!$A$1:$H$550"),5,FALSE), VLOOKUP(E11,INDIRECT("'"&$K$1&"'!$A$1:$H$550"),5,FALSE)))) -> 1
A12: COMP.2040 | B12: or | C12: 91.204 | D12: 3 | E12: COMP.2040 | F12: or | G12: 91.204 | H12: Spring2018 | I12: 3
A13: COMP.3010 | B13: or | C13: 91.301 | D13: 3 | E13: COMP.3010 | F13: or | G13: 91.301 | H13: Spring2019 | I13: 3
A14: COMP.3040 | B14: or | C14: 91.304 | D14: 3 | E14: COMP.3040 | F14: or | G14: 91.304 | H14: Fall2018 | I14: 3
A15: COMP.3050 | B15: or | C15: 91.305 | D15: 3 | E15: COMP.3050 | F15: or | G15: 91.305 | H15: Fall2018 | I15: 3
A16: COMP.3080 | B16: or | C16: 91.308 | D16: 3 | E16: COMP.3080 | F16: or | G16: 91.308 | H16: Spring2019 | I16: 3
A17: COMP.4040 | B17: or | C17: 91.404 | D17: 3 | E17: COMP.4040 | F17: or | G17: 91.404 | H17: Fall2019 | I17: 3
A18: Req. Bio/Cheminformatics Electives (BCIE)
A19: BCIE-1 | D19: 3 | E19: =IF(ISNA(INDEX(INDIRECT("'"&$K$1&"'!$A$1:$A$550"), MATCH(A19,INDIRECT("'"&$K$1&"'!$B$1:$B$550"),0))), "Not Found", (INDEX(INDIRECT("'"&$K$1&"'!$A$1:$A$550"), MATCH(A19,INDIRECT("'"&$K$1&"'!$B$1:$B$550"),0)))) -> BCIE-1 | H19: =IF(ISNA(VLOOKUP(E19,INDIRECT("'"&$K$1&"'!$A$1:$H$550"),8,FALSE)), "Not Found", VLOOKUP(E19,INDIRECT("'"&$K$1&"'!$A$1:$H$550"),8,FALSE)) -> Spring2019 | I19: =IF(ISNA(VLOOKUP(E19,INDIRECT("'"&$K$1&"'!$A$1:$H$550"),5,FALSE)), "0", VLOOKUP(E19,INDIRECT("'"&$K$1&"'!$A$1:$H$550"),5,FALSE)) -> 3
A20: BCIE-2 | D20: 3 | E20: =IF(ISNA(INDEX(INDIRECT("'"&$K$1&"'!$A$1:$A$550"), MATCH(A20,INDIRECT("'"&$K$1&"'!$B$1:$B$550"),0))), "Not Found", (INDEX(INDIRECT("'"&$K$1&"'!$A$1:$A$550"), MATCH(A20,INDIRECT("'"&$K$1&"'!$B$1:$B$550"),0)))) -> BCIE-2 | H20: Fall2019 | I20: 3
A21: BCIE-3 | D21: 3 | E21: =IF(ISNA(INDEX(INDIRECT("'"&$K$1&"'!$A$1:$A$550"), MATCH(A21,INDIRECT("'"&$K$1&"'!$B$1:$B$550"),0))), "Not Found", (INDEX(INDIRECT("'"&$K$1&"'!$A$1:$A$550"), MATCH(A21,INDIRECT("'"&$K$1&"'!$B$1:$B$550"),0)))) -> BCIE-3 | H21: =IF(ISNA(VLOOKUP(E21,INDIRECT("'"&$K$1&"'!$A$1:$H$550"),8,FALSE)), "Not Found", VLOOKUP(E21,INDIRECT("'"&$K$1&"'!$A$1:$H$550"),8,FALSE)) -> Spring2020 | I21: =IF(ISNA(VLOOKUP(E21,INDIRECT("'"&$K$1&"'!$A$1:$H$550"),5,FALSE)), "0", VLOOKUP(E21,INDIRECT("'"&$K$1&"'!$A$1:$H$550"),5,FALSE)) -> 3
A22: CS Project Course
A23: Sr.Prj-1 | D23: 3 | E23: =IF(ISNA(INDEX(INDIRECT("'"&$K$1&"'!$A$1:$A$550"), MATCH(A23,INDIRECT("'"&$K$1&"'!$B$1:$B$550"),0))), "Not Found", (INDEX(INDIRECT("'"&$K$1&"'!$A$1:$A$550"), MATCH(A23,INDIRECT("'"&$K$1&"'!$B$1:$B$550"),0)))) -> COMP.4xxx-p1 | H23: Fall2019 | I23: 3
A24: Sr.Prj-2 | D24: 3 | E24: =IF(ISNA(INDEX(INDIRECT("'"&$K$1&"'!$A$1:$A$550"), MATCH(A24,INDIRECT("'"&$K$1&"'!$B$1:$B$550"),0))), "Not Found", (INDEX(INDIRECT("'"&$K$1&"'!$A$1:$A$550"), MATCH(A24,INDIRECT("'"&$K$1&"'!$B$1:$B$550"),0)))) -> COMP.4xxx-p2 | H24: =IF(ISNA(VLOOKUP(E24,INDIRECT("'"&$K$1&"'!$A$1:$H$550"),8,FALSE)), "Not Found", VLOOKUP(E24,INDIRECT("'"&$K$1&"'!$A$1:$H$550"),8,FALSE)) -> Spring2020 | I24: =IF(ISNA(VLOOKUP(E24,INDIRECT("'"&$K$1&"'!$A$1:$H$550"),5,FALSE)), "0", VLOOKUP(E24,INDIRECT("'"&$K$1&"'!$A$1:$H$550"),5,FALSE)) -> 3
A26: Required Supporting Technical Courses
A27: Requirement | D27: Credits | E27: Taken | H27: Semester | I27: Credits
A28: Electrical Engineering
A29: EECE.2650 | B29: or | C29: 16.265 | D29: 3 | E29: EECE.2650 | F29: or | G29: 16.265 | H29: =IF(AND(ISNA(VLOOKUP(E29,INDIRECT("'"&$K$1&"'!$A$1:$H$550"),8,FALSE)), ISNA(VLOOKUP(G29,INDIRECT("'"&$K$1&"'!$A$1:$H$550"),8,FALSE))), "Not Found", (IF(ISNA(VLOOKUP(E29,INDIRECT("'"&$K$1&"'!$A$1:$H$550"),8,FALSE)), VLOOKUP(G29,INDIRECT("'"&$K$1&"'!$A$1:$H$550"),8,FALSE), VLOOKUP(E29,INDIRECT("'"&$K$1&"'!$A$1:$H$550"),8,FALSE)))) -> Spring2018 | I29: =IF(AND(ISNA(VLOOKUP(E29,INDIRECT("'"&$K$1&"'!$A$1:$H$550"),5,FALSE)), ISNA(VLOOKUP(G29,INDIRECT("'"&$K$1&"'!$A$1:$H$550"),5,FALSE))), "0", (IF(ISNA(VLOOKUP(E29,INDIRECT("'"&$K$1&"'!$A$1:$H$550"),5,FALSE)), VLOOKUP(G29,INDIRECT("'"&$K$1&"'!$A$1:$H$550"),5,FALSE), VLOOKUP(E29,INDIRECT("'"&$K$1&"'!$A$1:$H$550"),5,FALSE)))) -> 3
A30: Mathematics
A31: MATH.1310 | B31: or | C31: 92.131 | D31: 4 | E31: MATH.1310 | F31: or | G31: 92.131 | H31: =IF(AND(ISNA(VLOOKUP(E31,INDIRECT("'"&$K$1&"'!$A$1:$H$550"),8,FALSE)), ISNA(VLOOKUP(G31,INDIRECT("'"&$K$1&"'!$A$1:$H$550"),8,FALSE))), "Not Found", (IF(ISNA(VLOOKUP(E31,INDIRECT("'"&$K$1&"'!$A$1:$H$550"),8,FALSE)), VLOOKUP(G31,INDIRECT("'"&$K$1&"'!$A$1:$H$550"),8,FALSE), VLOOKUP(E31,INDIRECT("'"&$K$1&"'!$A$1:$H$550"),8,FALSE)))) -> Fall2016 | I31: =IF(AND(ISNA(VLOOKUP(E31,INDIRECT("'"&$K$1&"'!$A$1:$H$550"),5,FALSE)), ISNA(VLOOKUP(G31,INDIRECT("'"&$K$1&"'!$A$1:$H$550"),5,FALSE))), "0", (IF(ISNA(VLOOKUP(E31,INDIRECT("'"&$K$1&"'!$A$1:$H$550"),5,FALSE)), VLOOKUP(G31,INDIRECT("'"&$K$1&"'!$A$1:$H$550"),5,FALSE), VLOOKUP(E31,INDIRECT("'"&$K$1&"'!$A$1:$H$550"),5,FALSE)))) -> 4
A32: MATH.1320 | B32: or | C32: 92.132 | D32: 4 | E32: MATH.1320 | F32: or | G32: 92.132 | H32: Spring2017 | I32: 4
A33: MATH.3210 | B33: or | C33: 92.321 | D33: 3 | E33: MATH.3210 | F33: or | G33: 92.321 | H33: Fall2017 | I33: 3
A34: MATH.3220 | B34: or | C34: 92.322 | D34: 3 | E34: MATH.3220 | F34: or | G34: 92.322 | H34: Spring2018 | I34: 3
A35: MATH.3860 | B35: or | C35: 92.386 | D35: 3 | E35: MATH.3860 | F35: or | G35: 92.386 | H35: Fall2018 | I35: 3
A36: Biology
A37: BIOL.1110 | B37: or | C37: 81.111 | D37: 3 | E37: BIOL.1110 | F37: or | G37: 81.111 | H37: =IF(AND(ISNA(VLOOKUP(E37,INDIRECT("'"&$K$1&"'!$A$1:$H$550"),8,FALSE)), ISNA(VLOOKUP(G37,INDIRECT("'"&$K$1&"'!$A$1:$H$550"),8,FALSE))), "Not Found", (IF(ISNA(VLOOKUP(E37,INDIRECT("'"&$K$1&"'!$A$1:$H$550"),8,FALSE)), VLOOKUP(G37,INDIRECT("'"&$K$1&"'!$A$1:$H$550"),8,FALSE), VLOOKUP(E37,INDIRECT("'"&$K$1&"'!$A$1:$H$550"),8,FALSE)))) -> Fall2016 | I37: =IF(AND(ISNA(VLOOKUP(E37,INDIRECT("'"&$K$1&"'!$A$1:$H$550"),5,FALSE)), ISNA(VLOOKUP(G37,INDIRECT("'"&$K$1&"'!$A$1:$H$550"),5,FALSE))), "0", (IF(ISNA(VLOOKUP(E37,INDIRECT("'"&$K$1&"'!$A$1:$H$550"),5,FALSE)), VLOOKUP(G37,INDIRECT("'"&$K$1&"'!$A$1:$H$550"),5,FALSE), VLOOKUP(E37,INDIRECT("'"&$K$1&"'!$A$1:$H$550"),5,FALSE)))) -> 3
A38: BIOL.1170L | B38: or | C38: 81.117 | D38: 1 | E38: BIOL.1170L | F38: or | G38: 81.117 | H38: Fall2016 | I38: 1
A39: BIOL.2350 | B39: or | C39: 81.235 | D39: 3 | E39: BIOL.2350 | F39: or | G39: 81.235 | H39: Fall2018 | I39: 3
A40: BIOL.2370 | B40: or | C40: 81.237 | D40: 1 | E40: BIOL.2370 | F40: or | G40: 81.237 | H40: Fall2018 | I40: 1
A41: Chemistry
A42: CHEM.1210 | B42: or | C42: 84.121 | D42: 3 | E42: CHEM.1210 | F42: or | G42: 84.121 | H42: =IF(AND(ISNA(VLOOKUP(E42,INDIRECT("'"&$K$1&"'!$A$1:$H$550"),8,FALSE)), ISNA(VLOOKUP(G42,INDIRECT("'"&$K$1&"'!$A$1:$H$550"),8,FALSE))), "Not Found", (IF(ISNA(VLOOKUP(E42,INDIRECT("'"&$K$1&"'!$A$1:$H$550"),8,FALSE)), VLOOKUP(G42,INDIRECT("'"&$K$1&"'!$A$1:$H$550"),8,FALSE), VLOOKUP(E42,INDIRECT("'"&$K$1&"'!$A$1:$H$550"),8,FALSE)))) -> Fall2017 | I42: =IF(AND(ISNA(VLOOKUP(E42,INDIRECT("'"&$K$1&"'!$A$1:$H$550"),5,FALSE)), ISNA(VLOOKUP(G42,INDIRECT("'"&$K$1&"'!$A$1:$H$550"),5,FALSE))), "0", (IF(ISNA(VLOOKUP(E42,INDIRECT("'"&$K$1&"'!$A$1:$H$550"),5,FALSE)), VLOOKUP(G42,INDIRECT("'"&$K$1&"'!$A$1:$H$550"),5,FALSE), VLOOKUP(E42,INDIRECT("'"&$K$1&"'!$A$1:$H$550"),5,FALSE)))) -> 3
A43: CHEM.1230L | B43: or | C43: 84.123 | D43: 1 | E43: CHEM.1230L | F43: or | G43: 84.123 | H43: Fall2017 | I43: 1
A44: CHEM.1220 | B44: or | C44: 84.122 | D44: 3 | E44: CHEM.1220 | F44: or | G44: 84.122 | H44: Spring2018 | I44: 3
A45: CHEM.1240L | B45: or | C45: 84.124 | D45: 1 | E45: CHEM.1240L | F45: or | G45: 84.124 | H45: Spring2018 | I45: 1
A47: Free Electives (FE) | L47: Free Electives
A48: Requirement | D48: Credits | E48: Taken | H48: Semester | I48: Credits | L48: List free electives you are interested in taking. These cannot be below the level of a
A49: FE-1 | D49: 3 | E49: =IF(ISNA(INDEX(INDIRECT("'"&$K$1&"'!$A$1:$A$550"), MATCH("*"&A49&"*",INDIRECT("'"&$K$1&"'!$B$1:$B$550"),0))), "Not Found", (INDEX(INDIRECT("'"&$K$1&"'!$A$1:$A$550"), MATCH("*"&A49&"*",INDIRECT("'"&$K$1&"'!$B$1:$B$550"),0)))) -> FE-1 | H49: =IF(ISNA(VLOOKUP(E49,INDIRECT("'"&$K$1&"'!$A$1:$H$550"),8,FALSE)), "Not Found", VLOOKUP(E49,INDIRECT("'"&$K$1&"'!$A$1:$H$550"),8,FALSE)) -> Spring2019 | I49: =IF(ISNA(VLOOKUP(E49,INDIRECT("'"&$K$1&"'!$A$1:$H$550"),5,FALSE)), "0", VLOOKUP(E49,INDIRECT("'"&$K$1&"'!$A$1:$H$550"),5,FALSE)) -> 3 | L49: required course. Specific courses may be recommended for different CS tracks.
A50: FE-2 | D50: 3 | E50: FE-2 | H50: Fall2019 | I50: 3
A51: FE-3 | D51: 3 | E51: FE-3 | H51: Fall2019 | I51: 3
A52: FE-4 | D52: 3 | E52: FE-4 | H52: Spring2020 | I52: 3
A53: Not Req. | D53: n/a | E53: Not Found | H53: =IF(ISNA(VLOOKUP(E53,INDIRECT("'"&$K$1&"'!$A$1:$H$550"),8,FALSE)), "Not Found", VLOOKUP(E53,INDIRECT("'"&$K$1&"'!$A$1:$H$550"),8,FALSE)) -> Not Found | I53: =IF(ISNA(VLOOKUP(E53,INDIRECT("'"&$K$1&"'!$A$1:$H$550"),5,FALSE)), "0", VLOOKUP(E53,INDIRECT("'"&$K$1&"'!$A$1:$H$550"),5,FALSE)) -> 0
A54: Not Req. | D54: n/a | E54: Not Found | H54: =IF(ISNA(VLOOKUP(E54,INDIRECT("'"&$K$1&"'!$A$1:$H$550"),8,FALSE)), "Not Found", VLOOKUP(E54,INDIRECT("'"&$K$1&"'!$A$1:$H$550"),8,FALSE)) -> Not Found | I54: =IF(ISNA(VLOOKUP(E54,INDIRECT("'"&$K$1&"'!$A$1:$H$550"),5,FALSE)), "0", VLOOKUP(E54,INDIRECT("'"&$K$1&"'!$A$1:$H$550"),5,FALSE)) -> 0
A56: Required FE Credits | H56: Projected Credits
D57: =121-SUM(D4:D45,D70,D71,D75:D81) -> 12 | I57: =SUM(I49:I55) -> 12
A59: Oral & Written Communication
A60: Requirement | D60: Credits | E60: Taken | H60: Semester | I60: Credits
A61: ENGL.2200 | B61: or | C61: 42.220 | D61: 3 | E61: ENGL.2200 | F61: or | G61: 42.220 | H61: =IF(AND(ISNA(VLOOKUP(E61,INDIRECT("'"&$K$1&"'!$A$1:$H$550"),8,FALSE)), ISNA(VLOOKUP(G61,INDIRECT("'"&$K$1&"'!$A$1:$H$550"),8,FALSE))), "Not Found", (IF(ISNA(VLOOKUP(E61,INDIRECT("'"&$K$1&"'!$A$1:$H$550"),8,FALSE)), VLOOKUP(G61,INDIRECT("'"&$K$1&"'!$A$1:$H$550"),8,FALSE), VLOOKUP(E61,INDIRECT("'"&$K$1&"'!$A$1:$H$550"),8,FALSE)))) -> Spring2019 | I61: =IF(AND(ISNA(VLOOKUP(E61,INDIRECT("'"&$K$1&"'!$A$1:$H$550"),5,FALSE)), ISNA(VLOOKUP(G61,INDIRECT("'"&$K$1&"'!$A$1:$H$550"),5,FALSE))), "0", (IF(ISNA(VLOOKUP(E61,INDIRECT("'"&$K$1&"'!$A$1:$H$550"),5,FALSE)), VLOOKUP(G61,INDIRECT("'"&$K$1&"'!$A$1:$H$550"),5,FALSE), VLOOKUP(E61,INDIRECT("'"&$K$1&"'!$A$1:$H$550"),5,FALSE)))) -> 3
A63: CS Ethics Requirement
A64: Requirement | D64: Credits | E64: Taken | H64: Semester | I64: Credits
A65: CSET | D65: 3 | E65: =IF(ISNA(INDEX(INDIRECT("'"&$K$1&"'!$A$1:$A$550"), MATCH(A65,INDIRECT("'"&$K$1&"'!$C$1:$C$550"),0))), "Not Found", (INDEX(INDIRECT("'"&$K$1&"'!$A$1:$A$550"), MATCH(A65,INDIRECT("'"&$K$1&"'!$C$1:$C$550"),0)))) -> CSET | H65: =IF(ISNA(VLOOKUP(E65,INDIRECT("'"&$K$1&"'!$A$1:$H$550"),8,FALSE)), "Not Found", VLOOKUP(E65,INDIRECT("'"&$K$1&"'!$A$1:$H$550"),8,FALSE)) -> Fall2018 | I65: =IF(ISNA(VLOOKUP(E65,INDIRECT("'"&$K$1&"'!$A$1:$H$550"),5,FALSE)), "0", VLOOKUP(E65,INDIRECT("'"&$K$1&"'!$A$1:$H$550"),5,FALSE)) -> 3
A67: Breadth of Knowledge | L67: Breadth of Knowledge Requirements
A68: Requirement | D68: Credits | E68: Taken | H68: Semester | I68: Credits | L68: Select courses you are interested in taking to satisfy this Requirements.
A69: College Writing | L69: Area | M69: Title
A70: CW-1 | D70: 3 | E70: =IF(ISNA(INDEX(INDIRECT("'"&$K$1&"'!$A$1:$A$550"), MATCH(A70,INDIRECT("'"&$K$1&"'!$B$1:$B$550"),0))), "Not Found", (INDEX(INDIRECT("'"&$K$1&"'!$A$1:$A$550"), MATCH(A70,INDIRECT("'"&$K$1&"'!$B$1:$B$550"),0)))) -> ENGL.1010 | H70: =IF(ISNA(VLOOKUP(E70,INDIRECT("'"&$K$1&"'!$A$1:$H$550"),8,FALSE)), "Not Found", VLOOKUP(E70,INDIRECT("'"&$K$1&"'!$A$1:$H$550"),8,FALSE)) -> Transfer/AP | I70: =IF(ISNA(VLOOKUP(E70,INDIRECT("'"&$K$1&"'!$A$1:$H$550"),5,FALSE)), "0", VLOOKUP(E70,INDIRECT("'"&$K$1&"'!$A$1:$H$550"),5,FALSE)) -> 3
A71: CW-2 | D71: 3 | E71: =IF(ISNA(INDEX(INDIRECT("'"&$K$1&"'!$A$1:$A$550"), MATCH(A71,INDIRECT("'"&$K$1&"'!$B$1:$B$550"),0))), "Not Found", (INDEX(INDIRECT("'"&$K$1&"'!$A$1:$A$550"), MATCH(A71,INDIRECT("'"&$K$1&"'!$B$1:$B$550"),0)))) -> ENGL.1020 | H71: Fall2016 | I71: 3
A72: Mathematics
A73: MA | D73: 4 | E73: =IF(ISNA(INDEX(INDIRECT("'"&$K$1&"'!$A$1:$A$550"), MATCH(A73,INDIRECT("'"&$K$1&"'!$B$1:$B$550"),0))), "Not Found", (INDEX(INDIRECT("'"&$K$1&"'!$A$1:$A$550"), MATCH(A73,INDIRECT("'"&$K$1&"'!$B$1:$B$550"),0)))) -> MATH.1310 | H73: =IF(ISNA(VLOOKUP(E73,INDIRECT("'"&$K$1&"'!$A$1:$H$550"),8,FALSE)), "Not Found", VLOOKUP(E73,INDIRECT("'"&$K$1&"'!$A$1:$H$550"),8,FALSE)) -> Fall2016 | I73: =IF(ISNA(VLOOKUP(E73,INDIRECT("'"&$K$1&"'!$A$1:$H$550"),5,FALSE)), "0", VLOOKUP(E73,INDIRECT("'"&$K$1&"'!$A$1:$H$550"),5,FALSE)) -> 4
A74: Arts & Humanities
A75: AH-1 | D75: 3 | E75: =IF(ISNA(INDEX(INDIRECT("'"&$K$1&"'!$A$1:$A$550"), MATCH("*"&A75&"*",INDIRECT("'"&$K$1&"'!$B$1:$B$550"),0))), "Not Found", (INDEX(INDIRECT("'"&$K$1&"'!$A$1:$A$550"), MATCH("*"&A75&"*",INDIRECT("'"&$K$1&"'!$B$1:$B$550"),0)))) -> CSET | H75: =IF(ISNA(VLOOKUP(E75,INDIRECT("'"&$K$1&"'!$A$1:$H$550"),8,FALSE)), "Not Found", VLOOKUP(E75,INDIRECT("'"&$K$1&"'!$A$1:$H$550"),8,FALSE)) -> Fall2018 | I75: =IF(ISNA(VLOOKUP(E75,INDIRECT("'"&$K$1&"'!$A$1:$H$550"),5,FALSE)), "0", VLOOKUP(E75,INDIRECT("'"&$K$1&"'!$A$1:$H$550"),5,FALSE)) -> 3
A76: AH-2 | D76: 3 | E76: =IF(ISNA(INDEX(INDIRECT("'"&$K$1&"'!$A$1:$A$550"), MATCH("*"&A76&"*",INDIRECT("'"&$K$1&"'!$B$1:$B$550"),0))), "Not Found", (INDEX(INDIRECT("'"&$K$1&"'!$A$1:$A$550"), MATCH("*"&A76&"*",INDIRECT("'"&$K$1&"'!$B$1:$B$550"),0)))) -> ENGL.2200 | H76: Spring2019 | I76: 3
A77: AH-3 | D77: 3 | E77: =IF(ISNA(INDEX(INDIRECT("'"&$K$1&"'!$A$1:$A$550"), MATCH("*"&A77&"*",INDIRECT("'"&$K$1&"'!$B$1:$B$550"),0))), "Not Found", (INDEX(INDIRECT("'"&$K$1&"'!$A$1:$A$550"), MATCH("*"&A77&"*",INDIRECT("'"&$K$1&"'!$B$1:$B$550"),0)))) -> AH-3 | H77: Spring2020 | I77: 3
A78: Social Sciences
A79: SS-1 | D79: 3 | E79: =IF(ISNA(INDEX(INDIRECT("'"&$K$1&"'!$A$1:$A$550"), MATCH("*"&A79&"*",INDIRECT("'"&$K$1&"'!$B$1:$B$550"),0))), "Not Found", (INDEX(INDIRECT("'"&$K$1&"'!$A$1:$A$550"), MATCH("*"&A79&"*",INDIRECT("'"&$K$1&"'!$B$1:$B$550"),0)))) -> ECON.2020 | H79: =IF(ISNA(VLOOKUP(E79,INDIRECT("'"&$K$1&"'!$A$1:$H$550"),8,FALSE)), "Not Found", VLOOKUP(E79,INDIRECT("'"&$K$1&"'!$A$1:$H$550"),8,FALSE)) -> Transfer/AP | I79: =IF(ISNA(VLOOKUP(E79,INDIRECT("'"&$K$1&"'!$A$1:$H$550"),5,FALSE)), "0", VLOOKUP(E79,INDIRECT("'"&$K$1&"'!$A$1:$H$550"),5,FALSE)) -> 3
A80: SS-2 | D80: 3 | E80: =IF(ISNA(INDEX(INDIRECT("'"&$K$1&"'!$A$1:$A$550"), MATCH("*"&A80&"*",INDIRECT("'"&$K$1&"'!$B$1:$B$550"),0))), "Not Found", (INDEX(INDIRECT("'"&$K$1&"'!$A$1:$A$550"), MATCH("*"&A80&"*",INDIRECT("'"&$K$1&"'!$B$1:$B$550"),0)))) -> SOCI.2320 | H80: Spring2017 | I80: 3
A81: SS-3 | D81: 3 | E81: =IF(ISNA(INDEX(INDIRECT("'"&$K$1&"'!$A$1:$A$550"), MATCH("*"&A81&"*",INDIRECT("'"&$K$1&"'!$B$1:$B$550"),0))), "Not Found", (INDEX(INDIRECT("'"&$K$1&"'!$A$1:$A$550"), MATCH("*"&A81&"*",INDIRECT("'"&$K$1&"'!$B$1:$B$550"),0)))) -> Gen-Ed | H81: Spring2017 | I81: 3
A82: Sciences with Lab
A83: SC-1 | D83: 3 | E83: =IF(ISNA(INDEX(INDIRECT("'"&$K$1&"'!$A$1:$A$550"), MATCH(A83,INDIRECT("'"&$K$1&"'!$B$1:$B$550"),0))), "Not Found", (INDEX(INDIRECT("'"&$K$1&"'!$A$1:$A$550"), MATCH(A83,INDIRECT("'"&$K$1&"'!$B$1:$B$550"),0)))) -> CHEM.1210 | H83: =IF(ISNA(VLOOKUP(E83,INDIRECT("'"&$K$1&"'!$A$1:$H$550"),8,FALSE)), "Not Found", VLOOKUP(E83,INDIRECT("'"&$K$1&"'!$A$1:$H$550"),8,FALSE)) -> Fall2017 | I83: =IF(ISNA(VLOOKUP(E83,INDIRECT("'"&$K$1&"'!$A$1:$H$550"),5,FALSE)), "0", VLOOKUP(E83,INDIRECT("'"&$K$1&"'!$A$1:$H$550"),5,FALSE)) -> 3
A84: SCL-1 | D84: 1 | E84: =IF(ISNA(INDEX(INDIRECT("'"&$K$1&"'!$A$1:$A$550"), MATCH(A84,INDIRECT("'"&$K$1&"'!$B$1:$B$550"),0))), "Not Found", (INDEX(INDIRECT("'"&$K$1&"'!$A$1:$A$550"), MATCH(A84,INDIRECT("'"&$K$1&"'!$B$1:$B$550"),0)))) -> CHEM.1230L | H84: Fall2017 | I84: 1
A85: SC-2 | D85: 3 | E85: =IF(ISNA(INDEX(INDIRECT("'"&$K$1&"'!$A$1:$A$550"), MATCH(A85,INDIRECT("'"&$K$1&"'!$B$1:$B$550"),0))), "Not Found", (INDEX(INDIRECT("'"&$K$1&"'!$A$1:$A$550"), MATCH(A85,INDIRECT("'"&$K$1&"'!$B$1:$B$550"),0)))) -> CHEM.1220 | H85: Spring2018 | I85: 3
A86: SCL-2 | D86: 1 | E86: =IF(ISNA(INDEX(INDIRECT("'"&$K$1&"'!$A$1:$A$550"), MATCH(A86,INDIRECT("'"&$K$1&"'!$B$1:$B$550"),0))), "Not Found", (INDEX(INDIRECT("'"&$K$1&"'!$A$1:$A$550"), MATCH(A86,INDIRECT("'"&$K$1&"'!$B$1:$B$550"),0)))) -> CHEM.1240L | H86: Spring2018 | I86: 1
A87: STEM
A88: STEM | D88: 3 | E88: =IF(ISNA(INDEX(INDIRECT("'"&$K$1&"'!$A$1:$A$550"), MATCH(A88,INDIRECT("'"&$K$1&"'!$B$1:$B$550"),0))), "Not Found", (INDEX(INDIRECT("'"&$K$1&"'!$A$1:$A$550"), MATCH(A88,INDIRECT("'"&$K$1&"'!$B$1:$B$550"),0)))) -> BIOL.2350 | H88: =IF(ISNA(VLOOKUP(E88,INDIRECT("'"&$K$1&"'!$A$1:$H$550"),8,FALSE)), "Not Found", VLOOKUP(E88,INDIRECT("'"&$K$1&"'!$A$1:$H$550"),8,FALSE)) -> Fall2018 | I88: =IF(ISNA(VLOOKUP(E88,INDIRECT("'"&$K$1&"'!$A$1:$H$550"),5,FALSE)), "0", VLOOKUP(E88,INDIRECT("'"&$K$1&"'!$A$1:$H$550"),5,FALSE)) -> 3
A90: Diversity & Ethics ELOs
A91: Diversity & Cultural Awareness (DV)
A92: DV | D92: 3 | E92: =IF(ISNA(INDEX(INDIRECT("'"&$K$1&"'!$A$1:$A$550"), MATCH("*"&A92&"*",INDIRECT("'"&$K$1&"'!$B$1:$B$550"),0))), "Not Found", (INDEX(INDIRECT("'"&$K$1&"'!$A$1:$A$550"), MATCH("*"&A92&"*",INDIRECT("'"&$K$1&"'!$B$1:$B$550"),0)))) -> SOCI.2320 | H92: =IF(ISNA(VLOOKUP(E92,INDIRECT("'"&$K$1&"'!$A$1:$H$550"),8,FALSE)), "Not Found", VLOOKUP(E92,INDIRECT("'"&$K$1&"'!$A$1:$H$550"),8,FALSE)) -> Spring2017 | I92: =IF(ISNA(VLOOKUP(E92,INDIRECT("'"&$K$1&"'!$A$1:$H$550"),5,FALSE)), "0", VLOOKUP(E92,INDIRECT("'"&$K$1&"'!$A$1:$H$550"),5,FALSE)) -> 3
A93: Social Responsibility & Ethics (ET)
A94: ET | D94: 3 | E94: =IF(ISNA(INDEX(INDIRECT("'"&$K$1&"'!$A$1:$A$550"), MATCH("*"&A94&"*",INDIRECT("'"&$K$1&"'!$B$1:$B$550"),0))), "Not Found", (INDEX(INDIRECT("'"&$K$1&"'!$A$1:$A$550"), MATCH("*"&A94&"*",INDIRECT("'"&$K$1&"'!$B$1:$B$550"),0)))) -> CSET | H94: =IF(ISNA(VLOOKUP(E94,INDIRECT("'"&$K$1&"'!$A$1:$H$550"),8,FALSE)), "Not Found", VLOOKUP(E94,INDIRECT("'"&$K$1&"'!$A$1:$H$550"),8,FALSE)) -> Fall2018 | I94: =IF(ISNA(VLOOKUP(E94,INDIRECT("'"&$K$1&"'!$A$1:$H$550"),5,FALSE)), "0", VLOOKUP(E94,INDIRECT("'"&$K$1&"'!$A$1:$H$550"),5,FALSE)) -> 3
A96: Degree Credits | I96: Projected Degree Credits
D97: =SUM(D4:D45,D57,D70,D71,D75:D81) -> 121 | I97: =SUM(I4:I45,I57,I70,I71,I75:I81) -> 121

Sheet Graduation_Plan (hidden)
A1: Computer Science Graduation Plan
A2: Student Name | C2: Last Name, First Name
A3: University Id (not ss#)
A4: Email
A5: Primary Major (Option) | C5: Computer Science (General Option)
A6: Second Major:
A7: Third Major:
A8: Minors(s):
A9: Special Program(s):
A10: Scholarships:
A12: Matriculation Date (Month/Year) | E12: Sept. 2016
A13: Expected Graduation Date (Month/Year) | E13: June 2020
A15: Minimum Number of Credits Required for Degree(s) | E15: 120
A17: Transfer and AP Credits
A19: Course | B19: Req. | C19: Req. | D19: Course Title | E19: Credits | F19: Grade | G19: Degree Credits | H19: SemesterYear
H20: Transfer/AP
H21: Transfer/AP
H22: Transfer/AP
H23: Transfer/AP
H24: Transfer/AP
H25: Transfer/AP
H26: Transfer/AP
H27: Transfer/AP
H28: Transfer/AP
H29: Transfer/AP
H30: Transfer/AP
H31: Transfer/AP
H32: Transfer/AP
H33: Transfer/AP
H34: Transfer/AP
H35: Transfer/AP
H36: Transfer/AP
H37: Transfer/AP
H38: Transfer/AP
H39: Transfer/AP
H40: Transfer/AP
H41: Transfer/AP
H42: Transfer/AP
H43: Transfer/AP
H44: Transfer/AP
H45: Transfer/AP
H46: Transfer/AP
H47: Transfer/AP
H48: Transfer/AP
H49: Transfer/AP
H50: Transfer/AP
H51: Transfer/AP
H52: Transfer/AP
H53: Transfer/AP
H54: Transfer/AP
H55: Transfer/AP
H56: Transfer/AP
H57: Transfer/AP
H58: Transfer/AP
H59: Transfer/AP
H60: Transfer/AP
H61: Transfer/AP
H62: Transfer/AP
H63: Transfer/AP
H64: Transfer/AP
H65: Transfer/AP
H66: Transfer/AP
H67: Transfer/AP
H68: Transfer/AP
H69: Transfer/AP
D70: Transfer and AP Credits | E70: =SUM(E20:E69) -> 0 | G70: =SUM(G20:G69) -> 0
D71: Total Credits Earned | E71: =E70 -> 0 | G71: =E15-G70 -> 120
A73: Year 1
A74: Fall | B74: 2016 | C74: =C2 -> Last Name, First Name
A75: Course | B75: =B19 -> Req. | C75: =C19 -> Req. | D75: Course Title | E75: Credits | F75: Grade | G75: Degree Credits | H75: SemesterYear
H76: =$A$74&$B$74 -> Fall2016
H77: =$A$74&$B$74 -> Fall2016
H78: Fall2016
H79: Fall2016
H80: Fall2016
H81: Fall2016
H82: Fall2016
H83: Fall2016
H84: Fall2016
H85: Fall2016
D86: Semester Credits Earned | E86: =SUM(E76:E85) -> 0 | G86: =SUM(G76:G85) -> 0
D87: =D71 -> Total Credits Earned | E87: =E71+E86 -> 0 | G87: =G71-G86 -> 120
A89: Winter | B89: =B74+1 -> 2017 | C89: =C2 -> Last Name, First Name
A90: Course | B90: =B19 -> Req. | D90: Course Title | E90: Credits | F90: Grade | G90: Degree Credits | H90: SemesterYear
H91: =$A$89&$B$89 -> Winter2017
H92: =$A$89&$B$89 -> Winter2017
H93: Winter2017
D94: =D86 -> Semester Credits Earned | E94: =SUM(E91:E93) -> 0 | G94: =SUM(G91:G93) -> 0
D95: =D71 -> Total Credits Earned | E95: =E87+E94 -> 0 | G95: =G87-G94 -> 120
A97: Spring | B97: =B74+1 -> 2017 | C97: =C2 -> Last Name, First Name
A98: Course | B98: =B19 -> Req. | C98: =C19 -> Req. | D98: Course Title | E98: Credits | F98: Grade | G98: Degree Credits | H98: SemesterYear
H99: =$A$97&$B$97 -> Spring2017
H100: =$A$97&$B$97 -> Spring2017
H101: Spring2017
H102: Spring2017
H103: Spring2017
H104: Spring2017
H105: Spring2017
H106: Spring2017
H107: Spring2017
H108: Spring2017
D109: =D86 -> Semester Credits Earned | E109: =SUM(E99:E108) -> 0 | G109: =SUM(G99:G108) -> 0
D110: =D71 -> Total Credits Earned | E110: =E95+E109 -> 0 | G110: =G95-G109 -> 120
A112: Summer | B112: =B74+1 -> 2017 | C112: =C2 -> Last Name, First Name
A113: Course | B113: =B19 -> Req. | C113: =C19 -> Req. | D113: Course Title | E113: Credits | F113: Grade | G113: Degree Credits | H113: SemesterYear
H114: =$A$112&$B$112 -> Summer2017
H115: =$A$112&$B$112 -> Summer2017
H116: Summer2017
H117: Summer2017
H118: Summer2017
H119: Summer2017
D120: =D86 -> Semester Credits Earned | E120: =SUM(E114:E119) -> 0 | G120: =SUM(G114:G119) -> 0
D121: =D71 -> Total Credits Earned | E121: =E110+E120 -> 0 | G121: =G110-G120 -> 120
A123: Year 2
A124: Fall | B124: =B74+1 -> 2017 | C124: =C2 -> Last Name, First Name
A125: Course | B125: =B19 -> Req. | C125: =C19 -> Req. | D125: Course Title | E125: Credits | F125: Grade | G125: Degree Credits | H125: SemesterYear
H126: =$A$124&$B$124 -> Fall2017
H127: =$A$124&$B$124 -> Fall2017
H128: Fall2017
H129: Fall2017
H130: Fall2017
H131: Fall2017
H132: Fall2017
H133: Fall2017
H134: Fall2017
H135: Fall2017
D136: =D86 -> Semester Credits Earned | E136: =SUM(E126:E135) -> 0 | G136: =SUM(G126:G135) -> 0
D137: =D71 -> Total Credits Earned | E137: =E121+E136 -> 0 | G137: =G121-G136 -> 120
A139: Winter | B139: =B74+2 -> 2018 | C139: =C2 -> Last Name, First Name
A140: Course | B140: =B19 -> Req. | C140: =C19 -> Req. | D140: Course Title | E140: Credits | F140: Grade | G140: Degree Credits | H140: SemesterYear
H141: =$A$139&$B$139 -> Winter2018
H142: =$A$139&$B$139 -> Winter2018
H143: Winter2018
D144: =D86 -> Semester Credits Earned | E144: =SUM(E141:E143) -> 0 | G144: =SUM(G141:G143) -> 0
D145: =D71 -> Total Credits Earned | E145: =E137+E144 -> 0 | G145: =G137-G144 -> 120
A147: Spring | B147: =B89+1 -> 2018 | C147: =C2 -> Last Name, First Name
A148: Course | B148: =B19 -> Req. | C148: =C19 -> Req. | D148: Course Title | E148: Credits | F148: Grade | G148: Degree Credits | H148: SemesterYear
H149: =$A$147&$B$147 -> Spring2018
H150: =$A$147&$B$147 -> Spring2018
H151: Spring2018
H152: Spring2018
H153: Spring2018
H154: Spring2018
H155: Spring2018
H156: Spring2018
H157: Spring2018
H158: Spring2018
D159: =D86 -> Semester Credits Earned | E159: =SUM(E149:E158) -> 0 | G159: =SUM(G149:G158) -> 0
D160: =D71 -> Total Credits Earned | E160: =E145+E159 -> 0 | G160: =G145-G159 -> 120
A162: Summer | B162: =B74+2 -> 2018 | C162: =C2 -> Last Name, First Name
A163: Course | B163: =B19 -> Req. | C163: =C19 -> Req. | D163: Course Title | E163: Credits | F163: Grade | G163: Degree Credits | H163: SemesterYear
H164: =$A$162&$B$162 -> Summer2018
H165: =$A$162&$B$162 -> Summer2018
H166: Summer2018
H167: Summer2018
H168: Summer2018
H169: Summer2018
D170: =D86 -> Semester Credits Earned | E170: =SUM(E164:E169) -> 0 | G170: =SUM(G163:G169) -> 0
D171: =D71 -> Total Credits Earned | E171: =E160+E170 -> 0 | G171: =G160-G170 -> 120
A173: Year 3
A174: Fall | B174: =B74+2 -> 2018 | C174: =C2 -> Last Name, First Name
A175: Course | B175: =B19 -> Req. | C175: =C19 -> Req. | D175: Course Title | E175: Credits | F175: Grade | G175: Degree Credits | H175: SemesterYear
H176: =$A$174&$B$174 -> Fall2018
H177: =$A$174&$B$174 -> Fall2018
H178: Fall2018
H179: Fall2018
H180: Fall2018
H181: Fall2018
H182: Fall2018
H183: Fall2018
H184: Fall2018
H185: Fall2018
D186: =D86 -> Semester Credits Earned | E186: =SUM(E176:E185) -> 0 | G186: =SUM(G176:G185) -> 0
D187: =D71 -> Total Credits Earned | E187: =E171+E186 -> 0 | G187: =G171-G186 -> 120
A189: Winter | B189: =B74+3 -> 2019 | C189: =C2 -> Last Name, First Name
A190: Course | B190: =B19 -> Req. | C190: =C19 -> Req. | D190: Course Title | E190: Credits | F190: Grade | G190: Degree Credits | H190: SemesterYear
H191: =$A$189&$B$189 -> Winter2019
H192: =$A$189&$B$189 -> Winter2019
H193: Winter2019
D194: =D86 -> Semester Credits Earned | E194: =SUM(E191:E193) -> 0 | G194: =SUM(G191:G193) -> 0 | H194: =SUM(H191:H193) -> 0
D195: =D71 -> Total Credits Earned | E195: =E187+E194 -> 0 | G195: =G187-G194 -> 120
A197: Spring | B197: =B74+3 -> 2019 | C197: =C2 -> Last Name, First Name
A198: Course | B198: =B19 -> Req. | C198: =C19 -> Req. | D198: Course Title | E198: Credits | F198: Grade | G198: Degree Credits | H198: SemesterYear
H199: =$A$197&$B$197 -> Spring2019
H200: =$A$197&$B$197 -> Spring2019
H201: Spring2019
H202: Spring2019
H203: Spring2019
H204: Spring2019
H205: Spring2019
H206: Spring2019
H207: Spring2019
H208: Spring2019
D209: =D86 -> Semester Credits Earned | E209: =SUM(E199:E208) -> 0 | G209: =SUM(G199:G208) -> 0
D210: =D71 -> Total Credits Earned | E210: =E195+E209 -> 0 | G210: =G195-G209 -> 120
A212: Summer | B212: =B74+3 -> 2019 | C212: =C2 -> Last Name, First Name
A213: Course | B213: =B19 -> Req. | C213: =C19 -> Req. | D213: Course Title | E213: Credits | F213: Grade | G213: Degree Credits | H213: SemesterYear
H214: =$A$212&$B$212 -> Summer2019
H215: =$A$212&$B$212 -> Summer2019
H216: Summer2019
... 150 more rows

Sheet Checklist (hidden)
A1: Checklist - Computer Science | K1: Graduation_Plan | L1: Required Computer Science Electives
A2: Requirement | D2: Credits | E2: Taken | H2: Semester | I2: Credits | L2: List courses you are interested in possibly taking. (NOTE: This is not required.)
A3: Required Computer Science Courses | L3: Course | M3: Title
A4: COMP.1010 | B4: or | C4: 91.101 | D4: 3 | E4: COMP.1010 | F4: or | G4: 91.101 | H4: =IF(AND(ISNA(VLOOKUP(E4,INDIRECT("'"&$K$1&"'!$A$1:$H$550"),8,FALSE)), ISNA(VLOOKUP(G4,INDIRECT("'"&$K$1&"'!$A$1:$H$550"),8,FALSE))), "Not Found", (IF(ISNA(VLOOKUP(E4,INDIRECT("'"&$K$1&"'!$A$1:$H$550"),8,FALSE)), VLOOKUP(G4,INDIRECT("'"&$K$1&"'!$A$1:$H$550"),8,FALSE), VLOOKUP(E4,INDIRECT("'"&$K$1&"'!$A$1:$H$550"),8,FALSE)))) -> Not Found | I4: =IF(AND(ISNA(VLOOKUP(E4,INDIRECT("'"&$K$1&"'!$A$1:$H$550"),5,FALSE)), ISNA(VLOOKUP(G4,INDIRECT("'"&$K$1&"'!$A$1:$H$550"),5,FALSE))), "0", (IF(ISNA(VLOOKUP(E4,INDIRECT("'"&$K$1&"'!$A$1:$H$550"),5,FALSE)), VLOOKUP(G4,INDIRECT("'"&$K$1&"'!$A$1:$H$550"),5,FALSE), VLOOKUP(E4,INDIRECT("'"&$K$1&"'!$A$1:$H$550"),5,FALSE)))) -> 0
A5: COMP.1030L | B5: or | C5: 91.103 | D5: 1 | E5: COMP.1030L | F5: or | G5: 91.103 | H5: =IF(AND(ISNA(VLOOKUP(E5,INDIRECT("'"&$K$1&"'!$A$1:$H$550"),8,FALSE)), ISNA(VLOOKUP(G5,INDIRECT("'"&$K$1&"'!$A$1:$H$550"),8,FALSE))), "Not Found", (IF(ISNA(VLOOKUP(E5,INDIRECT("'"&$K$1&"'!$A$1:$H$550"),8,FALSE)), VLOOKUP(G5,INDIRECT("'"&$K$1&"'!$A$1:$H$550"),8,FALSE), VLOOKUP(E5,INDIRECT("'"&$K$1&"'!$A$1:$H$550"),8,FALSE)))) -> Not Found | I5: 0
A6: COMP.1020 | B6: or | C6: 91.102 | D6: 3 | E6: COMP.1020 | F6: or | G6: 91.102 | H6: Not Found | I6: =IF(AND(ISNA(VLOOKUP(E6,INDIRECT("'"&$K$1&"'!$A$1:$H$550"),5,FALSE)), ISNA(VLOOKUP(G6,INDIRECT("'"&$K$1&"'!$A$1:$H$550"),5,FALSE))), "0", (IF(ISNA(VLOOKUP(E6,INDIRECT("'"&$K$1&"'!$A$1:$H$550"),5,FALSE)), VLOOKUP(G6,INDIRECT("'"&$K$1&"'!$A$1:$H$550"),5,FALSE), VLOOKUP(E6,INDIRECT("'"&$K$1&"'!$A$1:$H$550"),5,FALSE)))) -> 0
A7: COMP.1040L | B7: or | C7: 91.104 | D7: 1 | E7: COMP.1040L | F7: or | G7: 91.104 | H7: Not Found | I7: =IF(AND(ISNA(VLOOKUP(E7,INDIRECT("'"&$K$1&"'!$A$1:$H$550"),5,FALSE)), ISNA(VLOOKUP(G7,INDIRECT("'"&$K$1&"'!$A$1:$H$550"),5,FALSE))), "0", (IF(ISNA(VLOOKUP(E7,INDIRECT("'"&$K$1&"'!$A$1:$H$550"),5,FALSE)), VLOOKUP(G7,INDIRECT("'"&$K$1&"'!$A$1:$H$550"),5,FALSE), VLOOKUP(E7,INDIRECT("'"&$K$1&"'!$A$1:$H$550"),5,FALSE)))) -> 0
A8: COMP.2010 | B8: or | C8: 91.201 | D8: 3 | E8: COMP.2010 | F8: or | G8: 91.201 | H8: Not Found | I8: 0
A9: COMP.2010L | D9: 1 | E9: COMP.2010L | H9: =IF(AND(ISNA(VLOOKUP(E9,INDIRECT("'"&$K$1&"'!$A$1:$H$550"),8,FALSE)), ISNA(VLOOKUP(G9,INDIRECT("'"&$K$1&"'!$A$1:$H$550"),8,FALSE))), "Not Found", (IF(ISNA(VLOOKUP(E9,INDIRECT("'"&$K$1&"'!$A$1:$H$550"),8,FALSE)), VLOOKUP(G9,INDIRECT("'"&$K$1&"'!$A$1:$H$550"),8,FALSE), VLOOKUP(E9,INDIRECT("'"&$K$1&"'!$A$1:$H$550"),8,FALSE)))) -> Not Found | I9: =IF(AND(ISNA(VLOOKUP(E9,INDIRECT("'"&$K$1&"'!$A$1:$H$550"),5,FALSE)), ISNA(VLOOKUP(G9,INDIRECT("'"&$K$1&"'!$A$1:$H$550"),5,FALSE))), "0", (IF(ISNA(VLOOKUP(E9,INDIRECT("'"&$K$1&"'!$A$1:$H$550"),5,FALSE)), VLOOKUP(G9,INDIRECT("'"&$K$1&"'!$A$1:$H$550"),5,FALSE), VLOOKUP(E9,INDIRECT("'"&$K$1&"'!$A$1:$H$550"),5,FALSE)))) -> 0
A10: COMP.2030 | B10: or | C10: 91.203 | D10: 3 | E10: COMP.2030 | F10: or | G10: 91.203 | H10: Not Found | I10: 0
A11: COMP.2030L | D11: 1 | E11: COMP.2030L | H11: =IF(AND(ISNA(VLOOKUP(E11,INDIRECT("'"&$K$1&"'!$A$1:$H$550"),8,FALSE)), ISNA(VLOOKUP(G11,INDIRECT("'"&$K$1&"'!$A$1:$H$550"),8,FALSE))), "Not Found", (IF(ISNA(VLOOKUP(E11,INDIRECT("'"&$K$1&"'!$A$1:$H$550"),8,FALSE)), VLOOKUP(G11,INDIRECT("'"&$K$1&"'!$A$1:$H$550"),8,FALSE), VLOOKUP(E11,INDIRECT("'"&$K$1&"'!$A$1:$H$550"),8,FALSE)))) -> Not Found | I11: =IF(AND(ISNA(VLOOKUP(E11,INDIRECT("'"&$K$1&"'!$A$1:$H$550"),5,FALSE)), ISNA(VLOOKUP(G11,INDIRECT("'"&$K$1&"'!$A$1:$H$550"),5,FALSE))), "0", (IF(ISNA(VLOOKUP(E11,INDIRECT("'"&$K$1&"'!$A$1:$H$550"),5,FALSE)), VLOOKUP(G11,INDIRECT("'"&$K$1&"'!$A$1:$H$550"),5,FALSE), VLOOKUP(E11,INDIRECT("'"&$K$1&"'!$A$1:$H$550"),5,FALSE)))) -> 0
A12: COMP.2040 | B12: or | C12: 91.204 | D12: 3 | E12: COMP.2040 | F12: or | G12: 91.204 | H12: Not Found | I12: 0
A13: COMP.3010 | B13: or | C13: 91.301 | D13: 3 | E13: COMP.3010 | F13: or | G13: 91.301 | H13: Not Found | I13: 0
A14: COMP.3040 | B14: or | C14: 91.304 | D14: 3 | E14: COMP.3040 | F14: or | G14: 91.304 | H14: Not Found | I14: 0
A15: COMP.3050 | B15: or | C15: 91.305 | D15: 3 | E15: COMP.3050 | F15: or | G15: 91.305 | H15: Not Found | I15: 0
A16: COMP.3080 | B16: or | C16: 91.308 | D16: 3 | E16: COMP.3080 | F16: or | G16: 91.308 | H16: Not Found | I16: 0
A17: COMP.4040 | B17: or | C17: 91.404 | D17: 3 | E17: COMP.4040 | F17: or | G17: 91.404 | H17: Not Found | I17: 0
A18: Required CS Electives
A19: CSE-1 | D19: 3 | E19: =IF(ISNA(INDEX(INDIRECT("'"&$K$1&"'!$A$1:$A$550"), MATCH(A19,INDIRECT("'"&$K$1&"'!$B$1:$B$550"),0))), "Not Found", (INDEX(INDIRECT("'"&$K$1&"'!$A$1:$A$550"), MATCH(A19,INDIRECT("'"&$K$1&"'!$B$1:$B$550"),0)))) -> Not Found | H19: =IF(ISNA(VLOOKUP(E19,INDIRECT("'"&$K$1&"'!$A$1:$H$550"),8,FALSE)), "Not Found", VLOOKUP(E19,INDIRECT("'"&$K$1&"'!$A$1:$H$550"),8,FALSE)) -> Not Found | I19: =IF(ISNA(VLOOKUP(E19,INDIRECT("'"&$K$1&"'!$A$1:$H$550"),5,FALSE)), "0", VLOOKUP(E19,INDIRECT("'"&$K$1&"'!$A$1:$H$550"),5,FALSE)) -> 0
A20: CSE-2 | D20: 3 | E20: Not Found | H20: Not Found | I20: 0
A21: CS Project Course
A22: Sr.Prj-1 | D22: 3 | E22: Not Found | H22: Not Found | I22: 0
A23: Sr.Prj-2 | D23: 3 | E23: Not Found | H23: Not Found | I23: 0
A25: Required Supporting Technical Course
A26: Requirement | D26: Credits | E26: Taken | H26: Semester | I26: Credits
A27: Electrical Engineering
A28: EECE.2650 | B28: or | C28: 16.265 | D28: 3 | E28: EECE.2650 | F28: or | G28: 16.265 | H28: =IF(AND(ISNA(VLOOKUP(E28,INDIRECT("'"&$K$1&"'!$A$1:$H$550"),8,FALSE)), ISNA(VLOOKUP(G28,INDIRECT("'"&$K$1&"'!$A$1:$H$550"),8,FALSE))), "Not Found", (IF(ISNA(VLOOKUP(E28,INDIRECT("'"&$K$1&"'!$A$1:$H$550"),8,FALSE)), VLOOKUP(G28,INDIRECT("'"&$K$1&"'!$A$1:$H$550"),8,FALSE), VLOOKUP(E28,INDIRECT("'"&$K$1&"'!$A$1:$H$550"),8,FALSE)))) -> Not Found | I28: =IF(AND(ISNA(VLOOKUP(E28,INDIRECT("'"&$K$1&"'!$A$1:$H$550"),5,FALSE)), ISNA(VLOOKUP(G28,INDIRECT("'"&$K$1&"'!$A$1:$H$550"),5,FALSE))), "0", (IF(ISNA(VLOOKUP(E28,INDIRECT("'"&$K$1&"'!$A$1:$H$550"),5,FALSE)), VLOOKUP(G28,INDIRECT("'"&$K$1&"'!$A$1:$H$550"),5,FALSE), VLOOKUP(E28,INDIRECT("'"&$K$1&"'!$A$1:$H$550"),5,FALSE)))) -> 0
A29: Mathematics
A30: MATH.1310 | B30: or | C30: 92.131 | D30: 4 | E30: MATH.1310 | F30: or | G30: 92.131 | H30: =IF(AND(ISNA(VLOOKUP(E30,INDIRECT("'"&$K$1&"'!$A$1:$H$550"),8,FALSE)), ISNA(VLOOKUP(G30,INDIRECT("'"&$K$1&"'!$A$1:$H$550"),8,FALSE))), "Not Found", (IF(ISNA(VLOOKUP(E30,INDIRECT("'"&$K$1&"'!$A$1:$H$550"),8,FALSE)), VLOOKUP(G30,INDIRECT("'"&$K$1&"'!$A$1:$H$550"),8,FALSE), VLOOKUP(E30,INDIRECT("'"&$K$1&"'!$A$1:$H$550"),8,FALSE)))) -> Not Found | I30: =IF(AND(ISNA(VLOOKUP(E30,INDIRECT("'"&$K$1&"'!$A$1:$H$550"),5,FALSE)), ISNA(VLOOKUP(G30,INDIRECT("'"&$K$1&"'!$A$1:$H$550"),5,FALSE))), "0", (IF(ISNA(VLOOKUP(E30,INDIRECT("'"&$K$1&"'!$A$1:$H$550"),5,FALSE)), VLOOKUP(G30,INDIRECT("'"&$K$1&"'!$A$1:$H$550"),5,FALSE), VLOOKUP(E30,INDIRECT("'"&$K$1&"'!$A$1:$H$550"),5,FALSE)))) -> 0
A31: MATH.1320 | B31: or | C31: 92.132 | D31: 4 | E31: MATH.1320 | F31: or | G31: 92.132 | H31: Not Found | I31: 0
A32: MATH.3210 | B32: or | C32: 92.321 | D32: 3 | E32: MATH.3210 | F32: or | G32: 92.321 | H32: Not Found | I32: 0
A33: MATH.3220 | B33: or | C33: 92.322 | D33: 3 | E33: MATH.3220 | F33: or | G33: 92.322 | H33: Not Found | I33: 0
A34: MATH.3860 | B34: or | C34: 92.386 | D34: 3 | E34: MATH.3860 | F34: or | G34: 92.386 | H34: Not Found | I34: 0
A36: Natural Science Electives | L36: Natural Science Electives
A37: Requirement | D37: Credits | E37: Taken | H37: Semester | I37: Credits | L37: List courses you are interested in possibly taking to satisfy this requirement
A38: NS-1 | D38: 3 | E38: =IF(ISNA(INDEX(INDIRECT("'"&$K$1&"'!$A$1:$A$550"), MATCH(A38,INDIRECT("'"&$K$1&"'!$C$1:$C$550"),0))), "Not Found", (INDEX(INDIRECT("'"&$K$1&"'!$A$1:$A$550"), MATCH(A38,INDIRECT("'"&$K$1&"'!$C$1:$C$550"),0)))) -> Not Found | H38: =IF(ISNA(VLOOKUP(E38,INDIRECT("'"&$K$1&"'!$A$1:$H$550"),8,FALSE)), "Not Found", VLOOKUP(E38,INDIRECT("'"&$K$1&"'!$A$1:$H$550"),8,FALSE)) -> Not Found | I38: =IF(ISNA(VLOOKUP(E38,INDIRECT("'"&$K$1&"'!$A$1:$H$550"),5,FALSE)), "0", VLOOKUP(E38,INDIRECT("'"&$K$1&"'!$A$1:$H$550"),5,FALSE)) -> 0 | L38: Course | M38: Title
A39: NS-Lab1 | D39: 1 | E39: =IF(ISNA(INDEX(INDIRECT("'"&$K$1&"'!$A$1:$A$550"), MATCH(A39,INDIRECT("'"&$K$1&"'!$C$1:$C$550"),0))), "Not Found", (INDEX(INDIRECT("'"&$K$1&"'!$A$1:$A$550"), MATCH(A39,INDIRECT("'"&$K$1&"'!$C$1:$C$550"),0)))) -> Not Found | H39: Not Found | I39: 0
A40: NS-2 | D40: 3 | E40: Not Found | H40: Not Found | I40: 0
A41: NS-Lab2 | D41: 1 | E41: Not Found | H41: Not Found | I41: 0
A42: NS-3 | D42: 3 | E42: Not Found | H42: Not Found | I42: 0
A43: NS-Lab3 | D43: 1 | E43: Not Found | H43: Not Found | I43: 0
A44: Not Req. | D44: n/a | E44: Not Found | H44: Not Found | I44: 0
A45: Not Req. | D45: n/a | E45: Not Found | H45: Not Found | I45: 0
A51: Technical Electives | L51: Technical Electives
A52: Requirement | D52: Credits | E52: Taken | H52: Semester | I52: Credits | L52: List courses you are interested in possibly taking to satisfy this requirement
A53: TE-1 | D53: 3 | E53: =IF(ISNA(INDEX(INDIRECT("'"&$K$1&"'!$A$1:$A$550"), MATCH(A53,INDIRECT("'"&$K$1&"'!$B$1:$B$550"),0))), "Not Found", (INDEX(INDIRECT("'"&$K$1&"'!$A$1:$A$550"), MATCH(A53,INDIRECT("'"&$K$1&"'!$B$1:$B$550"),0)))) -> Not Found | H53: =IF(ISNA(VLOOKUP(E53,INDIRECT("'"&$K$1&"'!$A$1:$H$550"),8,FALSE)), "Not Found", VLOOKUP(E53,INDIRECT("'"&$K$1&"'!$A$1:$H$550"),8,FALSE)) -> Not Found | I53: =IF(ISNA(VLOOKUP(E53,INDIRECT("'"&$K$1&"'!$A$1:$H$550"),5,FALSE)), "0", VLOOKUP(E53,INDIRECT("'"&$K$1&"'!$A$1:$H$550"),5,FALSE)) -> 0 | L53: Course | M53: Title
A54: TE-2 | D54: 3 | E54: Not Found | H54: Not Found | I54: 0
A55: Not Req. | D55: n/a | E55: Not Found | H55: Not Found | I55: 0
A56: Not Req. | D56: n/a | E56: Not Found | H56: Not Found | I56: 0
A57: Not Req. | D57: n/a | E57: Not Found | H57: Not Found | I57: 0
A63: Free Electives (FE) | L63: Free Electives
A64: Requirement | D64: Credits | E64: Taken | H64: Semester | I64: Credits | L64: List free electives you are interested in taking. These cannot be below the level of a
A65: FE-1 | D65: 3 | E65: =IF(ISNA(INDEX(INDIRECT("'"&$K$1&"'!$A$1:$A$550"), MATCH("*"&A65&"*",INDIRECT("'"&$K$1&"'!$B$1:$B$550"),0))), "Not Found", (INDEX(INDIRECT("'"&$K$1&"'!$A$1:$A$550"), MATCH("*"&A65&"*",INDIRECT("'"&$K$1&"'!$B$1:$B$550"),0)))) -> Not Found | H65: =IF(ISNA(VLOOKUP(E65,INDIRECT("'"&$K$1&"'!$A$1:$H$550"),8,FALSE)), "Not Found", VLOOKUP(E65,INDIRECT("'"&$K$1&"'!$A$1:$H$550"),8,FALSE)) -> Not Found | I65: =IF(ISNA(VLOOKUP(E65,INDIRECT("'"&$K$1&"'!$A$1:$H$550"),5,FALSE)), "0", VLOOKUP(E65,INDIRECT("'"&$K$1&"'!$A$1:$H$550"),5,FALSE)) -> 0 | L65: required course. Specific courses may be recommended for different CS tracks.
A66: FE-2 | D66: 3 | E66: Not Found | H66: Not Found | I66: 0
A67: FE-3 | D67: 3 | E67: Not Found | H67: Not Found | I67: 0
A68: FE-4 | D68: 3 | E68: Not Found | H68: Not Found | I68: 0
A69: Not Req. | D69: n/a | E69: Not Found | H69: Not Found | I69: 0
A70: Not Req. | D70: n/a | E70: Not Found | H70: Not Found | I70: 0
A72: Required FE Credits | H72: Projected Credits
D73: =120-SUM(D4:D45, D53:D57, D86:D87,D91:D97) -> 12 | I73: =SUM(I65:I71) -> 0
A75: Oral & Written Communication
A76: Requirement | D76: Credits | E76: Taken | H76: Semester | I76: Credits
A77: ENGL.2200 | B77: or | C77: 42.220 | D77: 3 | E77: ENGL.2200 | F77: or | G77: 42.220 | H77: =IF(AND(ISNA(VLOOKUP(E77,INDIRECT("'"&$K$1&"'!$A$1:$H$550"),8,FALSE)), ISNA(VLOOKUP(G77,INDIRECT("'"&$K$1&"'!$A$1:$H$550"),8,FALSE))), "Not Found", (IF(ISNA(VLOOKUP(E77,INDIRECT("'"&$K$1&"'!$A$1:$H$550"),8,FALSE)), VLOOKUP(G77,INDIRECT("'"&$K$1&"'!$A$1:$H$550"),8,FALSE), VLOOKUP(E77,INDIRECT("'"&$K$1&"'!$A$1:$H$550"),8,FALSE)))) -> Not Found | I77: =IF(AND(ISNA(VLOOKUP(E77,INDIRECT("'"&$K$1&"'!$A$1:$H$550"),5,FALSE)), ISNA(VLOOKUP(G77,INDIRECT("'"&$K$1&"'!$A$1:$H$550"),5,FALSE))), "0", (IF(ISNA(VLOOKUP(E77,INDIRECT("'"&$K$1&"'!$A$1:$H$550"),5,FALSE)), VLOOKUP(G77,INDIRECT("'"&$K$1&"'!$A$1:$H$550"),5,FALSE), VLOOKUP(E77,INDIRECT("'"&$K$1&"'!$A$1:$H$550"),5,FALSE)))) -> 0
A79: CS Ethics Requirement
A80: Requirement | D80: Credits | E80: Taken | H80: Semester | I80: Credits
A81: CSET | D81: 3 | E81: =IF(ISNA(INDEX(INDIRECT("'"&$K$1&"'!$A$1:$A$550"), MATCH(A81,INDIRECT("'"&$K$1&"'!$C$1:$C$550"),0))), "Not Found", (INDEX(INDIRECT("'"&$K$1&"'!$A$1:$A$550"), MATCH(A81,INDIRECT("'"&$K$1&"'!$C$1:$C$550"),0)))) -> Not Found | H81: =IF(ISNA(VLOOKUP(E81,INDIRECT("'"&$K$1&"'!$A$1:$H$550"),8,FALSE)), "Not Found", VLOOKUP(E81,INDIRECT("'"&$K$1&"'!$A$1:$H$550"),8,FALSE)) -> Not Found | I81: =IF(ISNA(VLOOKUP(E81,INDIRECT("'"&$K$1&"'!$A$1:$H$550"),5,FALSE)), "0", VLOOKUP(E81,INDIRECT("'"&$K$1&"'!$A$1:$H$550"),5,FALSE)) -> 0
A83: Breadth of Knowledge | L83: Breadth of Knowledge Requirements
A84: Requirement | D84: Credits | E84: Taken | H84: Semester | I84: Credits | L84: Select courses you are interested in taking to satisfy this Requirements.
A85: College Writing | L85: Area | M85: Title
A86: CW-1 | D86: 3 | E86: =IF(ISNA(INDEX(INDIRECT("'"&$K$1&"'!$A$1:$A$550"), MATCH(A86,INDIRECT("'"&$K$1&"'!$B$1:$B$550"),0))), "Not Found", (INDEX(INDIRECT("'"&$K$1&"'!$A$1:$A$550"), MATCH(A86,INDIRECT("'"&$K$1&"'!$B$1:$B$550"),0)))) -> Not Found | H86: =IF(ISNA(VLOOKUP(E86,INDIRECT("'"&$K$1&"'!$A$1:$H$550"),8,FALSE)), "Not Found", VLOOKUP(E86,INDIRECT("'"&$K$1&"'!$A$1:$H$550"),8,FALSE)) -> Not Found | I86: =IF(ISNA(VLOOKUP(E86,INDIRECT("'"&$K$1&"'!$A$1:$H$550"),5,FALSE)), "0", VLOOKUP(E86,INDIRECT("'"&$K$1&"'!$A$1:$H$550"),5,FALSE)) -> 0
A87: CW-2 | D87: 3 | E87: Not Found | H87: Not Found | I87: 0
A88: Mathematics
A89: MA | D89: 4 | E89: =IF(ISNA(INDEX(INDIRECT("'"&$K$1&"'!$A$1:$A$550"), MATCH(A89,INDIRECT("'"&$K$1&"'!$B$1:$B$550"),0))), "Not Found", (INDEX(INDIRECT("'"&$K$1&"'!$A$1:$A$550"), MATCH(A89,INDIRECT("'"&$K$1&"'!$B$1:$B$550"),0)))) -> Not Found | H89: =IF(ISNA(VLOOKUP(E89,INDIRECT("'"&$K$1&"'!$A$1:$H$550"),8,FALSE)), "Not Found", VLOOKUP(E89,INDIRECT("'"&$K$1&"'!$A$1:$H$550"),8,FALSE)) -> Not Found | I89: =IF(ISNA(VLOOKUP(E89,INDIRECT("'"&$K$1&"'!$A$1:$H$550"),5,FALSE)), "0", VLOOKUP(E89,INDIRECT("'"&$K$1&"'!$A$1:$H$550"),5,FALSE)) -> 0
A90: Arts & Humanities
A91: AH-1 | D91: 3 | E91: =IF(ISNA(INDEX(INDIRECT("'"&$K$1&"'!$A$1:$A$550"), MATCH("*"&A91&"*",INDIRECT("'"&$K$1&"'!$B$1:$B$550"),0))), "Not Found", (INDEX(INDIRECT("'"&$K$1&"'!$A$1:$A$550"), MATCH("*"&A91&"*",INDIRECT("'"&$K$1&"'!$B$1:$B$550"),0)))) -> Not Found | H91: =IF(ISNA(VLOOKUP(E91,INDIRECT("'"&$K$1&"'!$A$1:$H$550"),8,FALSE)), "Not Found", VLOOKUP(E91,INDIRECT("'"&$K$1&"'!$A$1:$H$550"),8,FALSE)) -> Not Found | I91: =IF(ISNA(VLOOKUP(E91,INDIRECT("'"&$K$1&"'!$A$1:$H$550"),5,FALSE)), "0", VLOOKUP(E91,INDIRECT("'"&$K$1&"'!$A$1:$H$550"),5,FALSE)) -> 0
A92: AH-2 | D92: 3 | E92: =IF(ISNA(INDEX(INDIRECT("'"&$K$1&"'!$A$1:$A$550"), MATCH("*"&A92&"*",INDIRECT("'"&$K$1&"'!$B$1:$B$550"),0))), "Not Found", (INDEX(INDIRECT("'"&$K$1&"'!$A$1:$A$550"), MATCH("*"&A92&"*",INDIRECT("'"&$K$1&"'!$B$1:$B$550"),0)))) -> Not Found | H92: Not Found | I92: 0
A93: AH-3 | D93: 3 | E93: Not Found | H93: Not Found | I93: 0
A94: Social Sciences
A95: SS-1 | D95: 3 | E95: =IF(ISNA(INDEX(INDIRECT("'"&$K$1&"'!$A$1:$A$550"), MATCH("*"&A95&"*",INDIRECT("'"&$K$1&"'!$B$1:$B$550"),0))), "Not Found", (INDEX(INDIRECT("'"&$K$1&"'!$A$1:$A$550"), MATCH("*"&A95&"*",INDIRECT("'"&$K$1&"'!$B$1:$B$550"),0)))) -> Not Found | H95: =IF(ISNA(VLOOKUP(E95,INDIRECT("'"&$K$1&"'!$A$1:$H$550"),8,FALSE)), "Not Found", VLOOKUP(E95,INDIRECT("'"&$K$1&"'!$A$1:$H$550"),8,FALSE)) -> Not Found | I95: =IF(ISNA(VLOOKUP(E95,INDIRECT("'"&$K$1&"'!$A$1:$H$550"),5,FALSE)), "0", VLOOKUP(E95,INDIRECT("'"&$K$1&"'!$A$1:$H$550"),5,FALSE)) -> 0
A96: SS-2 | D96: 3 | E96: Not Found | H96: Not Found | I96: 0
A97: SS-3 | D97: 3 | E97: Not Found | H97: Not Found | I97: 0
A98: Sciences with Lab
A99: SC-1 | D99: 3 | E99: =IF(ISNA(INDEX(INDIRECT("'"&$K$1&"'!$A$1:$A$550"), MATCH(A99,INDIRECT("'"&$K$1&"'!$B$1:$B$550"),0))), "Not Found", (INDEX(INDIRECT("'"&$K$1&"'!$A$1:$A$550"), MATCH(A99,INDIRECT("'"&$K$1&"'!$B$1:$B$550"),0)))) -> Not Found | H99: =IF(ISNA(VLOOKUP(E99,INDIRECT("'"&$K$1&"'!$A$1:$H$550"),8,FALSE)), "Not Found", VLOOKUP(E99,INDIRECT("'"&$K$1&"'!$A$1:$H$550"),8,FALSE)) -> Not Found | I99: =IF(ISNA(VLOOKUP(E99,INDIRECT("'"&$K$1&"'!$A$1:$H$550"),5,FALSE)), "0", VLOOKUP(E99,INDIRECT("'"&$K$1&"'!$A$1:$H$550"),5,FALSE)) -> 0
A100: SCL-1 | D100: 1 | E100: Not Found | H100: Not Found | I100: 0
A101: SC-2 | D101: 3 | E101: Not Found | H101: Not Found | I101: 0
A102: SCL-2 | D102: 1 | E102: Not Found | H102: Not Found | I102: 0
A103: STEM
A104: STEM | D104: 3 | E104: =IF(ISNA(INDEX(INDIRECT("'"&$K$1&"'!$A$1:$A$550"), MATCH(A104,INDIRECT("'"&$K$1&"'!$B$1:$B$550"),0))), "Not Found", (INDEX(INDIRECT("'"&$K$1&"'!$A$1:$A$550"), MATCH(A104,INDIRECT("'"&$K$1&"'!$B$1:$B$550"),0)))) -> Not Found | H104: =IF(ISNA(VLOOKUP(E104,INDIRECT("'"&$K$1&"'!$A$1:$H$550"),8,FALSE)), "Not Found", VLOOKUP(E104,INDIRECT("'"&$K$1&"'!$A$1:$H$550"),8,FALSE)) -> Not Found | I104: =IF(ISNA(VLOOKUP(E104,INDIRECT("'"&$K$1&"'!$A$1:$H$550"),5,FALSE)), "0", VLOOKUP(E104,INDIRECT("'"&$K$1&"'!$A$1:$H$550"),5,FALSE)) -> 0
A106: Diversity & Ethics ELOs
A107: Diversity & Cultural Awareness (DV)
A108: DV | D108: 3 | E108: =IF(ISNA(INDEX(INDIRECT("'"&$K$1&"'!$A$1:$A$550"), MATCH("*"&A108&"*",INDIRECT("'"&$K$1&"'!$B$1:$B$550"),0))), "Not Found", (INDEX(INDIRECT("'"&$K$1&"'!$A$1:$A$550"), MATCH("*"&A108&"*",INDIRECT("'"&$K$1&"'!$B$1:$B$550"),0)))) -> Not Found | H108: =IF(ISNA(VLOOKUP(E108,INDIRECT("'"&$K$1&"'!$A$1:$H$550"),8,FALSE)), "Not Found", VLOOKUP(E108,INDIRECT("'"&$K$1&"'!$A$1:$H$550"),8,FALSE)) -> Not Found | I108: =IF(ISNA(VLOOKUP(E108,INDIRECT("'"&$K$1&"'!$A$1:$H$550"),5,FALSE)), "0", VLOOKUP(E108,INDIRECT("'"&$K$1&"'!$A$1:$H$550"),5,FALSE)) -> 0
A109: Social Responsibility & Ethics (ET)
A110: ET | D110: 3 | E110: =IF(ISNA(INDEX(INDIRECT("'"&$K$1&"'!$A$1:$A$550"), MATCH("*"&A110&"*",INDIRECT("'"&$K$1&"'!$B$1:$B$550"),0))), "Not Found", (INDEX(INDIRECT("'"&$K$1&"'!$A$1:$A$550"), MATCH("*"&A110&"*",INDIRECT("'"&$K$1&"'!$B$1:$B$550"),0)))) -> Not Found | H110: =IF(ISNA(VLOOKUP(E110,INDIRECT("'"&$K$1&"'!$A$1:$H$550"),8,FALSE)), "Not Found", VLOOKUP(E110,INDIRECT("'"&$K$1&"'!$A$1:$H$550"),8,FALSE)) -> Not Found | I110: =IF(ISNA(VLOOKUP(E110,INDIRECT("'"&$K$1&"'!$A$1:$H$550"),5,FALSE)), "0", VLOOKUP(E110,INDIRECT("'"&$K$1&"'!$A$1:$H$550"),5,FALSE)) -> 0
A112: Degree Credits | I112: Projected Degree Credits
D113: =SUM(D1:D45,D53:D70,D86,D87,D91:D97) -> 120 | I113: =SUM(I1:I45, I53:I57,I73,I86,I87,I91:I97) -> 0

Sheet Graduation_Plan-General (hidden)
A1: Computer Science Graduation Plan
A2: Student Name | C2: Last Name, First Name
A3: University Id (not ss#)
A4: Email
A5: Primary Major (Option) | C5: Computer Science (General Option)
A6: Second Major:
A7: Third Major:
A8: Minors(s):
A9: Special Program(s):
A10: Scholarships:
A12: Matriculation Date (Month/Year) | E12: Sept. 2016
A13: Expected Graduation Date (Month/Year) | E13: June 2020
A15: Minimum Number of Credits Required for Degree(s) | E15: 120
A17: Transfer and AP Credits
A19: Course | B19: Req. | C19: Req. | D19: Course Title | E19: Credits | F19: Grade | G19: Degree Credits | H19: SemesterYear
H20: Transfer/AP
H21: Transfer/AP
H22: Transfer/AP
H23: Transfer/AP
H24: Transfer/AP
H25: Transfer/AP
H26: Transfer/AP
H27: Transfer/AP
H28: Transfer/AP
H29: Transfer/AP
H30: Transfer/AP
H31: Transfer/AP
H32: Transfer/AP
H33: Transfer/AP
H34: Transfer/AP
H35: Transfer/AP
H36: Transfer/AP
H37: Transfer/AP
H38: Transfer/AP
H39: Transfer/AP
H40: Transfer/AP
H41: Transfer/AP
H42: Transfer/AP
H43: Transfer/AP
H44: Transfer/AP
H45: Transfer/AP
H46: Transfer/AP
H47: Transfer/AP
H48: Transfer/AP
H49: Transfer/AP
H50: Transfer/AP
H51: Transfer/AP
H52: Transfer/AP
H53: Transfer/AP
H54: Transfer/AP
H55: Transfer/AP
H56: Transfer/AP
H57: Transfer/AP
H58: Transfer/AP
H59: Transfer/AP
H60: Transfer/AP
H61: Transfer/AP
H62: Transfer/AP
H63: Transfer/AP
H64: Transfer/AP
H65: Transfer/AP
H66: Transfer/AP
H67: Transfer/AP
H68: Transfer/AP
H69: Transfer/AP
D70: Transfer and AP Credits | E70: =SUM(E20:E69) -> 0 | G70: =SUM(G20:G69) -> 0
D71: Total Credits Earned | E71: =E70 -> 0 | G71: =E15-G70 -> 120
A73: Year 1
A74: Fall | B74: 2016 | C74: =C2 -> Last Name, First Name
A75: Course | B75: =B19 -> Req. | C75: =C19 -> Req. | D75: Course Title | E75: Credits | F75: Grade | G75: Degree Credits | H75: SemesterYear
H76: =$A$74&$B$74 -> Fall2016
H77: =$A$74&$B$74 -> Fall2016
H78: Fall2016
H79: Fall2016
H80: Fall2016
H81: Fall2016
H82: Fall2016
H83: Fall2016
H84: Fall2016
H85: Fall2016
D86: Semester Credits Earned | E86: =SUM(E76:E85) -> 0 | G86: =SUM(G76:G85) -> 0
D87: =D71 -> Total Credits Earned | E87: =E71+E86 -> 0 | G87: =G71-G86 -> 120
A89: Winter | B89: =B74+1 -> 2017 | C89: =C2 -> Last Name, First Name
A90: Course | B90: =B19 -> Req. | D90: Course Title | E90: Credits | F90: Grade | G90: Degree Credits | H90: SemesterYear
H91: =$A$89&$B$89 -> Winter2017
H92: =$A$89&$B$89 -> Winter2017
H93: Winter2017
D94: =D86 -> Semester Credits Earned | E94: =SUM(E91:E93) -> 0 | G94: =SUM(G91:G93) -> 0
D95: =D71 -> Total Credits Earned | E95: =E87+E94 -> 0 | G95: =G87-G94 -> 120
A97: Spring | B97: =B74+1 -> 2017 | C97: =C2 -> Last Name, First Name
A98: Course | B98: =B19 -> Req. | C98: =C19 -> Req. | D98: Course Title | E98: Credits | F98: Grade | G98: Degree Credits | H98: SemesterYear
H99: =$A$97&$B$97 -> Spring2017
H100: =$A$97&$B$97 -> Spring2017
H101: Spring2017
H102: Spring2017
H103: Spring2017
H104: Spring2017
H105: Spring2017
H106: Spring2017
H107: Spring2017
H108: Spring2017
D109: =D86 -> Semester Credits Earned | E109: =SUM(E99:E108) -> 0 | G109: =SUM(G99:G108) -> 0
D110: =D71 -> Total Credits Earned | E110: =E95+E109 -> 0 | G110: =G95-G109 -> 120
A112: Summer | B112: =B74+1 -> 2017 | C112: =C2 -> Last Name, First Name
A113: Course | B113: =B19 -> Req. | C113: =C19 -> Req. | D113: Course Title | E113: Credits | F113: Grade | G113: Degree Credits | H113: SemesterYear
H114: =$A$112&$B$112 -> Summer2017
H115: =$A$112&$B$112 -> Summer2017
H116: Summer2017
H117: Summer2017
H118: Summer2017
H119: Summer2017
D120: =D86 -> Semester Credits Earned | E120: =SUM(E114:E119) -> 0 | G120: =SUM(G114:G119) -> 0
D121: =D71 -> Total Credits Earned | E121: =E110+E120 -> 0 | G121: =G110-G120 -> 120
A123: Year 2
A124: Fall | B124: =B74+1 -> 2017 | C124: =C2 -> Last Name, First Name
A125: Course | B125: =B19 -> Req. | C125: =C19 -> Req. | D125: Course Title | E125: Credits | F125: Grade | G125: Degree Credits | H125: SemesterYear
H126: =$A$124&$B$124 -> Fall2017
H127: =$A$124&$B$124 -> Fall2017
H128: Fall2017
H129: Fall2017
H130: Fall2017
H131: Fall2017
H132: Fall2017
H133: Fall2017
H134: Fall2017
H135: Fall2017
D136: =D86 -> Semester Credits Earned | E136: =SUM(E126:E135) -> 0 | G136: =SUM(G126:G135) -> 0
D137: =D71 -> Total Credits Earned | E137: =E121+E136 -> 0 | G137: =G121-G136 -> 120
A139: Winter | B139: =B74+2 -> 2018 | C139: =C2 -> Last Name, First Name
A140: Course | B140: =B19 -> Req. | C140: =C19 -> Req. | D140: Course Title | E140: Credits | F140: Grade | G140: Degree Credits | H140: SemesterYear
H141: =$A$139&$B$139 -> Winter2018
H142: =$A$139&$B$139 -> Winter2018
H143: Winter2018
D144: =D86 -> Semester Credits Earned | E144: =SUM(E141:E143) -> 0 | G144: =SUM(G141:G143) -> 0
D145: =D71 -> Total Credits Earned | E145: =E137+E144 -> 0 | G145: =G137-G144 -> 120
A147: Spring | B147: =B89+1 -> 2018 | C147: =C2 -> Last Name, First Name
A148: Course | B148: =B19 -> Req. | C148: =C19 -> Req. | D148: Course Title | E148: Credits | F148: Grade | G148: Degree Credits | H148: SemesterYear
H149: =$A$147&$B$147 -> Spring2018
H150: =$A$147&$B$147 -> Spring2018
H151: Spring2018
H152: Spring2018
H153: Spring2018
H154: Spring2018
H155: Spring2018
H156: Spring2018
H157: Spring2018
H158: Spring2018
D159: =D86 -> Semester Credits Earned | E159: =SUM(E149:E158) -> 0 | G159: =SUM(G149:G158) -> 0
D160: =D71 -> Total Credits Earned | E160: =E145+E159 -> 0 | G160: =G145-G159 -> 120
A162: Summer | B162: =B74+2 -> 2018 | C162: =C2 -> Last Name, First Name
A163: Course | B163: =B19 -> Req. | C163: =C19 -> Req. | D163: Course Title | E163: Credits | F163: Grade | G163: Degree Credits | H163: SemesterYear
H164: =$A$162&$B$162 -> Summer2018
H165: =$A$162&$B$162 -> Summer2018
H166: Summer2018
H167: Summer2018
H168: Summer2018
H169: Summer2018
D170: =D86 -> Semester Credits Earned | E170: =SUM(E164:E169) -> 0 | G170: =SUM(G163:G169) -> 0
D171: =D71 -> Total Credits Earned | E171: =E160+E170 -> 0 | G171: =G160-G170 -> 120
A173: Year 3
A174: Fall | B174: =B74+2 -> 2018 | C174: =C2 -> Last Name, First Name
A175: Course | B175: =B19 -> Req. | C175: =C19 -> Req. | D175: Course Title | E175: Credits | F175: Grade | G175: Degree Credits | H175: SemesterYear
H176: =$A$174&$B$174 -> Fall2018
H177: =$A$174&$B$174 -> Fall2018
H178: Fall2018
H179: Fall2018
H180: Fall2018
H181: Fall2018
H182: Fall2018
H183: Fall2018
H184: Fall2018
H185: Fall2018
D186: =D86 -> Semester Credits Earned | E186: =SUM(E176:E185) -> 0 | G186: =SUM(G176:G185) -> 0
D187: =D71 -> Total Credits Earned | E187: =E171+E186 -> 0 | G187: =G171-G186 -> 120
A189: Winter | B189: =B74+3 -> 2019 | C189: =C2 -> Last Name, First Name
A190: Course | B190: =B19 -> Req. | C190: =C19 -> Req. | D190: Course Title | E190: Credits | F190: Grade | G190: Degree Credits | H190: SemesterYear
H191: =$A$189&$B$189 -> Winter2019
H192: =$A$189&$B$189 -> Winter2019
H193: Winter2019
D194: =D86 -> Semester Credits Earned | E194: =SUM(E191:E193) -> 0 | G194: =SUM(G191:G193) -> 0 | H194: =SUM(H191:H193) -> 0
D195: =D71 -> Total Credits Earned | E195: =E187+E194 -> 0 | G195: =G187-G194 -> 120
A197: Spring | B197: =B74+3 -> 2019 | C197: =C2 -> Last Name, First Name
A198: Course | B198: =B19 -> Req. | C198: =C19 -> Req. | D198: Course Title | E198: Credits | F198: Grade | G198: Degree Credits | H198: SemesterYear
H199: =$A$197&$B$197 -> Spring2019
H200: =$A$197&$B$197 -> Spring2019
H201: Spring2019
H202: Spring2019
H203: Spring2019
H204: Spring2019
H205: Spring2019
H206: Spring2019
H207: Spring2019
H208: Spring2019
D209: =D86 -> Semester Credits Earned | E209: =SUM(E199:E208) -> 0 | G209: =SUM(G199:G208) -> 0
D210: =D71 -> Total Credits Earned | E210: =E195+E209 -> 0 | G210: =G195-G209 -> 120
A212: Summer | B212: =B74+3 -> 2019 | C212: =C2 -> Last Name, First Name
A213: Course | B213: =B19 -> Req. | C213: =C19 -> Req. | D213: Course Title | E213: Credits | F213: Grade | G213: Degree Credits | H213: SemesterYear
H214: =$A$212&$B$212 -> Summer2019
H215: =$A$212&$B$212 -> Summer2019
H216: Summer2019
... 150 more rows

Sheet Checklist_General (hidden)
A1: Checklist - Computer Science | K1: Graduation_Plan | L1: Required Computer Science Electives
A2: Requirement | D2: Credits | E2: Taken | H2: Semester | I2: Credits | L2: List courses you are interested in possibly taking. (NOTE: This is not required.)
A3: Required Computer Science Courses | L3: Course | M3: Title
A4: COMP.1010 | B4: or | C4: 91.101 | D4: 3 | E4: COMP.1010 | F4: or | G4: 91.101 | H4: =IF(AND(ISNA(VLOOKUP(E4,INDIRECT("'"&$K$1&"'!$A$1:$H$550"),8,FALSE)), ISNA(VLOOKUP(G4,INDIRECT("'"&$K$1&"'!$A$1:$H$550"),8,FALSE))), "Not Found", (IF(ISNA(VLOOKUP(E4,INDIRECT("'"&$K$1&"'!$A$1:$H$550"),8,FALSE)), VLOOKUP(G4,INDIRECT("'"&$K$1&"'!$A$1:$H$550"),8,FALSE), VLOOKUP(E4,INDIRECT("'"&$K$1&"'!$A$1:$H$550"),8,FALSE)))) -> Not Found | I4: =IF(AND(ISNA(VLOOKUP(E4,INDIRECT("'"&$K$1&"'!$A$1:$H$550"),5,FALSE)), ISNA(VLOOKUP(G4,INDIRECT("'"&$K$1&"'!$A$1:$H$550"),5,FALSE))), "0", (IF(ISNA(VLOOKUP(E4,INDIRECT("'"&$K$1&"'!$A$1:$H$550"),5,FALSE)), VLOOKUP(G4,INDIRECT("'"&$K$1&"'!$A$1:$H$550"),5,FALSE), VLOOKUP(E4,INDIRECT("'"&$K$1&"'!$A$1:$H$550"),5,FALSE)))) -> 0
A5: COMP.1030L | B5: or | C5: 91.103 | D5: 1 | E5: COMP.1030L | F5: or | G5: 91.103 | H5: =IF(AND(ISNA(VLOOKUP(E5,INDIRECT("'"&$K$1&"'!$A$1:$H$550"),8,FALSE)), ISNA(VLOOKUP(G5,INDIRECT("'"&$K$1&"'!$A$1:$H$550"),8,FALSE))), "Not Found", (IF(ISNA(VLOOKUP(E5,INDIRECT("'"&$K$1&"'!$A$1:$H$550"),8,FALSE)), VLOOKUP(G5,INDIRECT("'"&$K$1&"'!$A$1:$H$550"),8,FALSE), VLOOKUP(E5,INDIRECT("'"&$K$1&"'!$A$1:$H$550"),8,FALSE)))) -> Not Found | I5: 0
A6: COMP.1020 | B6: or | C6: 91.102 | D6: 3 | E6: COMP.1020 | F6: or | G6: 91.102 | H6: Not Found | I6: =IF(AND(ISNA(VLOOKUP(E6,INDIRECT("'"&$K$1&"'!$A$1:$H$550"),5,FALSE)), ISNA(VLOOKUP(G6,INDIRECT("'"&$K$1&"'!$A$1:$H$550"),5,FALSE))), "0", (IF(ISNA(VLOOKUP(E6,INDIRECT("'"&$K$1&"'!$A$1:$H$550"),5,FALSE)), VLOOKUP(G6,INDIRECT("'"&$K$1&"'!$A$1:$H$550"),5,FALSE), VLOOKUP(E6,INDIRECT("'"&$K$1&"'!$A$1:$H$550"),5,FALSE)))) -> 0
A7: COMP.1040L | B7: or | C7: 91.104 | D7: 1 | E7: COMP.1040L | F7: or | G7: 91.104 | H7: Not Found | I7: =IF(AND(ISNA(VLOOKUP(E7,INDIRECT("'"&$K$1&"'!$A$1:$H$550"),5,FALSE)), ISNA(VLOOKUP(G7,INDIRECT("'"&$K$1&"'!$A$1:$H$550"),5,FALSE))), "0", (IF(ISNA(VLOOKUP(E7,INDIRECT("'"&$K$1&"'!$A$1:$H$550"),5,FALSE)), VLOOKUP(G7,INDIRECT("'"&$K$1&"'!$A$1:$H$550"),5,FALSE), VLOOKUP(E7,INDIRECT("'"&$K$1&"'!$A$1:$H$550"),5,FALSE)))) -> 0
A8: COMP.2010 | B8: or | C8: 91.201 | D8: 3 | E8: COMP.2010 | F8: or | G8: 91.201 | H8: Not Found | I8: 0
A9: COMP.2010L | D9: 1 | E9: COMP.2010L | H9: =IF(AND(ISNA(VLOOKUP(E9,INDIRECT("'"&$K$1&"'!$A$1:$H$550"),8,FALSE)), ISNA(VLOOKUP(G9,INDIRECT("'"&$K$1&"'!$A$1:$H$550"),8,FALSE))), "Not Found", (IF(ISNA(VLOOKUP(E9,INDIRECT("'"&$K$1&"'!$A$1:$H$550"),8,FALSE)), VLOOKUP(G9,INDIRECT("'"&$K$1&"'!$A$1:$H$550"),8,FALSE), VLOOKUP(E9,INDIRECT("'"&$K$1&"'!$A$1:$H$550"),8,FALSE)))) -> Not Found | I9: =IF(AND(ISNA(VLOOKUP(E9,INDIRECT("'"&$K$1&"'!$A$1:$H$550"),5,FALSE)), ISNA(VLOOKUP(G9,INDIRECT("'"&$K$1&"'!$A$1:$H$550"),5,FALSE))), "0", (IF(ISNA(VLOOKUP(E9,INDIRECT("'"&$K$1&"'!$A$1:$H$550"),5,FALSE)), VLOOKUP(G9,INDIRECT("'"&$K$1&"'!$A$1:$H$550"),5,FALSE), VLOOKUP(E9,INDIRECT("'"&$K$1&"'!$A$1:$H$550"),5,FALSE)))) -> 0
A10: COMP.2030 | B10: or | C10: 91.203 | D10: 3 | E10: COMP.2030 | F10: or | G10: 91.203 | H10: Not Found | I10: 0
A11: COMP.2030L | D11: 1 | E11: COMP.2030L | H11: =IF(AND(ISNA(VLOOKUP(E11,INDIRECT("'"&$K$1&"'!$A$1:$H$550"),8,FALSE)), ISNA(VLOOKUP(G11,INDIRECT("'"&$K$1&"'!$A$1:$H$550"),8,FALSE))), "Not Found", (IF(ISNA(VLOOKUP(E11,INDIRECT("'"&$K$1&"'!$A$1:$H$550"),8,FALSE)), VLOOKUP(G11,INDIRECT("'"&$K$1&"'!$A$1:$H$550"),8,FALSE), VLOOKUP(E11,INDIRECT("'"&$K$1&"'!$A$1:$H$550"),8,FALSE)))) -> Not Found | I11: =IF(AND(ISNA(VLOOKUP(E11,INDIRECT("'"&$K$1&"'!$A$1:$H$550"),5,FALSE)), ISNA(VLOOKUP(G11,INDIRECT("'"&$K$1&"'!$A$1:$H$550"),5,FALSE))), "0", (IF(ISNA(VLOOKUP(E11,INDIRECT("'"&$K$1&"'!$A$1:$H$550"),5,FALSE)), VLOOKUP(G11,INDIRECT("'"&$K$1&"'!$A$1:$H$550"),5,FALSE), VLOOKUP(E11,INDIRECT("'"&$K$1&"'!$A$1:$H$550"),5,FALSE)))) -> 0
A12: COMP.2040 | B12: or | C12: 91.204 | D12: 3 | E12: COMP.2040 | F12: or | G12: 91.204 | H12: Not Found | I12: 0
A13: COMP.3010 | B13: or | C13: 91.301 | D13: 3 | E13: COMP.3010 | F13: or | G13: 91.301 | H13: Not Found | I13: 0
A14: COMP.3040 | B14: or | C14: 91.304 | D14: 3 | E14: COMP.3040 | F14: or | G14: 91.304 | H14: Not Found | I14: 0
A15: COMP.3050 | B15: or | C15: 91.305 | D15: 3 | E15: COMP.3050 | F15: or | G15: 91.305 | H15: Not Found | I15: 0
A16: COMP.3080 | B16: or | C16: 91.308 | D16: 3 | E16: COMP.3080 | F16: or | G16: 91.308 | H16: Not Found | I16: 0
A17: COMP.4040 | B17: or | C17: 91.404 | D17: 3 | E17: COMP.4040 | F17: or | G17: 91.404 | H17: Not Found | I17: 0
A18: Required CS Electives
A19: CSE-1 | D19: 3 | E19: =IF(ISNA(INDEX(INDIRECT("'"&$K$1&"'!$A$1:$A$550"), MATCH(A19,INDIRECT("'"&$K$1&"'!$B$1:$B$550"),0))), "Not Found", (INDEX(INDIRECT("'"&$K$1&"'!$A$1:$A$550"), MATCH(A19,INDIRECT("'"&$K$1&"'!$B$1:$B$550"),0)))) -> Not Found | H19: =IF(ISNA(VLOOKUP(E19,INDIRECT("'"&$K$1&"'!$A$1:$H$550"),8,FALSE)), "Not Found", VLOOKUP(E19,INDIRECT("'"&$K$1&"'!$A$1:$H$550"),8,FALSE)) -> Not Found | I19: =IF(ISNA(VLOOKUP(E19,INDIRECT("'"&$K$1&"'!$A$1:$H$550"),5,FALSE)), "0", VLOOKUP(E19,INDIRECT("'"&$K$1&"'!$A$1:$H$550"),5,FALSE)) -> 0
A20: CSE-2 | D20: 3 | E20: Not Found | H20: Not Found | I20: 0
A21: CS Project Course
A22: Sr.Prj-1 | D22: 3 | E22: Not Found | H22: Not Found | I22: 0
A23: Sr.Prj-2 | D23: 3 | E23: Not Found | H23: Not Found | I23: 0
A25: Required Supporting Technical Course
A26: Requirement | D26: Credits | E26: Taken | H26: Semester | I26: Credits
A27: Electrical Engineering
A28: EECE.2650 | B28: or | C28: 16.265 | D28: 3 | E28: EECE.2650 | F28: or | G28: 16.265 | H28: =IF(AND(ISNA(VLOOKUP(E28,INDIRECT("'"&$K$1&"'!$A$1:$H$550"),8,FALSE)), ISNA(VLOOKUP(G28,INDIRECT("'"&$K$1&"'!$A$1:$H$550"),8,FALSE))), "Not Found", (IF(ISNA(VLOOKUP(E28,INDIRECT("'"&$K$1&"'!$A$1:$H$550"),8,FALSE)), VLOOKUP(G28,INDIRECT("'"&$K$1&"'!$A$1:$H$550"),8,FALSE), VLOOKUP(E28,INDIRECT("'"&$K$1&"'!$A$1:$H$550"),8,FALSE)))) -> Not Found | I28: =IF(AND(ISNA(VLOOKUP(E28,INDIRECT("'"&$K$1&"'!$A$1:$H$550"),5,FALSE)), ISNA(VLOOKUP(G28,INDIRECT("'"&$K$1&"'!$A$1:$H$550"),5,FALSE))), "0", (IF(ISNA(VLOOKUP(E28,INDIRECT("'"&$K$1&"'!$A$1:$H$550"),5,FALSE)), VLOOKUP(G28,INDIRECT("'"&$K$1&"'!$A$1:$H$550"),5,FALSE), VLOOKUP(E28,INDIRECT("'"&$K$1&"'!$A$1:$H$550"),5,FALSE)))) -> 0
A29: Mathematics
A30: MATH.1310 | B30: or | C30: 92.131 | D30: 4 | E30: MATH.1310 | F30: or | G30: 92.131 | H30: =IF(AND(ISNA(VLOOKUP(E30,INDIRECT("'"&$K$1&"'!$A$1:$H$550"),8,FALSE)), ISNA(VLOOKUP(G30,INDIRECT("'"&$K$1&"'!$A$1:$H$550"),8,FALSE))), "Not Found", (IF(ISNA(VLOOKUP(E30,INDIRECT("'"&$K$1&"'!$A$1:$H$550"),8,FALSE)), VLOOKUP(G30,INDIRECT("'"&$K$1&"'!$A$1:$H$550"),8,FALSE), VLOOKUP(E30,INDIRECT("'"&$K$1&"'!$A$1:$H$550"),8,FALSE)))) -> Not Found | I30: =IF(AND(ISNA(VLOOKUP(E30,INDIRECT("'"&$K$1&"'!$A$1:$H$550"),5,FALSE)), ISNA(VLOOKUP(G30,INDIRECT("'"&$K$1&"'!$A$1:$H$550"),5,FALSE))), "0", (IF(ISNA(VLOOKUP(E30,INDIRECT("'"&$K$1&"'!$A$1:$H$550"),5,FALSE)), VLOOKUP(G30,INDIRECT("'"&$K$1&"'!$A$1:$H$550"),5,FALSE), VLOOKUP(E30,INDIRECT("'"&$K$1&"'!$A$1:$H$550"),5,FALSE)))) -> 0
A31: MATH.1320 | B31: or | C31: 92.132 | D31: 4 | E31: MATH.1320 | F31: or | G31: 92.132 | H31: Not Found | I31: 0
A32: MATH.3210 | B32: or | C32: 92.321 | D32: 3 | E32: MATH.3210 | F32: or | G32: 92.321 | H32: Not Found | I32: 0
A33: MATH.3220 | B33: or | C33: 92.322 | D33: 3 | E33: MATH.3220 | F33: or | G33: 92.322 | H33: Not Found | I33: 0
A34: MATH.3860 | B34: or | C34: 92.386 | D34: 3 | E34: MATH.3860 | F34: or | G34: 92.386 | H34: Not Found | I34: 0
A36: Natural Science Electives | L36: Natural Science Electives
A37: Requirement | D37: Credits | E37: Taken | H37: Semester | I37: Credits | L37: List courses you are interested in possibly taking to satisfy this requirement
A38: NS-1 | D38: 3 | E38: =IF(ISNA(INDEX(INDIRECT("'"&$K$1&"'!$A$1:$A$550"), MATCH(A38,INDIRECT("'"&$K$1&"'!$C$1:$C$550"),0))), "Not Found", (INDEX(INDIRECT("'"&$K$1&"'!$A$1:$A$550"), MATCH(A38,INDIRECT("'"&$K$1&"'!$C$1:$C$550"),0)))) -> Not Found | H38: =IF(ISNA(VLOOKUP(E38,INDIRECT("'"&$K$1&"'!$A$1:$H$550"),8,FALSE)), "Not Found", VLOOKUP(E38,INDIRECT("'"&$K$1&"'!$A$1:$H$550"),8,FALSE)) -> Not Found | I38: =IF(ISNA(VLOOKUP(E38,INDIRECT("'"&$K$1&"'!$A$1:$H$550"),5,FALSE)), "0", VLOOKUP(E38,INDIRECT("'"&$K$1&"'!$A$1:$H$550"),5,FALSE)) -> 0 | L38: Course | M38: Title
A39: NS-Lab1 | D39: 1 | E39: =IF(ISNA(INDEX(INDIRECT("'"&$K$1&"'!$A$1:$A$550"), MATCH(A39,INDIRECT("'"&$K$1&"'!$C$1:$C$550"),0))), "Not Found", (INDEX(INDIRECT("'"&$K$1&"'!$A$1:$A$550"), MATCH(A39,INDIRECT("'"&$K$1&"'!$C$1:$C$550"),0)))) -> Not Found | H39: Not Found | I39: 0
A40: NS-2 | D40: 3 | E40: Not Found | H40: Not Found | I40: 0
A41: NS-Lab2 | D41: 1 | E41: Not Found | H41: Not Found | I41: 0
A42: NS-3 | D42: 3 | E42: Not Found | H42: Not Found | I42: 0
A43: NS-Lab3 | D43: 1 | E43: Not Found | H43: Not Found | I43: 0
A44: Not Req. | D44: n/a | E44: Not Found | H44: Not Found | I44: 0
A45: Not Req. | D45: n/a | E45: Not Found | H45: Not Found | I45: 0
A51: Technical Electives | L51: Technical Electives
A52: Requirement | D52: Credits | E52: Taken | H52: Semester | I52: Credits | L52: List courses you are interested in possibly taking to satisfy this requirement
A53: TE-1 | D53: 3 | E53: =IF(ISNA(INDEX(INDIRECT("'"&$K$1&"'!$A$1:$A$550"), MATCH(A53,INDIRECT("'"&$K$1&"'!$B$1:$B$550"),0))), "Not Found", (INDEX(INDIRECT("'"&$K$1&"'!$A$1:$A$550"), MATCH(A53,INDIRECT("'"&$K$1&"'!$B$1:$B$550"),0)))) -> Not Found | H53: =IF(ISNA(VLOOKUP(E53,INDIRECT("'"&$K$1&"'!$A$1:$H$550"),8,FALSE)), "Not Found", VLOOKUP(E53,INDIRECT("'"&$K$1&"'!$A$1:$H$550"),8,FALSE)) -> Not Found | I53: =IF(ISNA(VLOOKUP(E53,INDIRECT("'"&$K$1&"'!$A$1:$H$550"),5,FALSE)), "0", VLOOKUP(E53,INDIRECT("'"&$K$1&"'!$A$1:$H$550"),5,FALSE)) -> 0 | L53: Course | M53: Title
A54: TE-2 | D54: 3 | E54: Not Found | H54: Not Found | I54: 0
A55: Not Req. | D55: n/a | E55: Not Found | H55: Not Found | I55: 0
A56: Not Req. | D56: n/a | E56: Not Found | H56: Not Found | I56: 0
A57: Not Req. | D57: n/a | E57: Not Found | H57: Not Found | I57: 0
A63: Free Electives (FE) | L63: Free Electives
A64: Requirement | D64: Credits | E64: Taken | H64: Semester | I64: Credits | L64: List free electives you are interested in taking. These cannot be below the level of a
A65: FE-1 | D65: 3 | E65: =IF(ISNA(INDEX(INDIRECT("'"&$K$1&"'!$A$1:$A$550"), MATCH("*"&A65&"*",INDIRECT("'"&$K$1&"'!$B$1:$B$550"),0))), "Not Found", (INDEX(INDIRECT("'"&$K$1&"'!$A$1:$A$550"), MATCH("*"&A65&"*",INDIRECT("'"&$K$1&"'!$B$1:$B$550"),0)))) -> Not Found | H65: =IF(ISNA(VLOOKUP(E65,INDIRECT("'"&$K$1&"'!$A$1:$H$550"),8,FALSE)), "Not Found", VLOOKUP(E65,INDIRECT("'"&$K$1&"'!$A$1:$H$550"),8,FALSE)) -> Not Found | I65: =IF(ISNA(VLOOKUP(E65,INDIRECT("'"&$K$1&"'!$A$1:$H$550"),5,FALSE)), "0", VLOOKUP(E65,INDIRECT("'"&$K$1&"'!$A$1:$H$550"),5,FALSE)) -> 0 | L65: required course. Specific courses may be recommended for different CS tracks.
A66: FE-2 | D66: 3 | E66: Not Found | H66: Not Found | I66: 0
A67: FE-3 | D67: 3 | E67: Not Found | H67: Not Found | I67: 0
A68: FE-4 | D68: 3 | E68: Not Found | H68: Not Found | I68: 0
A69: Not Req. | D69: n/a | E69: Not Found | H69: Not Found | I69: 0
A70: Not Req. | D70: n/a | E70: Not Found | H70: Not Found | I70: 0
A72: Required FE Credits | H72: Projected Credits
D73: =120-SUM(D4:D45, D53:D57, D86:D87,D91:D97) -> 12 | I73: =SUM(I65:I71) -> 0
A75: Oral & Written Communication
A76: Requirement | D76: Credits | E76: Taken | H76: Semester | I76: Credits
A77: ENGL.2200 | B77: or | C77: 42.220 | D77: 3 | E77: ENGL.2200 | F77: or | G77: 42.220 | H77: =IF(AND(ISNA(VLOOKUP(E77,INDIRECT("'"&$K$1&"'!$A$1:$H$550"),8,FALSE)), ISNA(VLOOKUP(G77,INDIRECT("'"&$K$1&"'!$A$1:$H$550"),8,FALSE))), "Not Found", (IF(ISNA(VLOOKUP(E77,INDIRECT("'"&$K$1&"'!$A$1:$H$550"),8,FALSE)), VLOOKUP(G77,INDIRECT("'"&$K$1&"'!$A$1:$H$550"),8,FALSE), VLOOKUP(E77,INDIRECT("'"&$K$1&"'!$A$1:$H$550"),8,FALSE)))) -> Not Found | I77: =IF(AND(ISNA(VLOOKUP(E77,INDIRECT("'"&$K$1&"'!$A$1:$H$550"),5,FALSE)), ISNA(VLOOKUP(G77,INDIRECT("'"&$K$1&"'!$A$1:$H$550"),5,FALSE))), "0", (IF(ISNA(VLOOKUP(E77,INDIRECT("'"&$K$1&"'!$A$1:$H$550"),5,FALSE)), VLOOKUP(G77,INDIRECT("'"&$K$1&"'!$A$1:$H$550"),5,FALSE), VLOOKUP(E77,INDIRECT("'"&$K$1&"'!$A$1:$H$550"),5,FALSE)))) -> 0
A79: CS Ethics Requirement
A80: Requirement | D80: Credits | E80: Taken | H80: Semester | I80: Credits
A81: CSET | D81: 3 | E81: =IF(ISNA(INDEX(INDIRECT("'"&$K$1&"'!$A$1:$A$550"), MATCH(A81,INDIRECT("'"&$K$1&"'!$C$1:$C$550"),0))), "Not Found", (INDEX(INDIRECT("'"&$K$1&"'!$A$1:$A$550"), MATCH(A81,INDIRECT("'"&$K$1&"'!$C$1:$C$550"),0)))) -> Not Found | H81: =IF(ISNA(VLOOKUP(E81,INDIRECT("'"&$K$1&"'!$A$1:$H$550"),8,FALSE)), "Not Found", VLOOKUP(E81,INDIRECT("'"&$K$1&"'!$A$1:$H$550"),8,FALSE)) -> Not Found | I81: =IF(ISNA(VLOOKUP(E81,INDIRECT("'"&$K$1&"'!$A$1:$H$550"),5,FALSE)), "0", VLOOKUP(E81,INDIRECT("'"&$K$1&"'!$A$1:$H$550"),5,FALSE)) -> 0
A83: Breadth of Knowledge | L83: Breadth of Knowledge Requirements
A84: Requirement | D84: Credits | E84: Taken | H84: Semester | I84: Credits | L84: Select courses you are interested in taking to satisfy this Requirements.
A85: College Writing | L85: Area | M85: Title
A86: CW-1 | D86: 3 | E86: =IF(ISNA(INDEX(INDIRECT("'"&$K$1&"'!$A$1:$A$550"), MATCH(A86,INDIRECT("'"&$K$1&"'!$B$1:$B$550"),0))), "Not Found", (INDEX(INDIRECT("'"&$K$1&"'!$A$1:$A$550"), MATCH(A86,INDIRECT("'"&$K$1&"'!$B$1:$B$550"),0)))) -> Not Found | H86: =IF(ISNA(VLOOKUP(E86,INDIRECT("'"&$K$1&"'!$A$1:$H$550"),8,FALSE)), "Not Found", VLOOKUP(E86,INDIRECT("'"&$K$1&"'!$A$1:$H$550"),8,FALSE)) -> Not Found | I86: =IF(ISNA(VLOOKUP(E86,INDIRECT("'"&$K$1&"'!$A$1:$H$550"),5,FALSE)), "0", VLOOKUP(E86,INDIRECT("'"&$K$1&"'!$A$1:$H$550"),5,FALSE)) -> 0
A87: CW-2 | D87: 3 | E87: Not Found | H87: Not Found | I87: 0
A88: Mathematics
A89: MA | D89: 4 | E89: =IF(ISNA(INDEX(INDIRECT("'"&$K$1&"'!$A$1:$A$550"), MATCH(A89,INDIRECT("'"&$K$1&"'!$B$1:$B$550"),0))), "Not Found", (INDEX(INDIRECT("'"&$K$1&"'!$A$1:$A$550"), MATCH(A89,INDIRECT("'"&$K$1&"'!$B$1:$B$550"),0)))) -> Not Found | H89: =IF(ISNA(VLOOKUP(E89,INDIRECT("'"&$K$1&"'!$A$1:$H$550"),8,FALSE)), "Not Found", VLOOKUP(E89,INDIRECT("'"&$K$1&"'!$A$1:$H$550"),8,FALSE)) -> Not Found | I89: =IF(ISNA(VLOOKUP(E89,INDIRECT("'"&$K$1&"'!$A$1:$H$550"),5,FALSE)), "0", VLOOKUP(E89,INDIRECT("'"&$K$1&"'!$A$1:$H$550"),5,FALSE)) -> 0
A90: Arts & Humanities
A91: AH-1 | D91: 3 | E91: =IF(ISNA(INDEX(INDIRECT("'"&$K$1&"'!$A$1:$A$550"), MATCH("*"&A91&"*",INDIRECT("'"&$K$1&"'!$B$1:$B$550"),0))), "Not Found", (INDEX(INDIRECT("'"&$K$1&"'!$A$1:$A$550"), MATCH("*"&A91&"*",INDIRECT("'"&$K$1&"'!$B$1:$B$550"),0)))) -> Not Found | H91: =IF(ISNA(VLOOKUP(E91,INDIRECT("'"&$K$1&"'!$A$1:$H$550"),8,FALSE)), "Not Found", VLOOKUP(E91,INDIRECT("'"&$K$1&"'!$A$1:$H$550"),8,FALSE)) -> Not Found | I91: =IF(ISNA(VLOOKUP(E91,INDIRECT("'"&$K$1&"'!$A$1:$H$550"),5,FALSE)), "0", VLOOKUP(E91,INDIRECT("'"&$K$1&"'!$A$1:$H$550"),5,FALSE)) -> 0
A92: AH-2 | D92: 3 | E92: =IF(ISNA(INDEX(INDIRECT("'"&$K$1&"'!$A$1:$A$550"), MATCH("*"&A92&"*",INDIRECT("'"&$K$1&"'!$B$1:$B$550"),0))), "Not Found", (INDEX(INDIRECT("'"&$K$1&"'!$A$1:$A$550"), MATCH("*"&A92&"*",INDIRECT("'"&$K$1&"'!$B$1:$B$550"),0)))) -> Not Found | H92: Not Found | I92: 0
A93: AH-3 | D93: 3 | E93: Not Found | H93: Not Found | I93: 0
A94: Social Sciences
A95: SS-1 | D95: 3 | E95: =IF(ISNA(INDEX(INDIRECT("'"&$K$1&"'!$A$1:$A$550"), MATCH("*"&A95&"*",INDIRECT("'"&$K$1&"'!$B$1:$B$550"),0))), "Not Found", (INDEX(INDIRECT("'"&$K$1&"'!$A$1:$A$550"), MATCH("*"&A95&"*",INDIRECT("'"&$K$1&"'!$B$1:$B$550"),0)))) -> Not Found | H95: =IF(ISNA(VLOOKUP(E95,INDIRECT("'"&$K$1&"'!$A$1:$H$550"),8,FALSE)), "Not Found", VLOOKUP(E95,INDIRECT("'"&$K$1&"'!$A$1:$H$550"),8,FALSE)) -> Not Found | I95: =IF(ISNA(VLOOKUP(E95,INDIRECT("'"&$K$1&"'!$A$1:$H$550"),5,FALSE)), "0", VLOOKUP(E95,INDIRECT("'"&$K$1&"'!$A$1:$H$550"),5,FALSE)) -> 0
A96: SS-2 | D96: 3 | E96: Not Found | H96: Not Found | I96: 0
A97: SS-3 | D97: 3 | E97: Not Found | H97: Not Found | I97: 0
A98: Sciences with Lab
A99: SC-1 | D99: 3 | E99: =IF(ISNA(INDEX(INDIRECT("'"&$K$1&"'!$A$1:$A$550"), MATCH(A99,INDIRECT("'"&$K$1&"'!$B$1:$B$550"),0))), "Not Found", (INDEX(INDIRECT("'"&$K$1&"'!$A$1:$A$550"), MATCH(A99,INDIRECT("'"&$K$1&"'!$B$1:$B$550"),0)))) -> Not Found | H99: =IF(ISNA(VLOOKUP(E99,INDIRECT("'"&$K$1&"'!$A$1:$H$550"),8,FALSE)), "Not Found", VLOOKUP(E99,INDIRECT("'"&$K$1&"'!$A$1:$H$550"),8,FALSE)) -> Not Found | I99: =IF(ISNA(VLOOKUP(E99,INDIRECT("'"&$K$1&"'!$A$1:$H$550"),5,FALSE)), "0", VLOOKUP(E99,INDIRECT("'"&$K$1&"'!$A$1:$H$550"),5,FALSE)) -> 0
A100: SCL-1 | D100: 1 | E100: Not Found | H100: Not Found | I100: 0
A101: SC-2 | D101: 3 | E101: Not Found | H101: Not Found | I101: 0
A102: SCL-2 | D102: 1 | E102: Not Found | H102: Not Found | I102: 0
A103: STEM
A104: STEM | D104: 3 | E104: =IF(ISNA(INDEX(INDIRECT("'"&$K$1&"'!$A$1:$A$550"), MATCH(A104,INDIRECT("'"&$K$1&"'!$B$1:$B$550"),0))), "Not Found", (INDEX(INDIRECT("'"&$K$1&"'!$A$1:$A$550"), MATCH(A104,INDIRECT("'"&$K$1&"'!$B$1:$B$550"),0)))) -> Not Found | H104: =IF(ISNA(VLOOKUP(E104,INDIRECT("'"&$K$1&"'!$A$1:$H$550"),8,FALSE)), "Not Found", VLOOKUP(E104,INDIRECT("'"&$K$1&"'!$A$1:$H$550"),8,FALSE)) -> Not Found | I104: =IF(ISNA(VLOOKUP(E104,INDIRECT("'"&$K$1&"'!$A$1:$H$550"),5,FALSE)), "0", VLOOKUP(E104,INDIRECT("'"&$K$1&"'!$A$1:$H$550"),5,FALSE)) -> 0
A106: Diversity & Ethics ELOs
A107: Diversity & Cultural Awareness (DV)
A108: DV | D108: 3 | E108: =IF(ISNA(INDEX(INDIRECT("'"&$K$1&"'!$A$1:$A$550"), MATCH("*"&A108&"*",INDIRECT("'"&$K$1&"'!$B$1:$B$550"),0))), "Not Found", (INDEX(INDIRECT("'"&$K$1&"'!$A$1:$A$550"), MATCH("*"&A108&"*",INDIRECT("'"&$K$1&"'!$B$1:$B$550"),0)))) -> Not Found | H108: =IF(ISNA(VLOOKUP(E108,INDIRECT("'"&$K$1&"'!$A$1:$H$550"),8,FALSE)), "Not Found", VLOOKUP(E108,INDIRECT("'"&$K$1&"'!$A$1:$H$550"),8,FALSE)) -> Not Found | I108: =IF(ISNA(VLOOKUP(E108,INDIRECT("'"&$K$1&"'!$A$1:$H$550"),5,FALSE)), "0", VLOOKUP(E108,INDIRECT("'"&$K$1&"'!$A$1:$H$550"),5,FALSE)) -> 0
A109: Social Responsibility & Ethics (ET)
A110: ET | D110: 3 | E110: =IF(ISNA(INDEX(INDIRECT("'"&$K$1&"'!$A$1:$A$550"), MATCH("*"&A110&"*",INDIRECT("'"&$K$1&"'!$B$1:$B$550"),0))), "Not Found", (INDEX(INDIRECT("'"&$K$1&"'!$A$1:$A$550"), MATCH("*"&A110&"*",INDIRECT("'"&$K$1&"'!$B$1:$B$550"),0)))) -> Not Found | H110: =IF(ISNA(VLOOKUP(E110,INDIRECT("'"&$K$1&"'!$A$1:$H$550"),8,FALSE)), "Not Found", VLOOKUP(E110,INDIRECT("'"&$K$1&"'!$A$1:$H$550"),8,FALSE)) -> Not Found | I110: =IF(ISNA(VLOOKUP(E110,INDIRECT("'"&$K$1&"'!$A$1:$H$550"),5,FALSE)), "0", VLOOKUP(E110,INDIRECT("'"&$K$1&"'!$A$1:$H$550"),5,FALSE)) -> 0
A112: Degree Credits | I112: Projected Degree Credits
D113: =SUM(D1:D45,D53:D70,D86,D87,D91:D97) -> 120 | I113: =SUM(I1:I45, I53:I57,I73,I86,I87,I91:I97) -> 0

Sheet Graduation_Plan-Data-Science (hidden)
A1: Computer Science Graduation Plan
A2: Student Name | C2: Last Name, First Name
A3: University Id (not ss#)
A4: Email
A5: Primary Major (Option) | C5: Computer Science (Data Science)
A6: Second Major:
A7: Third Major:
A8: Minors(s):
A9: Special Program(s):
A10: Scholarships:
A12: Matriculation Date (Month/Year) | E12: Sept. 2016
A13: Expected Graduation Date (Month/Year) | E13: June 2020
A15: Minimum Number of Credits Required for Degree(s) | E15: 120
A17: Transfer and AP Credits
A19: Course | B19: Req. | C19: Req. | D19: Course Title | E19: Credits | F19: Grade | G19: Degree Credits | H19: SemesterYear
H20: Transfer/AP
H21: Transfer/AP
H22: Transfer/AP
H23: Transfer/AP
H24: Transfer/AP
H25: Transfer/AP
H26: Transfer/AP
H27: Transfer/AP
H28: Transfer/AP
H29: Transfer/AP
H30: Transfer/AP
H31: Transfer/AP
H32: Transfer/AP
H33: Transfer/AP
H34: Transfer/AP
H35: Transfer/AP
H36: Transfer/AP
H37: Transfer/AP
H38: Transfer/AP
H39: Transfer/AP
H40: Transfer/AP
H41: Transfer/AP
H42: Transfer/AP
H43: Transfer/AP
H44: Transfer/AP
H45: Transfer/AP
H46: Transfer/AP
H47: Transfer/AP
H48: Transfer/AP
H49: Transfer/AP
H50: Transfer/AP
H51: Transfer/AP
H52: Transfer/AP
H53: Transfer/AP
H54: Transfer/AP
H55: Transfer/AP
H56: Transfer/AP
H57: Transfer/AP
H58: Transfer/AP
H59: Transfer/AP
H60: Transfer/AP
H61: Transfer/AP
H62: Transfer/AP
H63: Transfer/AP
H64: Transfer/AP
H65: Transfer/AP
H66: Transfer/AP
H67: Transfer/AP
H68: Transfer/AP
H69: Transfer/AP
D70: Transfer and AP Credits | E70: =SUM(E20:E69) -> 0 | G70: =SUM(G20:G69) -> 0
D71: Total Credits Earned | E71: =E70 -> 0 | G71: =E15-G70 -> 120
A73: Year 1
A74: Fall | B74: 2015 | C74: =C2 -> Last Name, First Name
A75: Course | B75: =B19 -> Req. | C75: =C19 -> Req. | D75: Course Title | E75: Credits | F75: Grade | G75: Degree Credits | H75: SemesterYear
H76: =$A$74&$B$74 -> Fall2015
H77: =$A$74&$B$74 -> Fall2015
H78: Fall2015
H79: Fall2015
H80: Fall2015
H81: Fall2015
H82: Fall2015
H83: Fall2015
H84: Fall2015
H85: Fall2015
D86: Semester Credits Earned | E86: =SUM(E76:E85) -> 0 | G86: =SUM(G76:G85) -> 0
D87: =D71 -> Total Credits Earned | E87: =E71+E86 -> 0 | G87: =G71-G86 -> 120
A89: Winter | B89: =B74+1 -> 2016 | C89: =C2 -> Last Name, First Name
A90: Course | B90: =B19 -> Req. | D90: Course Title | E90: Credits | F90: Grade | G90: Degree Credits | H90: SemesterYear
H91: =$A$89&$B$89 -> Winter2016
H92: =$A$89&$B$89 -> Winter2016
H93: Winter2016
D94: =D86 -> Semester Credits Earned | E94: =SUM(E91:E93) -> 0 | G94: =SUM(G91:G93) -> 0
D95: =D71 -> Total Credits Earned | E95: =E87+E94 -> 0 | G95: =G87-G94 -> 120
A97: Spring | B97: =B74+1 -> 2016 | C97: =C2 -> Last Name, First Name
A98: Course | B98: =B19 -> Req. | C98: =C19 -> Req. | D98: Course Title | E98: Credits | F98: Grade | G98: Degree Credits | H98: SemesterYear
H99: =$A$97&$B$97 -> Spring2016
H100: =$A$97&$B$97 -> Spring2016
H101: Spring2016
H102: Spring2016
H103: Spring2016
H104: Spring2016
H105: Spring2016
H106: Spring2016
H107: Spring2016
H108: Spring2016
D109: =D86 -> Semester Credits Earned | E109: =SUM(E99:E108) -> 0 | G109: =SUM(G99:G108) -> 0
D110: =D71 -> Total Credits Earned | E110: =E95+E109 -> 0 | G110: =G95-G109 -> 120
A112: Summer | B112: =B74+1 -> 2016 | C112: =C2 -> Last Name, First Name
A113: Course | B113: =B19 -> Req. | C113: =C19 -> Req. | D113: Course Title | E113: Credits | F113: Grade | G113: Degree Credits | H113: SemesterYear
H114: =$A$112&$B$112 -> Summer2016
H115: =$A$112&$B$112 -> Summer2016
H116: Summer2016
H117: Summer2016
H118: Summer2016
H119: Summer2016
D120: =D86 -> Semester Credits Earned | E120: =SUM(E114:E119) -> 0 | G120: =SUM(G114:G119) -> 0
D121: =D71 -> Total Credits Earned | E121: =E110+E120 -> 0 | G121: =G110-G120 -> 120
A123: Year 2
A124: Fall | B124: =B74+1 -> 2016 | C124: =C2 -> Last Name, First Name
A125: Course | B125: =B19 -> Req. | C125: =C19 -> Req. | D125: Course Title | E125: Credits | F125: Grade | G125: Degree Credits | H125: SemesterYear
H126: =$A$124&$B$124 -> Fall2016
H127: =$A$124&$B$124 -> Fall2016
H128: Fall2016
H129: Fall2016
H130: Fall2016
H131: Fall2016
H132: Fall2016
H133: Fall2016
H134: Fall2016
H135: Fall2016
D136: =D86 -> Semester Credits Earned | E136: =SUM(E126:E135) -> 0 | G136: =SUM(G126:G135) -> 0
D137: =D71 -> Total Credits Earned | E137: =E121+E136 -> 0 | G137: =G121-G136 -> 120
A139: Winter | B139: =B74+2 -> 2017 | C139: =C2 -> Last Name, First Name
A140: Course | B140: =B19 -> Req. | C140: =C19 -> Req. | D140: Course Title | E140: Credits | F140: Grade | G140: Degree Credits | H140: SemesterYear
H141: =$A$139&$B$139 -> Winter2017
H142: =$A$139&$B$139 -> Winter2017
H143: Winter2017
D144: =D86 -> Semester Credits Earned | E144: =SUM(E141:E143) -> 0 | G144: =SUM(G141:G143) -> 0
D145: =D71 -> Total Credits Earned | E145: =E137+E144 -> 0 | G145: =G137-G144 -> 120
A147: Spring | B147: =B89+1 -> 2017 | C147: =C2 -> Last Name, First Name
A148: Course | B148: =B19 -> Req. | C148: =C19 -> Req. | D148: Course Title | E148: Credits | F148: Grade | G148: Degree Credits | H148: SemesterYear
H149: =$A$147&$B$147 -> Spring2017
H150: =$A$147&$B$147 -> Spring2017
H151: Spring2017
H152: Spring2017
H153: Spring2017
H154: Spring2017
H155: Spring2017
H156: Spring2017
H157: Spring2017
H158: Spring2017
D159: =D86 -> Semester Credits Earned | E159: =SUM(E149:E158) -> 0 | G159: =SUM(G149:G158) -> 0
D160: =D71 -> Total Credits Earned | E160: =E145+E159 -> 0 | G160: =G145-G159 -> 120
A162: Summer | B162: =B74+2 -> 2017 | C162: =C2 -> Last Name, First Name
A163: Course | B163: =B19 -> Req. | C163: =C19 -> Req. | D163: Course Title | E163: Credits | F163: Grade | G163: Degree Credits | H163: SemesterYear
H164: =$A$162&$B$162 -> Summer2017
H165: =$A$162&$B$162 -> Summer2017
H166: Summer2017
H167: Summer2017
H168: Summer2017
H169: Summer2017
D170: =D86 -> Semester Credits Earned | E170: =SUM(E164:E169) -> 0 | G170: =SUM(G163:G169) -> 0
D171: =D71 -> Total Credits Earned | E171: =E160+E170 -> 0 | G171: =G160-G170 -> 120
A173: Year 3
A174: Fall | B174: =B74+2 -> 2017 | C174: =C2 -> Last Name, First Name
A175: Course | B175: =B19 -> Req. | C175: =C19 -> Req. | D175: Course Title | E175: Credits | F175: Grade | G175: Degree Credits | H175: SemesterYear
H176: =$A$174&$B$174 -> Fall2017
H177: =$A$174&$B$174 -> Fall2017
H178: Fall2017
H179: Fall2017
H180: Fall2017
H181: Fall2017
H182: Fall2017
H183: Fall2017
H184: Fall2017
H185: Fall2017
D186: =D86 -> Semester Credits Earned | E186: =SUM(E176:E185) -> 0 | G186: =SUM(G176:G185) -> 0
D187: =D71 -> Total Credits Earned | E187: =E171+E186 -> 0 | G187: =G171-G186 -> 120
A189: Winter | B189: =B74+3 -> 2018 | C189: =C2 -> Last Name, First Name
A190: Course | B190: =B19 -> Req. | C190: =C19 -> Req. | D190: Course Title | E190: Credits | F190: Grade | G190: Degree Credits | H190: SemesterYear
H191: =$A$189&$B$189 -> Winter2018
H192: =$A$189&$B$189 -> Winter2018
H193: Winter2018
D194: =D86 -> Semester Credits Earned | E194: =SUM(E191:E193) -> 0 | G194: =SUM(G191:G193) -> 0 | H194: =SUM(H191:H193) -> 0
D195: =D71 -> Total Credits Earned | E195: =E187+E194 -> 0 | G195: =G187-G194 -> 120
A197: Spring | B197: =B74+3 -> 2018 | C197: =C2 -> Last Name, First Name
A198: Course | B198: =B19 -> Req. | C198: =C19 -> Req. | D198: Course Title | E198: Credits | F198: Grade | G198: Degree Credits | H198: SemesterYear
H199: =$A$197&$B$197 -> Spring2018
H200: =$A$197&$B$197 -> Spring2018
H201: Spring2018
H202: Spring2018
H203: Spring2018
H204: Spring2018
H205: Spring2018
H206: Spring2018
H207: Spring2018
H208: Spring2018
D209: =D86 -> Semester Credits Earned | E209: =SUM(E199:E208) -> 0 | G209: =SUM(G199:G208) -> 0
D210: =D71 -> Total Credits Earned | E210: =E195+E209 -> 0 | G210: =G195-G209 -> 120
A212: Summer | B212: =B74+3 -> 2018 | C212: =C2 -> Last Name, First Name
A213: Course | B213: =B19 -> Req. | C213: =C19 -> Req. | D213: Course Title | E213: Credits | F213: Grade | G213: Degree Credits | H213: SemesterYear
H214: =$A$212&$B$212 -> Summer2018
H215: =$A$212&$B$212 -> Summer2018
H216: Summer2018
... 150 more rows

Sheet Checklist_Data Science (hidden)
A1: Checklist - Data Science | K1: Graduation_Plan | L1: Required Data Science Electives
A2: Requirement | D2: Credits | E2: Taken | H2: Semester | I2: Credits | L2: List courses you are interested in possibly taking. (NOTE: This is not required.)
A3: Required Computer Science Courses | L3: Course | M3: Title
A4: COMP.1010 | B4: or | C4: 91.101 | D4: 3 | E4: COMP.1010 | F4: or | G4: 91.101 | H4: =IF(AND(ISNA(VLOOKUP(E4,INDIRECT("'"&$K$1&"'!$A$1:$H$550"),8,FALSE)), ISNA(VLOOKUP(G4,INDIRECT("'"&$K$1&"'!$A$1:$H$550"),8,FALSE))), "Not Found", (IF(ISNA(VLOOKUP(E4,INDIRECT("'"&$K$1&"'!$A$1:$H$550"),8,FALSE)), VLOOKUP(G4,INDIRECT("'"&$K$1&"'!$A$1:$H$550"),8,FALSE), VLOOKUP(E4,INDIRECT("'"&$K$1&"'!$A$1:$H$550"),8,FALSE)))) -> Not Found | I4: =IF(AND(ISNA(VLOOKUP(E4,INDIRECT("'"&$K$1&"'!$A$1:$H$550"),5,FALSE)), ISNA(VLOOKUP(G4,INDIRECT("'"&$K$1&"'!$A$1:$H$550"),5,FALSE))), "0", (IF(ISNA(VLOOKUP(E4,INDIRECT("'"&$K$1&"'!$A$1:$H$550"),5,FALSE)), VLOOKUP(G4,INDIRECT("'"&$K$1&"'!$A$1:$H$550"),5,FALSE), VLOOKUP(E4,INDIRECT("'"&$K$1&"'!$A$1:$H$550"),5,FALSE)))) -> 0
A5: COMP.1030L | B5: or | C5: 91.103 | D5: 1 | E5: COMP.1030L | F5: or | G5: 91.103 | H5: =IF(AND(ISNA(VLOOKUP(E5,INDIRECT("'"&$K$1&"'!$A$1:$H$550"),8,FALSE)), ISNA(VLOOKUP(G5,INDIRECT("'"&$K$1&"'!$A$1:$H$550"),8,FALSE))), "Not Found", (IF(ISNA(VLOOKUP(E5,INDIRECT("'"&$K$1&"'!$A$1:$H$550"),8,FALSE)), VLOOKUP(G5,INDIRECT("'"&$K$1&"'!$A$1:$H$550"),8,FALSE), VLOOKUP(E5,INDIRECT("'"&$K$1&"'!$A$1:$H$550"),8,FALSE)))) -> Not Found | I5: 0
A6: COMP.1020 | B6: or | C6: 91.102 | D6: 3 | E6: COMP.1020 | F6: or | G6: 91.102 | H6: Not Found | I6: =IF(AND(ISNA(VLOOKUP(E6,INDIRECT("'"&$K$1&"'!$A$1:$H$550"),5,FALSE)), ISNA(VLOOKUP(G6,INDIRECT("'"&$K$1&"'!$A$1:$H$550"),5,FALSE))), "0", (IF(ISNA(VLOOKUP(E6,INDIRECT("'"&$K$1&"'!$A$1:$H$550"),5,FALSE)), VLOOKUP(G6,INDIRECT("'"&$K$1&"'!$A$1:$H$550"),5,FALSE), VLOOKUP(E6,INDIRECT("'"&$K$1&"'!$A$1:$H$550"),5,FALSE)))) -> 0
A7: COMP.1040L | B7: or | C7: 91.104 | D7: 1 | E7: COMP.1040L | F7: or | G7: 91.104 | H7: Not Found | I7: =IF(AND(ISNA(VLOOKUP(E7,INDIRECT("'"&$K$1&"'!$A$1:$H$550"),5,FALSE)), ISNA(VLOOKUP(G7,INDIRECT("'"&$K$1&"'!$A$1:$H$550"),5,FALSE))), "0", (IF(ISNA(VLOOKUP(E7,INDIRECT("'"&$K$1&"'!$A$1:$H$550"),5,FALSE)), VLOOKUP(G7,INDIRECT("'"&$K$1&"'!$A$1:$H$550"),5,FALSE), VLOOKUP(E7,INDIRECT("'"&$K$1&"'!$A$1:$H$550"),5,FALSE)))) -> 0
A8: COMP.2010 | B8: or | C8: 91.201 | D8: 3 | E8: COMP.2010 | F8: or | G8: 91.201 | H8: Not Found | I8: 0
A9: COMP.2010L | D9: 1 | E9: COMP.2010L | H9: =IF(AND(ISNA(VLOOKUP(E9,INDIRECT("'"&$K$1&"'!$A$1:$H$550"),8,FALSE)), ISNA(VLOOKUP(G9,INDIRECT("'"&$K$1&"'!$A$1:$H$550"),8,FALSE))), "Not Found", (IF(ISNA(VLOOKUP(E9,INDIRECT("'"&$K$1&"'!$A$1:$H$550"),8,FALSE)), VLOOKUP(G9,INDIRECT("'"&$K$1&"'!$A$1:$H$550"),8,FALSE), VLOOKUP(E9,INDIRECT("'"&$K$1&"'!$A$1:$H$550"),8,FALSE)))) -> Not Found | I9: =IF(AND(ISNA(VLOOKUP(E9,INDIRECT("'"&$K$1&"'!$A$1:$H$550"),5,FALSE)), ISNA(VLOOKUP(G9,INDIRECT("'"&$K$1&"'!$A$1:$H$550"),5,FALSE))), "0", (IF(ISNA(VLOOKUP(E9,INDIRECT("'"&$K$1&"'!$A$1:$H$550"),5,FALSE)), VLOOKUP(G9,INDIRECT("'"&$K$1&"'!$A$1:$H$550"),5,FALSE), VLOOKUP(E9,INDIRECT("'"&$K$1&"'!$A$1:$H$550"),5,FALSE)))) -> 0
A10: COMP.2030 | B10: or | C10: 91.203 | D10: 3 | E10: COMP.2030 | F10: or | G10: 91.203 | H10: Not Found | I10: 0
A11: COMP.2030L | D11: 1 | E11: COMP.2030L | H11: =IF(AND(ISNA(VLOOKUP(E11,INDIRECT("'"&$K$1&"'!$A$1:$H$550"),8,FALSE)), ISNA(VLOOKUP(G11,INDIRECT("'"&$K$1&"'!$A$1:$H$550"),8,FALSE))), "Not Found", (IF(ISNA(VLOOKUP(E11,INDIRECT("'"&$K$1&"'!$A$1:$H$550"),8,FALSE)), VLOOKUP(G11,INDIRECT("'"&$K$1&"'!$A$1:$H$550"),8,FALSE), VLOOKUP(E11,INDIRECT("'"&$K$1&"'!$A$1:$H$550"),8,FALSE)))) -> Not Found | I11: =IF(AND(ISNA(VLOOKUP(E11,INDIRECT("'"&$K$1&"'!$A$1:$H$550"),5,FALSE)), ISNA(VLOOKUP(G11,INDIRECT("'"&$K$1&"'!$A$1:$H$550"),5,FALSE))), "0", (IF(ISNA(VLOOKUP(E11,INDIRECT("'"&$K$1&"'!$A$1:$H$550"),5,FALSE)), VLOOKUP(G11,INDIRECT("'"&$K$1&"'!$A$1:$H$550"),5,FALSE), VLOOKUP(E11,INDIRECT("'"&$K$1&"'!$A$1:$H$550"),5,FALSE)))) -> 0
A12: COMP.2040 | B12: or | C12: 91.204 | D12: 3 | E12: COMP.2040 | F12: or | G12: 91.204 | H12: Not Found | I12: 0
A13: COMP.3010 | B13: or | C13: 91.301 | D13: 3 | E13: COMP.3010 | F13: or | G13: 91.301 | H13: Not Found | I13: 0
A14: COMP.3040 | B14: or | C14: 91.304 | D14: 3 | E14: COMP.3040 | F14: or | G14: 91.304 | H14: Not Found | I14: 0
A15: COMP.3050 | B15: or | C15: 91.305 | D15: 3 | E15: COMP.3050 | F15: or | G15: 91.305 | H15: Not Found | I15: 0
A16: COMP.3080 | B16: or | C16: 91.308 | D16: 3 | E16: COMP.3080 | F16: or | G16: 91.308 | H16: Not Found | I16: 0
A17: COMP.4040 | B17: or | C17: 91.404 | D17: 3 | E17: COMP.4040 | F17: or | G17: 91.404 | H17: Not Found | I17: 0
A18: COMP.4220 | B18: or | C18: 91.422 | D18: 3 | E18: COMP.4220 | F18: or | G18: 91.422 | H18: Not Found | I18: 0
A19: Upper Level Data Science Elective
A20: DSE-1 | D20: 3 | E20: =IF(ISNA(INDEX(INDIRECT("'"&$K$1&"'!$A$1:$A$550"), MATCH(A20,INDIRECT("'"&$K$1&"'!$B$1:$B$550"),0))), "Not Found", (INDEX(INDIRECT("'"&$K$1&"'!$A$1:$A$550"), MATCH(A20,INDIRECT("'"&$K$1&"'!$B$1:$B$550"),0)))) -> Not Found | H20: =IF(ISNA(VLOOKUP(E20,INDIRECT("'"&$K$1&"'!$A$1:$H$550"),8,FALSE)), "Not Found", VLOOKUP(E20,INDIRECT("'"&$K$1&"'!$A$1:$H$550"),8,FALSE)) -> Not Found | I20: =IF(ISNA(VLOOKUP(E20,INDIRECT("'"&$K$1&"'!$A$1:$H$550"),5,FALSE)), "0", VLOOKUP(E20,INDIRECT("'"&$K$1&"'!$A$1:$H$550"),5,FALSE)) -> 0
A21: DSE-2 | D21: 3 | E21: Not Found | H21: Not Found | I21: 0
A22: General CS Upper Level Elective
A23: CSE-1 | D23: 3 | E23: Not Found | H23: =IF(ISNA(VLOOKUP(E23,INDIRECT("'"&$K$1&"'!$A$1:$H$550"),8,FALSE)), "Not Found", VLOOKUP(E23,INDIRECT("'"&$K$1&"'!$A$1:$H$550"),8,FALSE)) -> Not Found | I23: =IF(ISNA(VLOOKUP(E23,INDIRECT("'"&$K$1&"'!$A$1:$H$550"),5,FALSE)), "0", VLOOKUP(E23,INDIRECT("'"&$K$1&"'!$A$1:$H$550"),5,FALSE)) -> 0
A24: CS Project Course
A25: Sr.Prj-1 | D25: 3 | E25: =IF(ISNA(INDEX(INDIRECT("'"&$K$1&"'!$A$1:$A$550"), MATCH(A25,INDIRECT("'"&$K$1&"'!$C$1:$C$550"),0))), "Not Found", (INDEX(INDIRECT("'"&$K$1&"'!$A$1:$A$550"), MATCH(A25,INDIRECT("'"&$K$1&"'!$C$1:$C$550"),0)))) -> Not Found | H25: =IF(ISNA(VLOOKUP(E25,INDIRECT("'"&$K$1&"'!$A$1:$H$550"),8,FALSE)), "Not Found", VLOOKUP(E25,INDIRECT("'"&$K$1&"'!$A$1:$H$550"),8,FALSE)) -> Not Found | I25: =IF(ISNA(VLOOKUP(E25,INDIRECT("'"&$K$1&"'!$A$1:$H$550"),5,FALSE)), "0", VLOOKUP(E25,INDIRECT("'"&$K$1&"'!$A$1:$H$550"),5,FALSE)) -> 0
A26: Sr.Prj-2 | D26: 3 | E26: =IF(ISNA(INDEX(INDIRECT("'"&$K$1&"'!$A$1:$A$550"), MATCH(A26,INDIRECT("'"&$K$1&"'!$C$1:$C$550"),0))), "Not Found", (INDEX(INDIRECT("'"&$K$1&"'!$A$1:$A$550"), MATCH(A26,INDIRECT("'"&$K$1&"'!$C$1:$C$550"),0)))) -> Not Found | H26: Not Found | I26: 0
A28: Required Supporting Technical Course
A29: Requirement | D29: Credits | E29: Taken | H29: Semester | I29: Credits
A30: Electrical Engineering
A31: EECE.2650 | B31: or | C31: 16.265 | D31: 3 | E31: EECE.2650 | F31: or | G31: 16.265 | H31: =IF(AND(ISNA(VLOOKUP(E31,INDIRECT("'"&$K$1&"'!$A$1:$H$550"),8,FALSE)), ISNA(VLOOKUP(G31,INDIRECT("'"&$K$1&"'!$A$1:$H$550"),8,FALSE))), "Not Found", (IF(ISNA(VLOOKUP(E31,INDIRECT("'"&$K$1&"'!$A$1:$H$550"),8,FALSE)), VLOOKUP(G31,INDIRECT("'"&$K$1&"'!$A$1:$H$550"),8,FALSE), VLOOKUP(E31,INDIRECT("'"&$K$1&"'!$A$1:$H$550"),8,FALSE)))) -> Not Found | I31: =IF(AND(ISNA(VLOOKUP(E31,INDIRECT("'"&$K$1&"'!$A$1:$H$550"),5,FALSE)), ISNA(VLOOKUP(G31,INDIRECT("'"&$K$1&"'!$A$1:$H$550"),5,FALSE))), "0", (IF(ISNA(VLOOKUP(E31,INDIRECT("'"&$K$1&"'!$A$1:$H$550"),5,FALSE)), VLOOKUP(G31,INDIRECT("'"&$K$1&"'!$A$1:$H$550"),5,FALSE), VLOOKUP(E31,INDIRECT("'"&$K$1&"'!$A$1:$H$550"),5,FALSE)))) -> 0
A32: Mathematics
A33: MATH.1310 | B33: or | C33: 92.131 | D33: 4 | E33: MATH.1310 | F33: or | G33: 92.131 | H33: =IF(AND(ISNA(VLOOKUP(E33,INDIRECT("'"&$K$1&"'!$A$1:$H$550"),8,FALSE)), ISNA(VLOOKUP(G33,INDIRECT("'"&$K$1&"'!$A$1:$H$550"),8,FALSE))), "Not Found", (IF(ISNA(VLOOKUP(E33,INDIRECT("'"&$K$1&"'!$A$1:$H$550"),8,FALSE)), VLOOKUP(G33,INDIRECT("'"&$K$1&"'!$A$1:$H$550"),8,FALSE), VLOOKUP(E33,INDIRECT("'"&$K$1&"'!$A$1:$H$550"),8,FALSE)))) -> Not Found | I33: =IF(AND(ISNA(VLOOKUP(E33,INDIRECT("'"&$K$1&"'!$A$1:$H$550"),5,FALSE)), ISNA(VLOOKUP(G33,INDIRECT("'"&$K$1&"'!$A$1:$H$550"),5,FALSE))), "0", (IF(ISNA(VLOOKUP(E33,INDIRECT("'"&$K$1&"'!$A$1:$H$550"),5,FALSE)), VLOOKUP(G33,INDIRECT("'"&$K$1&"'!$A$1:$H$550"),5,FALSE), VLOOKUP(E33,INDIRECT("'"&$K$1&"'!$A$1:$H$550"),5,FALSE)))) -> 0
A34: MATH.1320 | B34: or | C34: 92.132 | D34: 4 | E34: MATH.1320 | F34: or | G34: 92.132 | H34: Not Found | I34: 0
A35: MATH.2210 | B35: or | C35: 92.221 | D35: 3 | E35: MATH.2210 | F35: or | G35: 92.221 | H35: Not Found | I35: 0
A36: MATH.2220 | B36: or | C36: 92.222 | D36: 3 | E36: MATH.2220 | F36: or | G36: 92.222 | H36: Not Found | I36: 0
A37: MATH.2310 | B37: or | C37: 92.231 | D37: 4 | E37: MATH.2310 | F37: or | G37: 92.231 | H37: Not Found | I37: 0
A38: MATH.3210 | B38: or | C38: 92.321 | D38: 3 | E38: MATH.3210 | F38: or | G38: 92.321 | H38: Not Found | I38: 0
A39: MATH.3220 | B39: or | C39: 92.322 | D39: 3 | E39: MATH.3220 | F39: or | G39: 92.322 | H39: Not Found | I39: 0
A40: MATH.3860 | B40: or | C40: 92.386 | D40: 3 | E40: MATH.3860 | F40: or | G40: 92.386 | H40: Not Found | I40: 0
A42: Natural Science Electives | L42: Natural Science Electives
A43: Requirement | D43: Credits | E43: Taken | H43: Semester | I43: Credits | L43: List courses you are interested in possibly taking to satisfy this requirement
A44: NS-1 | D44: 3 | E44: =IF(ISNA(INDEX(INDIRECT("'"&$K$1&"'!$A$1:$A$550"), MATCH(A44,INDIRECT("'"&$K$1&"'!$C$1:$C$550"),0))), "Not Found", (INDEX(INDIRECT("'"&$K$1&"'!$A$1:$A$550"), MATCH(A44,INDIRECT("'"&$K$1&"'!$C$1:$C$550"),0)))) -> Not Found | H44: =IF(ISNA(VLOOKUP(E44,INDIRECT("'"&$K$1&"'!$A$1:$H$550"),8,FALSE)), "Not Found", VLOOKUP(E44,INDIRECT("'"&$K$1&"'!$A$1:$H$550"),8,FALSE)) -> Not Found | I44: =IF(ISNA(VLOOKUP(E44,INDIRECT("'"&$K$1&"'!$A$1:$H$550"),5,FALSE)), "0", VLOOKUP(E44,INDIRECT("'"&$K$1&"'!$A$1:$H$550"),5,FALSE)) -> 0 | L44: Course | M44: Title
A45: NS-Lab1 | D45: 1 | E45: =IF(ISNA(INDEX(INDIRECT("'"&$K$1&"'!$A$1:$A$550"), MATCH(A45,INDIRECT("'"&$K$1&"'!$C$1:$C$550"),0))), "Not Found", (INDEX(INDIRECT("'"&$K$1&"'!$A$1:$A$550"), MATCH(A45,INDIRECT("'"&$K$1&"'!$C$1:$C$550"),0)))) -> Not Found | H45: Not Found | I45: 0
A46: NS-2 | D46: 3 | E46: Not Found | H46: Not Found | I46: 0
A47: NS-Lab2 | D47: 1 | E47: Not Found | H47: Not Found | I47: 0
A48: NS-3 | D48: 3 | E48: Not Found | H48: Not Found | I48: 0
A49: NS-Lab3 | D49: 1 | E49: Not Found | H49: Not Found | I49: 0
A50: Not Req. | D50: n/a | E50: Not Found | H50: Not Found | I50: 0
A51: Not Req. | D51: n/a | E51: Not Found | H51: Not Found | I51: 0
A57: Technical Elective | L57: Technical Elective
A58: Requirement | D58: Credits | E58: Taken | H58: Semester | I58: Credits | L58: List courses you are interested in possibly taking to satisfy this requirement
A59: TE-1 | D59: 3 | E59: =IF(ISNA(INDEX(INDIRECT("'"&$K$1&"'!$A$1:$A$550"), MATCH(A59,INDIRECT("'"&$K$1&"'!$B$1:$B$550"),0))), "Not Found", (INDEX(INDIRECT("'"&$K$1&"'!$A$1:$A$550"), MATCH(A59,INDIRECT("'"&$K$1&"'!$B$1:$B$550"),0)))) -> Not Found | H59: =IF(ISNA(VLOOKUP(E59,INDIRECT("'"&$K$1&"'!$A$1:$H$550"),8,FALSE)), "Not Found", VLOOKUP(E59,INDIRECT("'"&$K$1&"'!$A$1:$H$550"),8,FALSE)) -> Not Found | I59: =IF(ISNA(VLOOKUP(E59,INDIRECT("'"&$K$1&"'!$A$1:$H$550"),5,FALSE)), "0", VLOOKUP(E59,INDIRECT("'"&$K$1&"'!$A$1:$H$550"),5,FALSE)) -> 0 | L59: Course | M59: Title
A60: Not Req. | D60: n/a | E60: Not Found | H60: Not Found | I60: 0
A66: Free Electives (FE) | L66: Free Electives
A67: Requirement | D67: Credits | E67: Taken | H67: Semester | I67: Credits | L67: List free electives you are interested in taking. These cannot be below the level of a
A68: FE-1 | D68: 3 | E68: =IF(ISNA(INDEX(INDIRECT("'"&$K$1&"'!$A$1:$A$550"), MATCH("*"&A68&"*",INDIRECT("'"&$K$1&"'!$B$1:$B$550"),0))), "Not Found", (INDEX(INDIRECT("'"&$K$1&"'!$A$1:$A$550"), MATCH("*"&A68&"*",INDIRECT("'"&$K$1&"'!$B$1:$B$550"),0)))) -> Not Found | H68: =IF(ISNA(VLOOKUP(E68,INDIRECT("'"&$K$1&"'!$A$1:$H$550"),8,FALSE)), "Not Found", VLOOKUP(E68,INDIRECT("'"&$K$1&"'!$A$1:$H$550"),8,FALSE)) -> Not Found | I68: =IF(ISNA(VLOOKUP(E68,INDIRECT("'"&$K$1&"'!$A$1:$H$550"),5,FALSE)), "0", VLOOKUP(E68,INDIRECT("'"&$K$1&"'!$A$1:$H$550"),5,FALSE)) -> 0 | L68: required course. Specific courses may be recommended for different CS tracks.
A69: FE-2 | D69: 2 | E69: Not Found | H69: Not Found | I69: 0
A70: Not Req. | D70: n/a | E70: Not Found | H70: Not Found | I70: 0
A71: Not Req. | D71: n/a | E71: Not Found | H71: Not Found | I71: 0
A72: Not Req. | D72: n/a | E72: Not Found | H72: Not Found | I72: 0
A73: Not Req. | D73: n/a | E73: Not Found | H73: Not Found | I73: 0
A75: Required FE Credits | H75: Projected Credits
D76: =120-SUM(D4:D23, D31:D59:D60, D89:D90,D94:D100) -> 5 | I76: =SUM(I68:I74) -> 0
A78: Oral & Written Communication
A79: Requirement | D79: Credits | E79: Taken | H79: Semester | I79: Credits
A80: ENGL.2200 | B80: or | C80: 42.220 | D80: 3 | E80: ENGL.2200 | F80: or | G80: 42.220 | H80: =IF(AND(ISNA(VLOOKUP(E80,INDIRECT("'"&$K$1&"'!$A$1:$H$550"),8,FALSE)), ISNA(VLOOKUP(G80,INDIRECT("'"&$K$1&"'!$A$1:$H$550"),8,FALSE))), "Not Found", (IF(ISNA(VLOOKUP(E80,INDIRECT("'"&$K$1&"'!$A$1:$H$550"),8,FALSE)), VLOOKUP(G80,INDIRECT("'"&$K$1&"'!$A$1:$H$550"),8,FALSE), VLOOKUP(E80,INDIRECT("'"&$K$1&"'!$A$1:$H$550"),8,FALSE)))) -> Not Found | I80: =IF(AND(ISNA(VLOOKUP(E80,INDIRECT("'"&$K$1&"'!$A$1:$H$550"),5,FALSE)), ISNA(VLOOKUP(G80,INDIRECT("'"&$K$1&"'!$A$1:$H$550"),5,FALSE))), "0", (IF(ISNA(VLOOKUP(E80,INDIRECT("'"&$K$1&"'!$A$1:$H$550"),5,FALSE)), VLOOKUP(G80,INDIRECT("'"&$K$1&"'!$A$1:$H$550"),5,FALSE), VLOOKUP(E80,INDIRECT("'"&$K$1&"'!$A$1:$H$550"),5,FALSE)))) -> 0
A82: CS Ethics Requirement
A83: Requirement | D83: Credits | E83: Taken | H83: Semester | I83: Credits
A84: CSET | D84: 3 | E84: =IF(ISNA(INDEX(INDIRECT("'"&$K$1&"'!$A$1:$A$550"), MATCH(A84,INDIRECT("'"&$K$1&"'!$C$1:$C$550"),0))), "Not Found", (INDEX(INDIRECT("'"&$K$1&"'!$A$1:$A$550"), MATCH(A84,INDIRECT("'"&$K$1&"'!$C$1:$C$550"),0)))) -> Not Found | H84: =IF(ISNA(VLOOKUP(E84,INDIRECT("'"&$K$1&"'!$A$1:$H$550"),8,FALSE)), "Not Found", VLOOKUP(E84,INDIRECT("'"&$K$1&"'!$A$1:$H$550"),8,FALSE)) -> Not Found | I84: =IF(ISNA(VLOOKUP(E84,INDIRECT("'"&$K$1&"'!$A$1:$H$550"),5,FALSE)), "0", VLOOKUP(E84,INDIRECT("'"&$K$1&"'!$A$1:$H$550"),5,FALSE)) -> 0
A86: Breadth of Knowledge | L86: Breadth of Knowledge Requirements
A87: Requirement | D87: Credits | E87: Taken | H87: Semester | I87: Credits | L87: Select courses you are interested in taking to satisfy this Requirements.
A88: College Writing | L88: Area | M88: Title
A89: CW-1 | D89: 3 | E89: =IF(ISNA(INDEX(INDIRECT("'"&$K$1&"'!$A$1:$A$550"), MATCH(A89,INDIRECT("'"&$K$1&"'!$B$1:$B$550"),0))), "Not Found", (INDEX(INDIRECT("'"&$K$1&"'!$A$1:$A$550"), MATCH(A89,INDIRECT("'"&$K$1&"'!$B$1:$B$550"),0)))) -> Not Found | H89: =IF(ISNA(VLOOKUP(E89,INDIRECT("'"&$K$1&"'!$A$1:$H$550"),8,FALSE)), "Not Found", VLOOKUP(E89,INDIRECT("'"&$K$1&"'!$A$1:$H$550"),8,FALSE)) -> Not Found | I89: =IF(ISNA(VLOOKUP(E89,INDIRECT("'"&$K$1&"'!$A$1:$H$550"),5,FALSE)), "0", VLOOKUP(E89,INDIRECT("'"&$K$1&"'!$A$1:$H$550"),5,FALSE)) -> 0
A90: CW-2 | D90: 3 | E90: Not Found | H90: Not Found | I90: 0
A91: Mathematics
A92: MA | D92: 4 | E92: =IF(ISNA(INDEX(INDIRECT("'"&$K$1&"'!$A$1:$A$550"), MATCH(A92,INDIRECT("'"&$K$1&"'!$B$1:$B$550"),0))), "Not Found", (INDEX(INDIRECT("'"&$K$1&"'!$A$1:$A$550"), MATCH(A92,INDIRECT("'"&$K$1&"'!$B$1:$B$550"),0)))) -> Not Found | H92: =IF(ISNA(VLOOKUP(E92,INDIRECT("'"&$K$1&"'!$A$1:$H$550"),8,FALSE)), "Not Found", VLOOKUP(E92,INDIRECT("'"&$K$1&"'!$A$1:$H$550"),8,FALSE)) -> Not Found | I92: =IF(ISNA(VLOOKUP(E92,INDIRECT("'"&$K$1&"'!$A$1:$H$550"),5,FALSE)), "0", VLOOKUP(E92,INDIRECT("'"&$K$1&"'!$A$1:$H$550"),5,FALSE)) -> 0
A93: Arts & Humanities
A94: AH-1 | D94: 3 | E94: =IF(ISNA(INDEX(INDIRECT("'"&$K$1&"'!$A$1:$A$550"), MATCH("*"&A94&"*",INDIRECT("'"&$K$1&"'!$B$1:$B$550"),0))), "Not Found", (INDEX(INDIRECT("'"&$K$1&"'!$A$1:$A$550"), MATCH("*"&A94&"*",INDIRECT("'"&$K$1&"'!$B$1:$B$550"),0)))) -> Not Found | H94: =IF(ISNA(VLOOKUP(E94,INDIRECT("'"&$K$1&"'!$A$1:$H$550"),8,FALSE)), "Not Found", VLOOKUP(E94,INDIRECT("'"&$K$1&"'!$A$1:$H$550"),8,FALSE)) -> Not Found | I94: =IF(ISNA(VLOOKUP(E94,INDIRECT("'"&$K$1&"'!$A$1:$H$550"),5,FALSE)), "0", VLOOKUP(E94,INDIRECT("'"&$K$1&"'!$A$1:$H$550"),5,FALSE)) -> 0
A95: AH-2 | D95: 3 | E95: =IF(ISNA(INDEX(INDIRECT("'"&$K$1&"'!$A$1:$A$550"), MATCH("*"&A95&"*",INDIRECT("'"&$K$1&"'!$B$1:$B$550"),0))), "Not Found", (INDEX(INDIRECT("'"&$K$1&"'!$A$1:$A$550"), MATCH("*"&A95&"*",INDIRECT("'"&$K$1&"'!$B$1:$B$550"),0)))) -> Not Found | H95: Not Found | I95: 0
A96: AH-3 | D96: 3 | E96: Not Found | H96: Not Found | I96: 0
A97: Social Sciences
A98: SS-1 | D98: 3 | E98: =IF(ISNA(INDEX(INDIRECT("'"&$K$1&"'!$A$1:$A$550"), MATCH("*"&A98&"*",INDIRECT("'"&$K$1&"'!$B$1:$B$550"),0))), "Not Found", (INDEX(INDIRECT("'"&$K$1&"'!$A$1:$A$550"), MATCH("*"&A98&"*",INDIRECT("'"&$K$1&"'!$B$1:$B$550"),0)))) -> Not Found | H98: =IF(ISNA(VLOOKUP(E98,INDIRECT("'"&$K$1&"'!$A$1:$H$550"),8,FALSE)), "Not Found", VLOOKUP(E98,INDIRECT("'"&$K$1&"'!$A$1:$H$550"),8,FALSE)) -> Not Found | I98: =IF(ISNA(VLOOKUP(E98,INDIRECT("'"&$K$1&"'!$A$1:$H$550"),5,FALSE)), "0", VLOOKUP(E98,INDIRECT("'"&$K$1&"'!$A$1:$H$550"),5,FALSE)) -> 0
A99: SS-2 | D99: 3 | E99: Not Found | H99: Not Found | I99: 0
A100: SS-3 | D100: 3 | E100: Not Found | H100: Not Found | I100: 0
A101: Sciences with Lab
A102: SC-1 | D102: 3 | E102: =IF(ISNA(INDEX(INDIRECT("'"&$K$1&"'!$A$1:$A$550"), MATCH(A102,INDIRECT("'"&$K$1&"'!$B$1:$B$550"),0))), "Not Found", (INDEX(INDIRECT("'"&$K$1&"'!$A$1:$A$550"), MATCH(A102,INDIRECT("'"&$K$1&"'!$B$1:$B$550"),0)))) -> Not Found | H102: =IF(ISNA(VLOOKUP(E102,INDIRECT("'"&$K$1&"'!$A$1:$H$550"),8,FALSE)), "Not Found", VLOOKUP(E102,INDIRECT("'"&$K$1&"'!$A$1:$H$550"),8,FALSE)) -> Not Found | I102: =IF(ISNA(VLOOKUP(E102,INDIRECT("'"&$K$1&"'!$A$1:$H$550"),5,FALSE)), "0", VLOOKUP(E102,INDIRECT("'"&$K$1&"'!$A$1:$H$550"),5,FALSE)) -> 0
A103: SCL-1 | D103: 1 | E103: Not Found | H103: Not Found | I103: 0
A104: SC-2 | D104: 3 | E104: Not Found | H104: Not Found | I104: 0
A105: SCL-2 | D105: 1 | E105: Not Found | H105: Not Found | I105: 0
A106: STEM
A107: STEM | D107: 3 | E107: =IF(ISNA(INDEX(INDIRECT("'"&$K$1&"'!$A$1:$A$550"), MATCH(A107,INDIRECT("'"&$K$1&"'!$B$1:$B$550"),0))), "Not Found", (INDEX(INDIRECT("'"&$K$1&"'!$A$1:$A$550"), MATCH(A107,INDIRECT("'"&$K$1&"'!$B$1:$B$550"),0)))) -> Not Found | H107: =IF(ISNA(VLOOKUP(E107,INDIRECT("'"&$K$1&"'!$A$1:$H$550"),8,FALSE)), "Not Found", VLOOKUP(E107,INDIRECT("'"&$K$1&"'!$A$1:$H$550"),8,FALSE)) -> Not Found | I107: =IF(ISNA(VLOOKUP(E107,INDIRECT("'"&$K$1&"'!$A$1:$H$550"),5,FALSE)), "0", VLOOKUP(E107,INDIRECT("'"&$K$1&"'!$A$1:$H$550"),5,FALSE)) -> 0
A109: Diversity & Ethics ELOs
A110: Diversity & Cultural Awareness (DV)
A111: DV | D111: 3 | E111: =IF(ISNA(INDEX(INDIRECT("'"&$K$1&"'!$A$1:$A$550"), MATCH("*"&A111&"*",INDIRECT("'"&$K$1&"'!$B$1:$B$550"),0))), "Not Found", (INDEX(INDIRECT("'"&$K$1&"'!$A$1:$A$550"), MATCH("*"&A111&"*",INDIRECT("'"&$K$1&"'!$B$1:$B$550"),0)))) -> Not Found | H111: =IF(ISNA(VLOOKUP(E111,INDIRECT("'"&$K$1&"'!$A$1:$H$550"),8,FALSE)), "Not Found", VLOOKUP(E111,INDIRECT("'"&$K$1&"'!$A$1:$H$550"),8,FALSE)) -> Not Found | I111: =IF(ISNA(VLOOKUP(E111,INDIRECT("'"&$K$1&"'!$A$1:$H$550"),5,FALSE)), "0", VLOOKUP(E111,INDIRECT("'"&$K$1&"'!$A$1:$H$550"),5,FALSE)) -> 0
A112: Social Responsibility & Ethics (ET)
A113: ET | D113: 3 | E113: =IF(ISNA(INDEX(INDIRECT("'"&$K$1&"'!$A$1:$A$550"), MATCH("*"&A113&"*",INDIRECT("'"&$K$1&"'!$B$1:$B$550"),0))), "Not Found", (INDEX(INDIRECT("'"&$K$1&"'!$A$1:$A$550"), MATCH("*"&A113&"*",INDIRECT("'"&$K$1&"'!$B$1:$B$550"),0)))) -> Not Found | H113: =IF(ISNA(VLOOKUP(E113,INDIRECT("'"&$K$1&"'!$A$1:$H$550"),8,FALSE)), "Not Found", VLOOKUP(E113,INDIRECT("'"&$K$1&"'!$A$1:$H$550"),8,FALSE)) -> Not Found | I113: =IF(ISNA(VLOOKUP(E113,INDIRECT("'"&$K$1&"'!$A$1:$H$550"),5,FALSE)), "0", VLOOKUP(E113,INDIRECT("'"&$K$1&"'!$A$1:$H$550"),5,FALSE)) -> 0
A115: Degree Credits | I115: Projected Degree Credits
D116: =SUM(D1:D23, D31:D60,D76,D89,D90,D94:D100) -> 120 | I116: =SUM(I1:I23, I31:I60,I76,I89,I90,I94:I100) -> 0

Sheet Graduation_Plan-Biocheminfo
A1: Computer Science Graduation Plan
A2: Student Name | C2: Last Name, First Name
A3: University Id (not ss#)
A4: Email
A5: Primary Major (Option) | C5: Computer Science (Bio-cheminfomatics)
A6: Second Major:
A7: Third Major:
A8: Minors(s):
A9: Special Program(s):
A10: Scholarships:
A12: Matriculation Date (Month/Year) | E12: Sept. 2016
A13: Expected Graduation Date (Month/Year) | E13: June 2020
A15: Minimum Number of Credits Required for Degree(s) | E15: 120
A17: Transfer and AP Credits
A19: Course | B19: Req. | C19: Req. | D19: Course Title | E19: Credits | F19: Grade | G19: Degree Credits | H19: SemesterYear
H20: Transfer/AP
H21: Transfer/AP
H22: Transfer/AP
H23: Transfer/AP
H24: Transfer/AP
H25: Transfer/AP
H26: Transfer/AP
H27: Transfer/AP
H28: Transfer/AP
H29: Transfer/AP
H30: Transfer/AP
H31: Transfer/AP
H32: Transfer/AP
H33: Transfer/AP
H34: Transfer/AP
H35: Transfer/AP
H36: Transfer/AP
H37: Transfer/AP
H38: Transfer/AP
H39: Transfer/AP
H40: Transfer/AP
H41: Transfer/AP
H42: Transfer/AP
H43: Transfer/AP
H44: Transfer/AP
H45: Transfer/AP
H46: Transfer/AP
H47: Transfer/AP
H48: Transfer/AP
H49: Transfer/AP
H50: Transfer/AP
H51: Transfer/AP
H52: Transfer/AP
H53: Transfer/AP
H54: Transfer/AP
H55: Transfer/AP
H56: Transfer/AP
H57: Transfer/AP
H58: Transfer/AP
H59: Transfer/AP
H60: Transfer/AP
H61: Transfer/AP
H62: Transfer/AP
H63: Transfer/AP
H64: Transfer/AP
H65: Transfer/AP
H66: Transfer/AP
H67: Transfer/AP
H68: Transfer/AP
H69: Transfer/AP
D70: Transfer and AP Credits | E70: =SUM(E20:E69) -> 0 | G70: =SUM(G20:G69) -> 0
D71: Total Credits Earned | E71: =E70 -> 0 | G71: =E15-G70 -> 120
A73: Year 1
A74: Fall | B74: 2015 | C74: =C2 -> Last Name, First Name
A75: Course | B75: =B19 -> Req. | C75: =C19 -> Req. | D75: Course Title | E75: Credits | F75: Grade | G75: Degree Credits | H75: SemesterYear
H76: =$A$74&$B$74 -> Fall2015
H77: =$A$74&$B$74 -> Fall2015
H78: Fall2015
H79: Fall2015
H80: Fall2015
H81: Fall2015
H82: Fall2015
H83: Fall2015
H84: Fall2015
H85: Fall2015
D86: Semester Credits Earned | E86: =SUM(E76:E85) -> 0 | G86: =SUM(G76:G85) -> 0
D87: =D71 -> Total Credits Earned | E87: =E71+E86 -> 0 | G87: =G71-G86 -> 120
A89: Winter | B89: =B74+1 -> 2016 | C89: =C2 -> Last Name, First Name
A90: Course | B90: =B19 -> Req. | D90: Course Title | E90: Credits | F90: Grade | G90: Degree Credits | H90: SemesterYear
H91: =$A$89&$B$89 -> Winter2016
H92: =$A$89&$B$89 -> Winter2016
H93: Winter2016
D94: =D86 -> Semester Credits Earned | E94: =SUM(E91:E93) -> 0 | G94: =SUM(G91:G93) -> 0
D95: =D71 -> Total Credits Earned | E95: =E87+E94 -> 0 | G95: =G87-G94 -> 120
A97: Spring | B97: =B74+1 -> 2016 | C97: =C2 -> Last Name, First Name
A98: Course | B98: =B19 -> Req. | C98: =C19 -> Req. | D98: Course Title | E98: Credits | F98: Grade | G98: Degree Credits | H98: SemesterYear
H99: =$A$97&$B$97 -> Spring2016
H100: =$A$97&$B$97 -> Spring2016
H101: Spring2016
H102: Spring2016
H103: Spring2016
H104: Spring2016
H105: Spring2016
H106: Spring2016
H107: Spring2016
H108: Spring2016
D109: =D86 -> Semester Credits Earned | E109: =SUM(E99:E108) -> 0 | G109: =SUM(G99:G108) -> 0
D110: =D71 -> Total Credits Earned | E110: =E95+E109 -> 0 | G110: =G95-G109 -> 120
A112: Summer | B112: =B74+1 -> 2016 | C112: =C2 -> Last Name, First Name
A113: Course | B113: =B19 -> Req. | C113: =C19 -> Req. | D113: Course Title | E113: Credits | F113: Grade | G113: Degree Credits | H113: SemesterYear
H114: =$A$112&$B$112 -> Summer2016
H115: =$A$112&$B$112 -> Summer2016
H116: Summer2016
H117: Summer2016
H118: Summer2016
H119: Summer2016
D120: =D86 -> Semester Credits Earned | E120: =SUM(E114:E119) -> 0 | G120: =SUM(G114:G119) -> 0
D121: =D71 -> Total Credits Earned | E121: =E110+E120 -> 0 | G121: =G110-G120 -> 120
A123: Year 2
A124: Fall | B124: =B74+1 -> 2016 | C124: =C2 -> Last Name, First Name
A125: Course | B125: =B19 -> Req. | C125: =C19 -> Req. | D125: Course Title | E125: Credits | F125: Grade | G125: Degree Credits | H125: SemesterYear
H126: =$A$124&$B$124 -> Fall2016
H127: =$A$124&$B$124 -> Fall2016
H128: Fall2016
H129: Fall2016
H130: Fall2016
H131: Fall2016
H132: Fall2016
H133: Fall2016
H134: Fall2016
H135: Fall2016
D136: =D86 -> Semester Credits Earned | E136: =SUM(E126:E135) -> 0 | G136: =SUM(G126:G135) -> 0
D137: =D71 -> Total Credits Earned | E137: =E121+E136 -> 0 | G137: =G121-G136 -> 120
A139: Winter | B139: =B74+2 -> 2017 | C139: =C2 -> Last Name, First Name
A140: Course | B140: =B19 -> Req. | C140: =C19 -> Req. | D140: Course Title | E140: Credits | F140: Grade | G140: Degree Credits | H140: SemesterYear
H141: =$A$139&$B$139 -> Winter2017
H142: =$A$139&$B$139 -> Winter2017
H143: Winter2017
D144: =D86 -> Semester Credits Earned | E144: =SUM(E141:E143) -> 0 | G144: =SUM(G141:G143) -> 0
D145: =D71 -> Total Credits Earned | E145: =E137+E144 -> 0 | G145: =G137-G144 -> 120
A147: Spring | B147: =B89+1 -> 2017 | C147: =C2 -> Last Name, First Name
A148: Course | B148: =B19 -> Req. | C148: =C19 -> Req. | D148: Course Title | E148: Credits | F148: Grade | G148: Degree Credits | H148: SemesterYear
H149: =$A$147&$B$147 -> Spring2017
H150: =$A$147&$B$147 -> Spring2017
H151: Spring2017
H152: Spring2017
H153: Spring2017
H154: Spring2017
H155: Spring2017
H156: Spring2017
H157: Spring2017
H158: Spring2017
D159: =D86 -> Semester Credits Earned | E159: =SUM(E149:E158) -> 0 | G159: =SUM(G149:G158) -> 0
D160: =D71 -> Total Credits Earned | E160: =E145+E159 -> 0 | G160: =G145-G159 -> 120
A162: Summer | B162: =B74+2 -> 2017 | C162: =C2 -> Last Name, First Name
A163: Course | B163: =B19 -> Req. | C163: =C19 -> Req. | D163: Course Title | E163: Credits | F163: Grade | G163: Degree Credits | H163: SemesterYear
H164: =$A$162&$B$162 -> Summer2017
H165: =$A$162&$B$162 -> Summer2017
H166: Summer2017
H167: Summer2017
H168: Summer2017
H169: Summer2017
D170: =D86 -> Semester Credits Earned | E170: =SUM(E164:E169) -> 0 | G170: =SUM(G163:G169) -> 0
D171: =D71 -> Total Credits Earned | E171: =E160+E170 -> 0 | G171: =G160-G170 -> 120
A173: Year 3
A174: Fall | B174: =B74+2 -> 2017 | C174: =C2 -> Last Name, First Name
A175: Course | B175: =B19 -> Req. | C175: =C19 -> Req. | D175: Course Title | E175: Credits | F175: Grade | G175: Degree Credits | H175: SemesterYear
H176: =$A$174&$B$174 -> Fall2017
H177: =$A$174&$B$174 -> Fall2017
H178: Fall2017
H179: Fall2017
H180: Fall2017
H181: Fall2017
H182: Fall2017
H183: Fall2017
H184: Fall2017
H185: Fall2017
D186: =D86 -> Semester Credits Earned | E186: =SUM(E176:E185) -> 0 | G186: =SUM(G176:G185) -> 0
D187: =D71 -> Total Credits Earned | E187: =E171+E186 -> 0 | G187: =G171-G186 -> 120
A189: Winter | B189: =B74+3 -> 2018 | C189: =C2 -> Last Name, First Name
A190: Course | B190: =B19 -> Req. | C190: =C19 -> Req. | D190: Course Title | E190: Credits | F190: Grade | G190: Degree Credits | H190: SemesterYear
H191: =$A$189&$B$189 -> Winter2018
H192: =$A$189&$B$189 -> Winter2018
H193: Winter2018
D194: =D86 -> Semester Credits Earned | E194: =SUM(E191:E193) -> 0 | G194: =SUM(G191:G193) -> 0 | H194: =SUM(H191:H193) -> 0
D195: =D71 -> Total Credits Earned | E195: =E187+E194 -> 0 | G195: =G187-G194 -> 120
A197: Spring | B197: =B74+3 -> 2018 | C197: =C2 -> Last Name, First Name
A198: Course | B198: =B19 -> Req. | C198: =C19 -> Req. | D198: Course Title | E198: Credits | F198: Grade | G198: Degree Credits | H198: SemesterYear
H199: =$A$197&$B$197 -> Spring2018
H200: =$A$197&$B$197 -> Spring2018
H201: Spring2018
H202: Spring2018
H203: Spring2018
H204: Spring2018
H205: Spring2018
H206: Spring2018
H207: Spring2018
H208: Spring2018
D209: =D86 -> Semester Credits Earned | E209: =SUM(E199:E208) -> 0 | G209: =SUM(G199:G208) -> 0
D210: =D71 -> Total Credits Earned | E210: =E195+E209 -> 0 | G210: =G195-G209 -> 120
A212: Summer | B212: =B74+3 -> 2018 | C212: =C2 -> Last Name, First Name
A213: Course | B213: =B19 -> Req. | C213: =C19 -> Req. | D213: Course Title | E213: Credits | F213: Grade | G213: Degree Credits | H213: SemesterYear
H214: =$A$212&$B$212 -> Summer2018
H215: =$A$212&$B$212 -> Summer2018
H216: Summer2018
... 150 more rows

Sheet Checklist Bio-cheminformatics
A1: Checklist -Bio/Cheminformatics | K1: Graduation_Plan | L1: Required Bio/Cheminformatics Electives
A2: Requirement | D2: Credits | E2: Taken | H2: Semester | I2: Credits | L2: List courses you are interested in possibly taking. (NOTE: This is not required.)
A3: Required Computer Science Courses | L3: Course | M3: Title
A4: COMP.1010 | B4: or | C4: 91.101 | D4: 3 | E4: COMP.1010 | F4: or | G4: 91.101 | H4: =IF(AND(ISNA(VLOOKUP(E4,INDIRECT("'"&$K$1&"'!$A$1:$H$550"),8,FALSE)), ISNA(VLOOKUP(G4,INDIRECT("'"&$K$1&"'!$A$1:$H$550"),8,FALSE))), "Not Found", (IF(ISNA(VLOOKUP(E4,INDIRECT("'"&$K$1&"'!$A$1:$H$550"),8,FALSE)), VLOOKUP(G4,INDIRECT("'"&$K$1&"'!$A$1:$H$550"),8,FALSE), VLOOKUP(E4,INDIRECT("'"&$K$1&"'!$A$1:$H$550"),8,FALSE)))) -> Not Found | I4: =IF(AND(ISNA(VLOOKUP(E4,INDIRECT("'"&$K$1&"'!$A$1:$H$550"),5,FALSE)), ISNA(VLOOKUP(G4,INDIRECT("'"&$K$1&"'!$A$1:$H$550"),5,FALSE))), "0", (IF(ISNA(VLOOKUP(E4,INDIRECT("'"&$K$1&"'!$A$1:$H$550"),5,FALSE)), VLOOKUP(G4,INDIRECT("'"&$K$1&"'!$A$1:$H$550"),5,FALSE), VLOOKUP(E4,INDIRECT("'"&$K$1&"'!$A$1:$H$550"),5,FALSE)))) -> 0
A5: COMP.1030L | B5: or | C5: 91.103 | D5: 1 | E5: COMP.1030L | F5: or | G5: 91.103 | H5: =IF(AND(ISNA(VLOOKUP(E5,INDIRECT("'"&$K$1&"'!$A$1:$H$550"),8,FALSE)), ISNA(VLOOKUP(G5,INDIRECT("'"&$K$1&"'!$A$1:$H$550"),8,FALSE))), "Not Found", (IF(ISNA(VLOOKUP(E5,INDIRECT("'"&$K$1&"'!$A$1:$H$550"),8,FALSE)), VLOOKUP(G5,INDIRECT("'"&$K$1&"'!$A$1:$H$550"),8,FALSE), VLOOKUP(E5,INDIRECT("'"&$K$1&"'!$A$1:$H$550"),8,FALSE)))) -> Not Found | I5: =IF(AND(ISNA(VLOOKUP(E5,INDIRECT("'"&$K$1&"'!$A$1:$H$550"),5,FALSE)), ISNA(VLOOKUP(G5,INDIRECT("'"&$K$1&"'!$A$1:$H$550"),5,FALSE))), "0", (IF(ISNA(VLOOKUP(E5,INDIRECT("'"&$K$1&"'!$A$1:$H$550"),5,FALSE)), VLOOKUP(G5,INDIRECT("'"&$K$1&"'!$A$1:$H$550"),5,FALSE), VLOOKUP(E5,INDIRECT("'"&$K$1&"'!$A$1:$H$550"),5,FALSE)))) -> 0
A6: COMP.1020 | B6: or | C6: 91.102 | D6: 3 | E6: COMP.1020 | F6: or | G6: 91.102 | H6: Not Found | I6: 0
A7: COMP.1040L | B7: or | C7: 91.104 | D7: 1 | E7: COMP.1040L | F7: or | G7: 91.104 | H7: Not Found | I7: 0
A8: COMP.2010 | B8: or | C8: 91.201 | D8: 3 | E8: COMP.2010 | F8: or | G8: 91.201 | H8: Not Found | I8: 0
A9: COMP.2010L | D9: 1 | E9: COMP.2010L | H9: =IF(AND(ISNA(VLOOKUP(E9,INDIRECT("'"&$K$1&"'!$A$1:$H$550"),8,FALSE)), ISNA(VLOOKUP(G9,INDIRECT("'"&$K$1&"'!$A$1:$H$550"),8,FALSE))), "Not Found", (IF(ISNA(VLOOKUP(E9,INDIRECT("'"&$K$1&"'!$A$1:$H$550"),8,FALSE)), VLOOKUP(G9,INDIRECT("'"&$K$1&"'!$A$1:$H$550"),8,FALSE), VLOOKUP(E9,INDIRECT("'"&$K$1&"'!$A$1:$H$550"),8,FALSE)))) -> Not Found | I9: =IF(AND(ISNA(VLOOKUP(E9,INDIRECT("'"&$K$1&"'!$A$1:$H$550"),5,FALSE)), ISNA(VLOOKUP(G9,INDIRECT("'"&$K$1&"'!$A$1:$H$550"),5,FALSE))), "0", (IF(ISNA(VLOOKUP(E9,INDIRECT("'"&$K$1&"'!$A$1:$H$550"),5,FALSE)), VLOOKUP(G9,INDIRECT("'"&$K$1&"'!$A$1:$H$550"),5,FALSE), VLOOKUP(E9,INDIRECT("'"&$K$1&"'!$A$1:$H$550"),5,FALSE)))) -> 0
A10: COMP.2030 | B10: or | C10: 91.203 | D10: 3 | E10: COMP.2030 | F10: or | G10: 91.203 | H10: Not Found | I10: 0
A11: COMP.2030L | D11: 1 | E11: COMP.2030L | H11: =IF(AND(ISNA(VLOOKUP(E11,INDIRECT("'"&$K$1&"'!$A$1:$H$550"),8,FALSE)), ISNA(VLOOKUP(G11,INDIRECT("'"&$K$1&"'!$A$1:$H$550"),8,FALSE))), "Not Found", (IF(ISNA(VLOOKUP(E11,INDIRECT("'"&$K$1&"'!$A$1:$H$550"),8,FALSE)), VLOOKUP(G11,INDIRECT("'"&$K$1&"'!$A$1:$H$550"),8,FALSE), VLOOKUP(E11,INDIRECT("'"&$K$1&"'!$A$1:$H$550"),8,FALSE)))) -> Not Found | I11: =IF(AND(ISNA(VLOOKUP(E11,INDIRECT("'"&$K$1&"'!$A$1:$H$550"),5,FALSE)), ISNA(VLOOKUP(G11,INDIRECT("'"&$K$1&"'!$A$1:$H$550"),5,FALSE))), "0", (IF(ISNA(VLOOKUP(E11,INDIRECT("'"&$K$1&"'!$A$1:$H$550"),5,FALSE)), VLOOKUP(G11,INDIRECT("'"&$K$1&"'!$A$1:$H$550"),5,FALSE), VLOOKUP(E11,INDIRECT("'"&$K$1&"'!$A$1:$H$550"),5,FALSE)))) -> 0
A12: COMP.2040 | B12: or | C12: 91.204 | D12: 3 | E12: COMP.2040 | F12: or | G12: 91.204 | H12: Not Found | I12: 0
A13: COMP.3010 | B13: or | C13: 91.301 | D13: 3 | E13: COMP.3010 | F13: or | G13: 91.301 | H13: Not Found | I13: 0
A14: COMP.3040 | B14: or | C14: 91.304 | D14: 3 | E14: COMP.3040 | F14: or | G14: 91.304 | H14: Not Found | I14: 0
A15: COMP.3050 | B15: or | C15: 91.305 | D15: 3 | E15: COMP.3050 | F15: or | G15: 91.305 | H15: Not Found | I15: 0
A16: COMP.3080 | B16: or | C16: 91.308 | D16: 3 | E16: COMP.3080 | F16: or | G16: 91.308 | H16: Not Found | I16: 0
A17: COMP.4040 | B17: or | C17: 91.404 | D17: 3 | E17: COMP.4040 | F17: or | G17: 91.404 | H17: Not Found | I17: 0
A18: Req. Bio/Cheminformatics Electives (BCIE)
A19: BCIE-1 | D19: 3 | E19: =IF(ISNA(INDEX(INDIRECT("'"&$K$1&"'!$A$1:$A$550"), MATCH(A19,INDIRECT("'"&$K$1&"'!$B$1:$B$550"),0))), "Not Found", (INDEX(INDIRECT("'"&$K$1&"'!$A$1:$A$550"), MATCH(A19,INDIRECT("'"&$K$1&"'!$B$1:$B$550"),0)))) -> Not Found | H19: =IF(ISNA(VLOOKUP(E19,INDIRECT("'"&$K$1&"'!$A$1:$H$550"),8,FALSE)), "Not Found", VLOOKUP(E19,INDIRECT("'"&$K$1&"'!$A$1:$H$550"),8,FALSE)) -> Not Found | I19: =IF(ISNA(VLOOKUP(E19,INDIRECT("'"&$K$1&"'!$A$1:$H$550"),5,FALSE)), "0", VLOOKUP(E19,INDIRECT("'"&$K$1&"'!$A$1:$H$550"),5,FALSE)) -> 0
A20: BCIE-2 | D20: 3 | E20: =IF(ISNA(INDEX(INDIRECT("'"&$K$1&"'!$A$1:$A$550"), MATCH(A20,INDIRECT("'"&$K$1&"'!$B$1:$B$550"),0))), "Not Found", (INDEX(INDIRECT("'"&$K$1&"'!$A$1:$A$550"), MATCH(A20,INDIRECT("'"&$K$1&"'!$B$1:$B$550"),0)))) -> Not Found | H20: Not Found | I20: 0
A21: BCIE-3 | D21: 3 | E21: =IF(ISNA(INDEX(INDIRECT("'"&$K$1&"'!$A$1:$A$550"), MATCH(A21,INDIRECT("'"&$K$1&"'!$B$1:$B$550"),0))), "Not Found", (INDEX(INDIRECT("'"&$K$1&"'!$A$1:$A$550"), MATCH(A21,INDIRECT("'"&$K$1&"'!$B$1:$B$550"),0)))) -> Not Found | H21: Not Found | I21: 0
A22: CS Project Course
A23: Sr.Prj-1 | D23: 3 | E23: =IF(ISNA(INDEX(INDIRECT("'"&$K$1&"'!$A$1:$A$550"), MATCH(A23,INDIRECT("'"&$K$1&"'!$B$1:$B$550"),0))), "Not Found", (INDEX(INDIRECT("'"&$K$1&"'!$A$1:$A$550"), MATCH(A23,INDIRECT("'"&$K$1&"'!$B$1:$B$550"),0)))) -> Not Found | H23: Not Found | I23: 0
A24: Sr.Prj-2 | D24: 3 | E24: =IF(ISNA(INDEX(INDIRECT("'"&$K$1&"'!$A$1:$A$550"), MATCH(A24,INDIRECT("'"&$K$1&"'!$B$1:$B$550"),0))), "Not Found", (INDEX(INDIRECT("'"&$K$1&"'!$A$1:$A$550"), MATCH(A24,INDIRECT("'"&$K$1&"'!$B$1:$B$550"),0)))) -> Not Found | H24: Not Found | I24: 0
A26: Required Supporting Technical Courses
A27: Requirement | D27: Credits | E27: Taken | H27: Semester | I27: Credits
A28: Electrical Engineering
A29: EECE.2650 | B29: or | C29: 16.265 | D29: 3 | E29: EECE.2650 | F29: or | G29: 16.265 | H29: =IF(AND(ISNA(VLOOKUP(E29,INDIRECT("'"&$K$1&"'!$A$1:$H$550"),8,FALSE)), ISNA(VLOOKUP(G29,INDIRECT("'"&$K$1&"'!$A$1:$H$550"),8,FALSE))), "Not Found", (IF(ISNA(VLOOKUP(E29,INDIRECT("'"&$K$1&"'!$A$1:$H$550"),8,FALSE)), VLOOKUP(G29,INDIRECT("'"&$K$1&"'!$A$1:$H$550"),8,FALSE), VLOOKUP(E29,INDIRECT("'"&$K$1&"'!$A$1:$H$550"),8,FALSE)))) -> Not Found | I29: =IF(AND(ISNA(VLOOKUP(E29,INDIRECT("'"&$K$1&"'!$A$1:$H$550"),5,FALSE)), ISNA(VLOOKUP(G29,INDIRECT("'"&$K$1&"'!$A$1:$H$550"),5,FALSE))), "0", (IF(ISNA(VLOOKUP(E29,INDIRECT("'"&$K$1&"'!$A$1:$H$550"),5,FALSE)), VLOOKUP(G29,INDIRECT("'"&$K$1&"'!$A$1:$H$550"),5,FALSE), VLOOKUP(E29,INDIRECT("'"&$K$1&"'!$A$1:$H$550"),5,FALSE)))) -> 0
A30: Mathematics
A31: MATH.1310 | B31: or | C31: 92.131 | D31: 4 | E31: MATH.1310 | F31: or | G31: 92.131 | H31: =IF(AND(ISNA(VLOOKUP(E31,INDIRECT("'"&$K$1&"'!$A$1:$H$550"),8,FALSE)), ISNA(VLOOKUP(G31,INDIRECT("'"&$K$1&"'!$A$1:$H$550"),8,FALSE))), "Not Found", (IF(ISNA(VLOOKUP(E31,INDIRECT("'"&$K$1&"'!$A$1:$H$550"),8,FALSE)), VLOOKUP(G31,INDIRECT("'"&$K$1&"'!$A$1:$H$550"),8,FALSE), VLOOKUP(E31,INDIRECT("'"&$K$1&"'!$A$1:$H$550"),8,FALSE)))) -> Not Found | I31: =IF(AND(ISNA(VLOOKUP(E31,INDIRECT("'"&$K$1&"'!$A$1:$H$550"),5,FALSE)), ISNA(VLOOKUP(G31,INDIRECT("'"&$K$1&"'!$A$1:$H$550"),5,FALSE))), "0", (IF(ISNA(VLOOKUP(E31,INDIRECT("'"&$K$1&"'!$A$1:$H$550"),5,FALSE)), VLOOKUP(G31,INDIRECT("'"&$K$1&"'!$A$1:$H$550"),5,FALSE), VLOOKUP(E31,INDIRECT("'"&$K$1&"'!$A$1:$H$550"),5,FALSE)))) -> 0
A32: MATH.1320 | B32: or | C32: 92.132 | D32: 4 | E32: MATH.1320 | F32: or | G32: 92.132 | H32: Not Found | I32: 0
A33: MATH.3210 | B33: or | C33: 92.321 | D33: 3 | E33: MATH.3210 | F33: or | G33: 92.321 | H33: Not Found | I33: 0
A34: MATH.3220 | B34: or | C34: 92.322 | D34: 3 | E34: MATH.3220 | F34: or | G34: 92.322 | H34: Not Found | I34: 0
A35: MATH.3860 | B35: or | C35: 92.386 | D35: 3 | E35: MATH.3860 | F35: or | G35: 92.386 | H35: Not Found | I35: 0
A36: Biology
A37: BIOL.1110 | B37: or | C37: 81.111 | D37: 3 | E37: BIOL.1110 | F37: or | G37: 81.111 | H37: =IF(AND(ISNA(VLOOKUP(E37,INDIRECT("'"&$K$1&"'!$A$1:$H$550"),8,FALSE)), ISNA(VLOOKUP(G37,INDIRECT("'"&$K$1&"'!$A$1:$H$550"),8,FALSE))), "Not Found", (IF(ISNA(VLOOKUP(E37,INDIRECT("'"&$K$1&"'!$A$1:$H$550"),8,FALSE)), VLOOKUP(G37,INDIRECT("'"&$K$1&"'!$A$1:$H$550"),8,FALSE), VLOOKUP(E37,INDIRECT("'"&$K$1&"'!$A$1:$H$550"),8,FALSE)))) -> Not Found | I37: =IF(AND(ISNA(VLOOKUP(E37,INDIRECT("'"&$K$1&"'!$A$1:$H$550"),5,FALSE)), ISNA(VLOOKUP(G37,INDIRECT("'"&$K$1&"'!$A$1:$H$550"),5,FALSE))), "0", (IF(ISNA(VLOOKUP(E37,INDIRECT("'"&$K$1&"'!$A$1:$H$550"),5,FALSE)), VLOOKUP(G37,INDIRECT("'"&$K$1&"'!$A$1:$H$550"),5,FALSE), VLOOKUP(E37,INDIRECT("'"&$K$1&"'!$A$1:$H$550"),5,FALSE)))) -> 0
A38: BIOL.1170L | B38: or | C38: 81.117 | D38: 1 | E38: BIOL.1170L | F38: or | G38: 81.117 | H38: Not Found | I38: 0
A39: BIOL.2350 | B39: or | C39: 81.235 | D39: 3 | E39: BIOL.2350 | F39: or | G39: 81.235 | H39: Not Found | I39: 0
A40: BIOL.2370 | B40: or | C40: 81.237 | D40: 1 | E40: BIOL.2370 | F40: or | G40: 81.237 | H40: Not Found | I40: 0
A41: Chemistry
A42: CHEM.1210 | B42: or | C42: 84.121 | D42: 3 | E42: CHEM.1210 | F42: or | G42: 84.121 | H42: =IF(AND(ISNA(VLOOKUP(E42,INDIRECT("'"&$K$1&"'!$A$1:$H$550"),8,FALSE)), ISNA(VLOOKUP(G42,INDIRECT("'"&$K$1&"'!$A$1:$H$550"),8,FALSE))), "Not Found", (IF(ISNA(VLOOKUP(E42,INDIRECT("'"&$K$1&"'!$A$1:$H$550"),8,FALSE)), VLOOKUP(G42,INDIRECT("'"&$K$1&"'!$A$1:$H$550"),8,FALSE), VLOOKUP(E42,INDIRECT("'"&$K$1&"'!$A$1:$H$550"),8,FALSE)))) -> Not Found | I42: =IF(AND(ISNA(VLOOKUP(E42,INDIRECT("'"&$K$1&"'!$A$1:$H$550"),5,FALSE)), ISNA(VLOOKUP(G42,INDIRECT("'"&$K$1&"'!$A$1:$H$550"),5,FALSE))), "0", (IF(ISNA(VLOOKUP(E42,INDIRECT("'"&$K$1&"'!$A$1:$H$550"),5,FALSE)), VLOOKUP(G42,INDIRECT("'"&$K$1&"'!$A$1:$H$550"),5,FALSE), VLOOKUP(E42,INDIRECT("'"&$K$1&"'!$A$1:$H$550"),5,FALSE)))) -> 0
A43: CHEM.1230L | B43: or | C43: 84.123 | D43: 1 | E43: CHEM.1230L | F43: or | G43: 84.123 | H43: Not Found | I43: 0
A44: CHEM.1220 | B44: or | C44: 84.122 | D44: 3 | E44: CHEM.1220 | F44: or | G44: 84.122 | H44: Not Found | I44: 0
A45: CHEM.1240L | B45: or | C45: 84.124 | D45: 1 | E45: CHEM.1240L | F45: or | G45: 84.124 | H45: Not Found | I45: 0
A47: Free Electives (FE) | L47: Free Electives
A48: Requirement | D48: Credits | E48: Taken | H48: Semester | I48: Credits | L48: List free electives you are interested in taking. These cannot be below the level of a
A49: FE-1 | D49: 3 | E49: =IF(ISNA(INDEX(INDIRECT("'"&$K$1&"'!$A$1:$A$550"), MATCH("*"&A49&"*",INDIRECT("'"&$K$1&"'!$B$1:$B$550"),0))), "Not Found", (INDEX(INDIRECT("'"&$K$1&"'!$A$1:$A$550"), MATCH("*"&A49&"*",INDIRECT("'"&$K$1&"'!$B$1:$B$550"),0)))) -> Not Found | H49: =IF(ISNA(VLOOKUP(E49,INDIRECT("'"&$K$1&"'!$A$1:$H$550"),8,FALSE)), "Not Found", VLOOKUP(E49,INDIRECT("'"&$K$1&"'!$A$1:$H$550"),8,FALSE)) -> Not Found | I49: =IF(ISNA(VLOOKUP(E49,INDIRECT("'"&$K$1&"'!$A$1:$H$550"),5,FALSE)), "0", VLOOKUP(E49,INDIRECT("'"&$K$1&"'!$A$1:$H$550"),5,FALSE)) -> 0 | L49: required course. Specific courses may be recommended for different CS tracks.
A50: FE-2 | D50: 3 | E50: Not Found | H50: Not Found | I50: 0
A51: FE-3 | D51: 3 | E51: Not Found | H51: Not Found | I51: 0
A52: FE-4 | D52: 3 | E52: Not Found | H52: Not Found | I52: 0
A53: Not Req. | D53: n/a | E53: Not Found | H53: Not Found | I53: 0
A54: Not Req. | D54: n/a | E54: Not Found | H54: Not Found | I54: 0
A56: Required FE Credits | H56: Projected Credits
D57: =121-SUM(D4:D45,D70,D71,D75:D81) -> 12 | I57: =SUM(I49:I55) -> 0
A59: Oral & Written Communication
A60: Requirement | D60: Credits | E60: Taken | H60: Semester | I60: Credits
A61: ENGL.2200 | B61: or | C61: 42.220 | D61: 3 | E61: ENGL.2200 | F61: or | G61: 42.220 | H61: =IF(AND(ISNA(VLOOKUP(E61,INDIRECT("'"&$K$1&"'!$A$1:$H$550"),8,FALSE)), ISNA(VLOOKUP(G61,INDIRECT("'"&$K$1&"'!$A$1:$H$550"),8,FALSE))), "Not Found", (IF(ISNA(VLOOKUP(E61,INDIRECT("'"&$K$1&"'!$A$1:$H$550"),8,FALSE)), VLOOKUP(G61,INDIRECT("'"&$K$1&"'!$A$1:$H$550"),8,FALSE), VLOOKUP(E61,INDIRECT("'"&$K$1&"'!$A$1:$H$550"),8,FALSE)))) -> Not Found | I61: =IF(AND(ISNA(VLOOKUP(E61,INDIRECT("'"&$K$1&"'!$A$1:$H$550"),5,FALSE)), ISNA(VLOOKUP(G61,INDIRECT("'"&$K$1&"'!$A$1:$H$550"),5,FALSE))), "0", (IF(ISNA(VLOOKUP(E61,INDIRECT("'"&$K$1&"'!$A$1:$H$550"),5,FALSE)), VLOOKUP(G61,INDIRECT("'"&$K$1&"'!$A$1:$H$550"),5,FALSE), VLOOKUP(E61,INDIRECT("'"&$K$1&"'!$A$1:$H$550"),5,FALSE)))) -> 0
A63: CS Ethics Requirement
A64: Requirement | D64: Credits | E64: Taken | H64: Semester | I64: Credits
A65: CSET | D65: 3 | E65: =IF(ISNA(INDEX(INDIRECT("'"&$K$1&"'!$A$1:$A$550"), MATCH(A65,INDIRECT("'"&$K$1&"'!$C$1:$C$550"),0))), "Not Found", (INDEX(INDIRECT("'"&$K$1&"'!$A$1:$A$550"), MATCH(A65,INDIRECT("'"&$K$1&"'!$C$1:$C$550"),0)))) -> Not Found | H65: =IF(ISNA(VLOOKUP(E65,INDIRECT("'"&$K$1&"'!$A$1:$H$550"),8,FALSE)), "Not Found", VLOOKUP(E65,INDIRECT("'"&$K$1&"'!$A$1:$H$550"),8,FALSE)) -> Not Found | I65: =IF(ISNA(VLOOKUP(E65,INDIRECT("'"&$K$1&"'!$A$1:$H$550"),5,FALSE)), "0", VLOOKUP(E65,INDIRECT("'"&$K$1&"'!$A$1:$H$550"),5,FALSE)) -> 0
A67: Breadth of Knowledge | L67: Breadth of Knowledge Requirements
A68: Requirement | D68: Credits | E68: Taken | H68: Semester | I68: Credits | L68: Select courses you are interested in taking to satisfy this Requirements.
A69: College Writing | L69: Area | M69: Title
A70: CW-1 | D70: 3 | E70: =IF(ISNA(INDEX(INDIRECT("'"&$K$1&"'!$A$1:$A$550"), MATCH(A70,INDIRECT("'"&$K$1&"'!$B$1:$B$550"),0))), "Not Found", (INDEX(INDIRECT("'"&$K$1&"'!$A$1:$A$550"), MATCH(A70,INDIRECT("'"&$K$1&"'!$B$1:$B$550"),0)))) -> Not Found | H70: =IF(ISNA(VLOOKUP(E70,INDIRECT("'"&$K$1&"'!$A$1:$H$550"),8,FALSE)), "Not Found", VLOOKUP(E70,INDIRECT("'"&$K$1&"'!$A$1:$H$550"),8,FALSE)) -> Not Found | I70: =IF(ISNA(VLOOKUP(E70,INDIRECT("'"&$K$1&"'!$A$1:$H$550"),5,FALSE)), "0", VLOOKUP(E70,INDIRECT("'"&$K$1&"'!$A$1:$H$550"),5,FALSE)) -> 0
A71: CW-2 | D71: 3 | E71: =IF(ISNA(INDEX(INDIRECT("'"&$K$1&"'!$A$1:$A$550"), MATCH(A71,INDIRECT("'"&$K$1&"'!$B$1:$B$550"),0))), "Not Found", (INDEX(INDIRECT("'"&$K$1&"'!$A$1:$A$550"), MATCH(A71,INDIRECT("'"&$K$1&"'!$B$1:$B$550"),0)))) -> Not Found | H71: Not Found | I71: 0
A72: Mathematics
A73: MA | D73: 4 | E73: =IF(ISNA(INDEX(INDIRECT("'"&$K$1&"'!$A$1:$A$550"), MATCH(A73,INDIRECT("'"&$K$1&"'!$B$1:$B$550"),0))), "Not Found", (INDEX(INDIRECT("'"&$K$1&"'!$A$1:$A$550"), MATCH(A73,INDIRECT("'"&$K$1&"'!$B$1:$B$550"),0)))) -> Not Found | H73: =IF(ISNA(VLOOKUP(E73,INDIRECT("'"&$K$1&"'!$A$1:$H$550"),8,FALSE)), "Not Found", VLOOKUP(E73,INDIRECT("'"&$K$1&"'!$A$1:$H$550"),8,FALSE)) -> Not Found | I73: =IF(ISNA(VLOOKUP(E73,INDIRECT("'"&$K$1&"'!$A$1:$H$550"),5,FALSE)), "0", VLOOKUP(E73,INDIRECT("'"&$K$1&"'!$A$1:$H$550"),5,FALSE)) -> 0
A74: Arts & Humanities
A75: AH-1 | D75: 3 | E75: =IF(ISNA(INDEX(INDIRECT("'"&$K$1&"'!$A$1:$A$550"), MATCH("*"&A75&"*",INDIRECT("'"&$K$1&"'!$B$1:$B$550"),0))), "Not Found", (INDEX(INDIRECT("'"&$K$1&"'!$A$1:$A$550"), MATCH("*"&A75&"*",INDIRECT("'"&$K$1&"'!$B$1:$B$550"),0)))) -> Not Found | H75: =IF(ISNA(VLOOKUP(E75,INDIRECT("'"&$K$1&"'!$A$1:$H$550"),8,FALSE)), "Not Found", VLOOKUP(E75,INDIRECT("'"&$K$1&"'!$A$1:$H$550"),8,FALSE)) -> Not Found | I75: =IF(ISNA(VLOOKUP(E75,INDIRECT("'"&$K$1&"'!$A$1:$H$550"),5,FALSE)), "0", VLOOKUP(E75,INDIRECT("'"&$K$1&"'!$A$1:$H$550"),5,FALSE)) -> 0
A76: AH-2 | D76: 3 | E76: =IF(ISNA(INDEX(INDIRECT("'"&$K$1&"'!$A$1:$A$550"), MATCH("*"&A76&"*",INDIRECT("'"&$K$1&"'!$B$1:$B$550"),0))), "Not Found", (INDEX(INDIRECT("'"&$K$1&"'!$A$1:$A$550"), MATCH("*"&A76&"*",INDIRECT("'"&$K$1&"'!$B$1:$B$550"),0)))) -> Not Found | H76: Not Found | I76: 0
A77: AH-3 | D77: 3 | E77: =IF(ISNA(INDEX(INDIRECT("'"&$K$1&"'!$A$1:$A$550"), MATCH("*"&A77&"*",INDIRECT("'"&$K$1&"'!$B$1:$B$550"),0))), "Not Found", (INDEX(INDIRECT("'"&$K$1&"'!$A$1:$A$550"), MATCH("*"&A77&"*",INDIRECT("'"&$K$1&"'!$B$1:$B$550"),0)))) -> Not Found | H77: Not Found | I77: 0
A78: Social Sciences
A79: SS-1 | D79: 3 | E79: =IF(ISNA(INDEX(INDIRECT("'"&$K$1&"'!$A$1:$A$550"), MATCH("*"&A79&"*",INDIRECT("'"&$K$1&"'!$B$1:$B$550"),0))), "Not Found", (INDEX(INDIRECT("'"&$K$1&"'!$A$1:$A$550"), MATCH("*"&A79&"*",INDIRECT("'"&$K$1&"'!$B$1:$B$550"),0)))) -> Not Found | H79: =IF(ISNA(VLOOKUP(E79,INDIRECT("'"&$K$1&"'!$A$1:$H$550"),8,FALSE)), "Not Found", VLOOKUP(E79,INDIRECT("'"&$K$1&"'!$A$1:$H$550"),8,FALSE)) -> Not Found | I79: =IF(ISNA(VLOOKUP(E79,INDIRECT("'"&$K$1&"'!$A$1:$H$550"),5,FALSE)), "0", VLOOKUP(E79,INDIRECT("'"&$K$1&"'!$A$1:$H$550"),5,FALSE)) -> 0
A80: SS-2 | D80: 3 | E80: =IF(ISNA(INDEX(INDIRECT("'"&$K$1&"'!$A$1:$A$550"), MATCH("*"&A80&"*",INDIRECT("'"&$K$1&"'!$B$1:$B$550"),0))), "Not Found", (INDEX(INDIRECT("'"&$K$1&"'!$A$1:$A$550"), MATCH("*"&A80&"*",INDIRECT("'"&$K$1&"'!$B$1:$B$550"),0)))) -> Not Found | H80: Not Found | I80: 0
A81: SS-3 | D81: 3 | E81: =IF(ISNA(INDEX(INDIRECT("'"&$K$1&"'!$A$1:$A$550"), MATCH("*"&A81&"*",INDIRECT("'"&$K$1&"'!$B$1:$B$550"),0))), "Not Found", (INDEX(INDIRECT("'"&$K$1&"'!$A$1:$A$550"), MATCH("*"&A81&"*",INDIRECT("'"&$K$1&"'!$B$1:$B$550"),0)))) -> Not Found | H81: Not Found | I81: 0
A82: Sciences with Lab
A83: SC-1 | D83: 3 | E83: =IF(ISNA(INDEX(INDIRECT("'"&$K$1&"'!$A$1:$A$550"), MATCH(A83,INDIRECT("'"&$K$1&"'!$B$1:$B$550"),0))), "Not Found", (INDEX(INDIRECT("'"&$K$1&"'!$A$1:$A$550"), MATCH(A83,INDIRECT("'"&$K$1&"'!$B$1:$B$550"),0)))) -> Not Found | H83: =IF(ISNA(VLOOKUP(E83,INDIRECT("'"&$K$1&"'!$A$1:$H$550"),8,FALSE)), "Not Found", VLOOKUP(E83,INDIRECT("'"&$K$1&"'!$A$1:$H$550"),8,FALSE)) -> Not Found | I83: =IF(ISNA(VLOOKUP(E83,INDIRECT("'"&$K$1&"'!$A$1:$H$550"),5,FALSE)), "0", VLOOKUP(E83,INDIRECT("'"&$K$1&"'!$A$1:$H$550"),5,FALSE)) -> 0
A84: SCL-1 | D84: 1 | E84: =IF(ISNA(INDEX(INDIRECT("'"&$K$1&"'!$A$1:$A$550"), MATCH(A84,INDIRECT("'"&$K$1&"'!$B$1:$B$550"),0))), "Not Found", (INDEX(INDIRECT("'"&$K$1&"'!$A$1:$A$550"), MATCH(A84,INDIRECT("'"&$K$1&"'!$B$1:$B$550"),0)))) -> Not Found | H84: Not Found | I84: 0
A85: SC-2 | D85: 3 | E85: =IF(ISNA(INDEX(INDIRECT("'"&$K$1&"'!$A$1:$A$550"), MATCH(A85,INDIRECT("'"&$K$1&"'!$B$1:$B$550"),0))), "Not Found", (INDEX(INDIRECT("'"&$K$1&"'!$A$1:$A$550"), MATCH(A85,INDIRECT("'"&$K$1&"'!$B$1:$B$550"),0)))) -> Not Found | H85: Not Found | I85: 0
A86: SCL-2 | D86: 1 | E86: =IF(ISNA(INDEX(INDIRECT("'"&$K$1&"'!$A$1:$A$550"), MATCH(A86,INDIRECT("'"&$K$1&"'!$B$1:$B$550"),0))), "Not Found", (INDEX(INDIRECT("'"&$K$1&"'!$A$1:$A$550"), MATCH(A86,INDIRECT("'"&$K$1&"'!$B$1:$B$550"),0)))) -> Not Found | H86: Not Found | I86: 0
A87: STEM
A88: STEM | D88: 3 | E88: =IF(ISNA(INDEX(INDIRECT("'"&$K$1&"'!$A$1:$A$550"), MATCH(A88,INDIRECT("'"&$K$1&"'!$B$1:$B$550"),0))), "Not Found", (INDEX(INDIRECT("'"&$K$1&"'!$A$1:$A$550"), MATCH(A88,INDIRECT("'"&$K$1&"'!$B$1:$B$550"),0)))) -> Not Found | H88: =IF(ISNA(VLOOKUP(E88,INDIRECT("'"&$K$1&"'!$A$1:$H$550"),8,FALSE)), "Not Found", VLOOKUP(E88,INDIRECT("'"&$K$1&"'!$A$1:$H$550"),8,FALSE)) -> Not Found | I88: =IF(ISNA(VLOOKUP(E88,INDIRECT("'"&$K$1&"'!$A$1:$H$550"),5,FALSE)), "0", VLOOKUP(E88,INDIRECT("'"&$K$1&"'!$A$1:$H$550"),5,FALSE)) -> 0
A90: Diversity & Ethics ELOs
A91: Diversity & Cultural Awareness (DV)
A92: DV | D92: 3 | E92: =IF(ISNA(INDEX(INDIRECT("'"&$K$1&"'!$A$1:$A$550"), MATCH("*"&A92&"*",INDIRECT("'"&$K$1&"'!$B$1:$B$550"),0))), "Not Found", (INDEX(INDIRECT("'"&$K$1&"'!$A$1:$A$550"), MATCH("*"&A92&"*",INDIRECT("'"&$K$1&"'!$B$1:$B$550"),0)))) -> Not Found | H92: =IF(ISNA(VLOOKUP(E92,INDIRECT("'"&$K$1&"'!$A$1:$H$550"),8,FALSE)), "Not Found", VLOOKUP(E92,INDIRECT("'"&$K$1&"'!$A$1:$H$550"),8,FALSE)) -> Not Found | I92: =IF(ISNA(VLOOKUP(E92,INDIRECT("'"&$K$1&"'!$A$1:$H$550"),5,FALSE)), "0", VLOOKUP(E92,INDIRECT("'"&$K$1&"'!$A$1:$H$550"),5,FALSE)) -> 0
A93: Social Responsibility & Ethics (ET)
A94: ET | D94: 3 | E94: =IF(ISNA(INDEX(INDIRECT("'"&$K$1&"'!$A$1:$A$550"), MATCH("*"&A94&"*",INDIRECT("'"&$K$1&"'!$B$1:$B$550"),0))), "Not Found", (INDEX(INDIRECT("'"&$K$1&"'!$A$1:$A$550"), MATCH("*"&A94&"*",INDIRECT("'"&$K$1&"'!$B$1:$B$550"),0)))) -> Not Found | H94: =IF(ISNA(VLOOKUP(E94,INDIRECT("'"&$K$1&"'!$A$1:$H$550"),8,FALSE)), "Not Found", VLOOKUP(E94,INDIRECT("'"&$K$1&"'!$A$1:$H$550"),8,FALSE)) -> Not Found | I94: =IF(ISNA(VLOOKUP(E94,INDIRECT("'"&$K$1&"'!$A$1:$H$550"),5,FALSE)), "0", VLOOKUP(E94,INDIRECT("'"&$K$1&"'!$A$1:$H$550"),5,FALSE)) -> 0
A96: Degree Credits | I96: Projected Degree Credits
D97: =SUM(D4:D45,D57,D70,D71,D75:D81) -> 121 | I97: =SUM(I4:I45,I57,I70,I71,I75:I81) -> 0
